Workbook

Sheet MTK2_UAH (hidden)
A2: Державний та гарантований державою борг України за поточний рік
N4: =VALUAH -> млрд. грн
B5: 2015-12-31 | C5: 2016-01-31 | D5: 2016-02-29 | E5: 2016-03-31 | F5: 2016-04-30 | G5: 2016-05-31 | H5: 2016-06-30 | I5: 2016-07-31 | J5: 2016-08-31 | K5: 2016-09-30 | L5: 2016-10-31 | M5: 2016-11-30 | N5: 2016-12-31
A6: Загальна сума державного та гарантованого державою боргу | B6: =B$7+B$47 -> 1572.180159 | C6: 1645.619663 | D6: 1740.938652 | E6: 1710.385692 | F6: 1690.006869 | G6: 1683.58637 | H6: 1668.292355 | I6: 1661.617607 | J6: 1711.549346 | K6: 1778.033864 | L6: 1742.649606 | M6: 1728.919126 | N6: 1929.758702
A7: Внутрішній борг | B7: =B$8+B$32 -> 529.460578 | C7: 549.6062367 | D7: 565.4684222 | E7: 553.420678 | F7: 567.8781697 | G7: 572.9641851 | H7: 570.6908484 | I7: 565.3618386 | J7: 573.4932546 | K7: 575.6053472 | L7: 568.7711952 | M7: 560.032804 | N7: 689.7300058
A8: Державний борг | B8: =B$9+B$30 -> 508.0011231 | C8: 528.4559892 | D8: 544.5181747 | E8: 532.4704305 | F8: 547.3135796 | G8: 552.476045 | H8: 550.2791583 | I8: 545.0733059 | J8: 553.6207961 | K8: 556.0700889 | L8: 549.3618973 | M8: 540.6992592 | N8: 670.6455305
A9: 1. Заборгованість за випущеними цінними паперами на внутрішньому ринку | B9: =SUM(B$10:B$29) -> 505.3560727 | C9: 525.8109387 | D9: 541.8731242 | E9: 529.8584432 | F9: 544.7015923 | G9: 549.8640577 | H9: 547.7002341 | I9: 542.4943817 | J9: 551.0418719 | K9: 553.5242278 | L9: 546.8160362 | M9: 538.1533981 | N9: 668.1327326
A10: Казначейські зобов'язання | B10: 0.098638 | C10: 0.0996 | D10: 0.0996 | E10: 0.0996 | F10: 0.0996 | G10: 0 | H10: 0 | I10: 0 | J10: 0 | K10: 0 | L10: 0 | M10: 0 | N10: 0
A11: ОВДП (10 - річні) | B11: 60.558463 | C11: 74.832983 | D11: 74.832983 | E11: 74.832983 | F11: 74.832983 | G11: 74.832983 | H11: 74.832983 | I11: 74.832983 | J11: 74.832983 | K11: 74.832983 | L11: 74.832983 | M11: 74.832983 | N11: 74.832983
A12: ОВДП (11 - річні) | B12: 17.382981 | C12: 17.382981 | D12: 17.382981 | E12: 17.382981 | F12: 17.382981 | G12: 17.382981 | H12: 17.382981 | I12: 17.382981 | J12: 17.382981 | K12: 17.382981 | L12: 17.382981 | M12: 17.382981 | N12: 17.382981
A13: ОВДП (12 - місячні) | B13: 8.283710212 | C13: 8.781007312 | D13: 9.437687091 | E13: 9.199030938 | F13: 9.443004207 | G13: 10.13591976 | H13: 6.849757734 | I13: 2.70457 | J13: 2.71457 | K13: 2.73757 | L13: 2.91257 | M13: 2.96757 | N13: 3.47757
A14: ОВДП (12 - річні) | B14: 12.5 | C14: 12.5 | D14: 12.5 | E14: 12.5 | F14: 12.5 | G14: 12.5 | H14: 12.5 | I14: 12.5 | J14: 12.5 | K14: 12.5 | L14: 12.5 | M14: 12.5 | N14: 28.5
A15: ОВДП (13 - річні) | B15: 13.11763 | C15: 13.11763 | D15: 13.11763 | E15: 13.11763 | F15: 13.11763 | G15: 13.11763 | H15: 13.11763 | I15: 13.11763 | J15: 13.11763 | K15: 13.11763 | L15: 13.11763 | M15: 13.11763 | N15: 37.11763
A16: ОВДП (14 - річні) | B16: 3.25 | C16: 3.25 | D16: 3.25 | E16: 3.25 | F16: 3.25 | G16: 3.25 | H16: 3.25 | I16: 3.25 | J16: 3.25 | K16: 3.25 | L16: 3.25 | M16: 3.25 | N16: 51.25
A17: ОВДП (15 - річні) | B17: 15.84884 | C17: 15.84884 | D17: 15.84884 | E17: 15.84884 | F17: 15.84884 | G17: 15.84884 | H17: 15.84884 | I17: 15.84884 | J17: 15.84884 | K17: 15.84884 | L17: 15.84884 | M17: 15.84884 | N17: 42.789838
A18: ОВДП (18 - місячні) | B18: 1.04892516 | C18: 13.28327801 | D18: 14.29924562 | E18: 13.89056205 | F18: 12.20320024 | G18: 19.0133675 | H18: 18.77795338 | I18: 18.73548949 | J18: 19.38072982 | K18: 19.576891 | L18: 19.26264991 | M18: 19.34078785 | N18: 29.25796141
A19: ОВДП (2 - річні) | B19: 21.91034234 | C19: 22.03955115 | D19: 34.28142733 | E19: 34.17696595 | F19: 49.15849615 | G19: 52.11163869 | H19: 48.93094395 | I19: 49.25223519 | J19: 59.89386161 | K19: 63.51956097 | L19: 65.41787852 | M19: 58.33866393 | N19: 64.35343953
A20: ОВДП (3 - місячні) | B20: 0 | C20: 0 | D20: 0 | E20: 0 | F20: 0.3 | G20: 0.3 | H20: 0.716 | I20: 0.416 | J20: 0.416 | K20: 0 | L20: 0 | M20: 0 | N20: 0.01
A21: ОВДП (3 - річні) | B21: 43.37723613 | C21: 36.36962179 | D21: 38.70498374 | E21: 29.23092083 | F21: 34.19692528 | G21: 32.71795282 | H21: 34.00699511 | I21: 34.85659042 | J21: 30.43820725 | K21: 30.55459206 | L21: 22.75760763 | M21: 21.01802171 | N21: 18.462385
A22: ОВДП (4 - річні) | B22: 15.04510672 | C22: 15.22928304 | D22: 15.53370224 | E22: 15.39988896 | F22: 15.23484448 | G22: 15.23156032 | H22: 15.18170544 | I22: 15.17271264 | J22: 15.33935856 | K22: 15.38090064 | L22: 15.31435216 | M22: 15.33089984 | N22: 15.58553728
A23: ОВДП (5 - річні) | B23: 149.0338121 | C23: 149.1257754 | D23: 148.6336562 | E23: 146.8986525 | F23: 146.287133 | G23: 146.2752296 | H23: 150.4089895 | I23: 149.825665 | J23: 147.6254546 | K23: 150.8460231 | L23: 150.592288 | M23: 150.6522648 | N23: 151.5696514
A24: ОВДП (6 - місячні) | B24: 0 | C24: 0.05 | D24: 0.05 | E24: 0.13 | F24: 0.83 | G24: 0.83 | H24: 0.8835 | I24: 1.08673 | J24: 1.089301 | K24: 0.649301 | L24: 0.299301 | M24: 0.245801 | N24: 0.215801
A25: ОВДП (6 - річні) | B25: 27.1 | C25: 27.1 | D25: 27.1 | E25: 27.1 | F25: 27.1 | G25: 27.1 | H25: 25.6 | I25: 24.1 | J25: 24.1 | K25: 24.1 | L25: 24.1 | M25: 24.1 | N25: 24.1
A26: ОВДП (7 - річні) | B26: 48.624791 | C26: 48.624791 | D26: 48.624791 | E26: 48.624791 | F26: 44.739791 | G26: 41.039791 | H26: 41.039791 | I26: 41.039791 | J26: 44.739791 | K26: 44.739791 | L26: 44.739791 | M26: 44.739791 | N26: 44.739791
A27: ОВДП (8 - річні) | B27: 31.301198 | C27: 31.301198 | D27: 31.301198 | E27: 31.301198 | F27: 31.301198 | G27: 31.301198 | H27: 31.301198 | I27: 31.301198 | J27: 31.301198 | K27: 27.416198 | L27: 27.416198 | M27: 27.416198 | N27: 27.416198
A28: ОВДП (9 - місячні) | B28: 0 | C28: 0 | D28: 0 | E28: 0 | F28: 0.000567 | G28: 0.000567 | H28: 0.196567 | I28: 0.196567 | J28: 0.196567 | K28: 0.196567 | L28: 0.196567 | M28: 0.196567 | N28: 0.196567
A29: ОВДП (9 - річні) | B29: 36.874399 | C29: 36.874399 | D29: 36.874399 | E29: 36.874399 | F29: 36.874399 | G29: 36.874399 | H29: 36.874399 | I29: 36.874399 | J29: 36.874399 | K29: 36.874399 | L29: 36.874399 | M29: 36.874399 | N29: 36.874399
A30: 2. Заборгованість перед банківськими та іншими фінансовими установами | B30: =SUM(B$31:B$31) -> 2.64505045 | C30: 2.64505045 | D30: 2.64505045 | E30: 2.611987319 | F30: 2.611987319 | G30: 2.611987319 | H30: 2.578924189 | I30: 2.578924189 | J30: 2.578924189 | K30: 2.545861058 | L30: 2.545861058 | M30: 2.545861058 | N30: 2.512797928
A31: Національний банк України | B31: 2.64505045 | C31: 2.64505045 | D31: 2.64505045 | E31: 2.611987319 | F31: 2.611987319 | G31: 2.611987319 | H31: 2.578924189 | I31: 2.578924189 | J31: 2.578924189 | K31: 2.545861058 | L31: 2.545861058 | M31: 2.545861058 | N31: 2.512797928
A32: Гарантований державою борг | B32: =B$33+B$41+B$45 -> 21.45945491 | C32: 21.15024749 | D32: 20.95024749 | E32: 20.95024749 | F32: 20.56459008 | G32: 20.48814008 | H32: 20.41169008 | I32: 20.28853266 | J32: 19.87245858 | K32: 19.53525833 | L32: 19.40929789 | M32: 19.33354488 | N32: 19.08447525
A33: 1. Заборгованість за випущеними цінними паперами на внутрішньому ринку | B33: =SUM(B$34:B$40) -> 16.4000116 | C33: 16.4000116 | D33: 16.2000116 | E33: 16.2000116 | F33: 16.2000116 | G33: 16.2000116 | H33: 16.2000116 | I33: 16.2000116 | J33: 15.9500116 | K33: 15.9500116 | L33: 15.9500116 | M33: 15.9500116 | N33: 15.9500116
A34: Державні цінні папери | B34: 1.16e-05 | C34: 1.16e-05 | D34: 1.16e-05 | E34: 1.16e-05 | F34: 1.16e-05 | G34: 1.16e-05 | H34: 1.16e-05 | I34: 1.16e-05 | J34: 1.16e-05 | K34: 1.16e-05 | L34: 1.16e-05 | M34: 1.16e-05 | N34: 1.16e-05
A35: Облігації ДІУ (10 - річні) | B35: 1 | C35: 1 | D35: 1 | E35: 1 | F35: 1 | G35: 1 | H35: 1 | I35: 1 | J35: 1 | K35: 1 | L35: 1 | M35: 1 | N35: 1
A36: Облігації ДІУ (5 - річні) | B36: 3 | C36: 3 | D36: 3 | E36: 3 | F36: 3 | G36: 3 | H36: 3 | I36: 3 | J36: 3 | K36: 3 | L36: 3 | M36: 3 | N36: 3
A37: Облігації ДІУ (7 - річні) | B37: 3.2 | C37: 3.2 | D37: 3 | E37: 3 | F37: 3 | G37: 3 | H37: 3 | I37: 3 | J37: 3 | K37: 3 | L37: 3 | M37: 3 | N37: 3
A38: Облігації НАК "Нафтогаз України" (3 - річні) | B38: 4.8 | C38: 4.8 | D38: 4.8 | E38: 4.8 | F38: 4.8 | G38: 4.8 | H38: 4.8 | I38: 4.8 | J38: 4.8 | K38: 4.8 | L38: 4.8 | M38: 4.8 | N38: 4.8
A39: Облігації Укравтодору (3 - річні) | B39: 0.25 | C39: 0.25 | D39: 0.25 | E39: 0.25 | F39: 0.25 | G39: 0.25 | H39: 0.25 | I39: 0.25 | J39: 0 | K39: 0 | L39: 0 | M39: 0 | N39: 0
A40: Облігації Укравтодору (5 - річні) | B40: 4.15 | C40: 4.15 | D40: 4.15 | E40: 4.15 | F40: 4.15 | G40: 4.15 | H40: 4.15 | I40: 4.15 | J40: 4.15 | K40: 4.15 | L40: 4.15 | M40: 4.15 | N40: 4.15
A41: 2. Заборгованість перед банківськими та іншими фінансовими установами | B41: =SUM(B$42:B$44) -> 5.058488656 | C41: 4.749281241 | D41: 4.749281241 | E41: 4.749281241 | F41: 4.363623827 | G41: 4.287173827 | H41: 4.210723827 | I41: 4.087566413 | J41: 3.921492329 | K41: 3.584292084 | L41: 3.458331643 | M41: 3.382578632 | N41: 3.133508998
A42: ВАТ "Державний експортно-імпортний банк України" | B42: 1.05 | C42: 0.7875 | D42: 0.7875 | E42: 0.7875 | F42: 0.525 | G42: 0.525 | H42: 0.525 | I42: 0.525 | J42: 0.435375916 | K42: 0.1746256718 | L42: 0.1718226444 | M42: 0.1725196341 | N42: 0
A43: ВАТ "Державний ощадний банк України" | B43: 3.859862318 | C43: 3.822362318 | D43: 3.822362318 | E43: 3.822362318 | F43: 3.708412318 | G43: 3.631962318 | H43: 3.555512318 | I43: 3.441562318 | J43: 3.365112318 | K43: 3.288662318 | L43: 3.174712318 | M43: 3.098262318 | N43: 3.021712318
A44: ПАТ АБ "Укргазбанк" | B44: 0.1486263374 | C44: 0.1394189231 | D44: 0.1394189231 | E44: 0.1394189231 | F44: 0.1302115088 | G44: 0.1302115088 | H44: 0.1302115088 | I44: 0.1210040945 | J44: 0.1210040945 | K44: 0.1210040945 | L44: 0.1117966802 | M44: 0.1117966802 | N44: 0.1117966802
A45: 3. Заборгованість, не віднесена до інших категорій | B45: =SUM(B$46:B$46) -> 0.00095465 | C45: 0.00095465 | D45: 0.00095465 | E45: 0.00095465 | F45: 0.00095465 | G45: 0.00095465 | H45: 0.00095465 | I45: 0.00095465 | J45: 0.00095465 | K45: 0.00095465 | L45: 0.00095465 | M45: 0.00095465 | N45: 0.00095465
A46: Інші кредитори | B46: 0.00095465 | C46: 0.00095465 | D46: 0.00095465 | E46: 0.00095465 | F46: 0.00095465 | G46: 0.00095465 | H46: 0.00095465 | I46: 0.00095465 | J46: 0.00095465 | K46: 0.00095465 | L46: 0.00095465 | M46: 0.00095465 | N46: 0.00095465
A47: Зовнішній борг | B47: =B$48+B$71 -> 1042.719581 | C47: 1096.013426 | D47: 1175.47023 | E47: 1156.965014 | F47: 1122.128699 | G47: 1110.622185 | H47: 1097.601506 | I47: 1096.255768 | J47: 1138.056091 | K47: 1202.428517 | L47: 1173.878411 | M47: 1168.886322 | N47: 1240.028696
A48: Державний борг | B48: =B$49+B$56+B$62+B$64+B$69 -> 826.2704782 | C48: 863.9443558 | D48: 939.3353381 | E48: 925.203338 | F48: 901.6001277 | G48: 896.0723185 | H48: 886.0375107 | I48: 882.2844189 | J48: 913.5203499 | K48: 949.0449827 | L48: 927.2507272 | M48: 923.852336 | N48: 980.1853041
A49: 1. Заборгованість за позиками, одержаними від міжнародних фінансових організацій | B49: =SUM(B$50:B$55) -> 337.4492911 | C49: 351.8752138 | D49: 379.2660818 | E49: 372.540702 | F49: 358.9550337 | G49: 355.0048726 | H49: 350.589069 | I49: 348.619539 | J49: 360.8556868 | K49: 364.8118444 | L49: 354.0164778 | M49: 350.1972679 | N49: 371.8441251
A50: Європейське Співтовариство | B50: 57.95311509 | C50: 60.60477254 | D50: 65.80509481 | E50: 65.61341267 | F50: 63.22115839 | G50: 61.9516261 | H50: 60.9154234 | I50: 60.77766968 | J50: 63.31301483 | K50: 64.25733899 | L50: 61.54115838 | M50: 59.83331458 | N50: 62.81395484
A51: Європейський банк реконструкції та розвитку | B51: 13.99069907 | C51: 14.72037804 | D51: 15.98942881 | E51: 15.93255976 | F51: 15.59893252 | G51: 14.88286828 | H51: 14.85655122 | I51: 14.95285272 | J51: 15.57680058 | K51: 15.90299596 | L51: 15.389917 | M51: 14.66369746 | N51: 16.06985828
A52: Європейський Інвестиційний Банк | B52: 12.53014512 | C52: 13.10346465 | D52: 14.04992352 | E52: 14.00899783 | F52: 13.55544578 | G52: 13.2832414 | H52: 13.06106595 | I52: 13.30654182 | J52: 13.6541629 | K52: 13.85781702 | L52: 13.27204215 | M52: 12.90372645 | N52: 14.52237776
A53: Міжнародний банк реконструкції та розвитку | B53: 124.7471258 | C53: 129.5758776 | D53: 139.3388677 | E53: 134.5771219 | F53: 129.3627866 | G53: 128.7693267 | H53: 127.7101294 | I53: 126.3619712 | J53: 130.4080635 | K53: 131.3456013 | L53: 128.7568029 | M53: 129.1578916 | N53: 137.4605065
A54: Міжнародний Валютний Фонд | B54: 128.2076972 | C54: 133.8492284 | D54: 144.0596486 | E54: 142.3862062 | F54: 137.1951882 | G54: 136.0963055 | H54: 134.0246606 | I54: 133.1993133 | J54: 137.8817248 | K54: 139.424259 | L54: 135.0274987 | M54: 133.5930363 | N54: 140.9098527
A55: Фонд чистих технологій (МБРР) | B55: 0.02050886997 | C55: 0.02149250101 | D55: 0.02311831358 | E55: 0.02240365658 | F55: 0.021522203 | G55: 0.02150466328 | H55: 0.02123840317 | I55: 0.0211903753 | J55: 0.0219201606 | K55: 0.02383211438 | L55: 0.02905867921 | M55: 0.04560149275 | N55: 0.06757499901
A56: 2. Заборгованість за позиками, одержаними від органів управління іноземних держав | B56: =SUM(B$57:B$61) -> 32.70852715 | C56: 34.24240941 | D56: 37.52691602 | E56: 45.38806967 | F56: 44.49038557 | G56: 43.63318039 | H56: 44.29631136 | I56: 43.7897977 | J56: 45.88823856 | K56: 46.3686946 | L56: 44.69113903 | M56: 43.59943611 | N56: 45.64750416
A57: Канада | B57: 6.9140144 | C57: 7.1427944 | D57: 7.988748 | E57: 8.0486144 | F57: 8.0232388 | G57: 7.7203 | H57: 7.6528188 | I57: 7.5371588 | J57: 7.8693648 | K57: 7.9209208 | L57: 7.6172272 | M57: 7.6093024 | N57: 8.0323876
A58: Німеччина | B58: 5.428187703 | C58: 5.676555618 | D58: 6.163644627 | E58: 6.145690689 | F58: 5.921619813 | G58: 5.80270887 | H58: 5.70565278 | I58: 5.692750056 | J58: 6.034082725 | K58: 6.124082073 | L58: 5.865214943 | M58: 5.702447922 | N58: 5.983279353
A59: Росія | B59: 14.54094475 | C59: 15.23834664 | D59: 16.39106011 | E59: 15.88436287 | F59: 15.25940558 | G59: 15.24696978 | H59: 15.05818934 | I59: 15.02413721 | J59: 15.54156053 | K59: 15.69886374 | L59: 15.44687132 | M59: 15.50953075 | N59: 16.47374066
A60: США | B60: 0.216533956 | C60: 0.2269191953 | D60: 0.244084628 | E60: 0.2365392339 | F60: 0.2272327909 | G60: 0.2270476054 | H60: 0.2242364141 | I60: 0.2237293328 | J60: 0.2314344524 | K60: 0.2337769057 | L60: 0.2300244044 | M60: 0.2309574864 | N60: 0.2065714027
A61: Японія | B61: 5.608846349 | C61: 5.95779356 | D61: 6.739378653 | E61: 15.07286248 | F61: 15.05888859 | G61: 14.63615413 | H61: 15.65541402 | I61: 15.3120223 | J61: 16.21179605 | K61: 16.39105108 | L61: 15.53180116 | M61: 14.54719755 | N61: 14.95152515
A62: 3. Заборгованість за позиками, одержаними від іноземних комерційних банків, інших іноземних фінансових установ | B62: =SUM(B$63:B$63) -> 0.00134076761 | C62: 0.00140211472 | D62: 0.00152242618 | E62: 0.00151799154 | F62: 0.00146264582 | G62: 0.0014332747 | H62: 0.00140930175 | I62: 0.00140611476 | J62: 0.00146477095 | K62: 0.00148661825 | L62: 0.00142377837 | M62: 0.00138426675 | N62: 0.001453225
A63: Chase Manhattan Bank Luxembourg S.A. | B63: 0.00134076761 | C63: 0.00140211472 | D63: 0.00152242618 | E63: 0.00151799154 | F63: 0.00146264582 | G63: 0.0014332747 | H63: 0.00140930175 | I63: 0.00140611476 | J63: 0.00146477095 | K63: 0.00148661825 | L63: 0.00142377837 | M63: 0.00138426675 | N63: 0.001453225
A64: 4. Заборгованість за випущеними цінними паперами на зовнішньому ринку | B64: =SUM(B$65:B$68) -> 415.2699327 | C64: 435.186798 | D64: 476.6496904 | E64: 461.9150067 | F64: 454.4488363 | G64: 454.0784789 | H64: 448.4563035 | I64: 447.4421782 | J64: 462.8518496 | K64: 493.4484627 | L64: 485.5278086 | M64: 487.4973269 | N64: 517.8044819
A65: ОЗДП 2013 року | B65: 72.002001 | C65: 75.455307 | D65: 81.163167 | E65: 78.654168 | F65: 75.559584 | G65: 75.498006 | H65: 74.563227 | I65: 74.394612 | J65: 76.956723 | K65: 77.735637 | L65: 76.487853 | M65: 76.798122 | N65: 81.572574
A66: ОЗДП 2014 року | B66: 24.000667 | C66: 25.151769 | D66: 27.054389 | E66: 26.218056 | F66: 25.186528 | G66: 25.166002 | H66: 24.854409 | I66: 24.798204 | J66: 25.652241 | K66: 25.911879 | L66: 25.495951 | M66: 25.599374 | N66: 27.190858
A67: ОЗДП 2015 року | B67: 319.2672647 | C67: 334.579722 | D67: 368.4321344 | E67: 357.0427827 | F67: 353.7027243 | G67: 353.4144709 | H67: 349.0386675 | I67: 348.2493622 | J67: 360.2428856 | K67: 363.8890677 | L67: 358.0480536 | M67: 359.5004569 | N67: 381.8501919
A68: ОЗДП 2016 року | B68: 0 | C68: 0 | D68: 0 | E68: 0 | F68: 0 | G68: 0 | H68: 0 | I68: 0 | J68: 0 | K68: 25.911879 | L68: 25.495951 | M68: 25.599374 | N68: 27.190858
A69: 5. Заборгованість, не віднесена до інших категорій | B69: =SUM(B$70:B$70) -> 40.84138642 | C69: 42.6385325 | D69: 45.8911275 | E69: 45.35804165 | F69: 43.70440948 | G69: 43.35435334 | H69: 42.69441755 | I69: 42.43149784 | J69: 43.92311014 | K69: 44.41449434 | L69: 43.01387806 | M69: 42.55692084 | N69: 44.88773975
A70: Міжнародний Валютний Фонд | B70: 40.84138642 | C70: 42.6385325 | D70: 45.8911275 | E70: 45.35804165 | F70: 43.70440948 | G70: 43.35435334 | H70: 42.69441755 | I70: 42.43149784 | J70: 43.92311014 | K70: 44.41449434 | L70: 43.01387806 | M70: 42.55692084 | N70: 44.88773975
A71: Гарантований державою борг | B71: =B$72+B$78+B$80+B$90+B$91 -> 216.4491028 | C71: 232.0690702 | D71: 236.1348917 | E71: 231.761676 | F71: 220.5285717 | G71: 214.5498663 | H71: 211.5639955 | I71: 213.9713495 | J71: 224.5357415 | K71: 253.3835346 | L71: 246.6276834 | M71: 245.0339855 | N71: 259.843392
A72: 1. Заборгованість за позиками, одержаними від міжнародних фінансових організацій | B72: =SUM(B$73:B$77) -> 140.8338031 | C72: 153.4554402 | D72: 162.6021888 | E72: 160.534106 | F72: 154.5725133 | G72: 148.9413908 | H72: 146.7816071 | I72: 150.2739558 | J72: 158.632272 | K72: 186.9263806 | L72: 181.4838281 | M72: 180.1273726 | N72: 190.935067
A73: Європейське співтоватиство з атомної енергії | B73: 0.4566383727 | C73: 0.4779752917 | D73: 0.5168489458 | E73: 0.4511063015 | F73: 0.4048624853 | G73: 0.4002336814 | H73: 0.3943282506 | I73: 0.3934365237 | J73: 0.4085469552 | K73: 0.3570555845 | L73: 0.2844054231 | M73: 0.2803775281 | N73: 0.2958517627
A74: Європейський банк реконструкції та розвитку | B74: 3.050143293 | C74: 9.518366749 | D74: 7.412360918 | E74: 7.142456921 | F74: 6.862445381 | G74: 1.993333576 | H74: 1.828864371 | I74: 6.032546123 | J74: 9.201523305 | K74: 9.964744009 | L74: 9.794398936 | M74: 10.03725927 | N74: 10.51454858
A75: Європейський Інвестиційний Банк | B75: 0 | C75: 0 | D75: 0.148880305 | E75: 0.148446635 | F75: 0.143034295 | G75: 0.14016205 | H75: 0.1378177 | I75: 0.27501208 | J75: 0.28648423 | K75: 0.29075719 | L75: 0.55693356 | M75: 0.54147796 | N75: 0.99479114
A76: Міжнародний банк реконструкції та розвитку | B76: 9.418982998 | C76: 9.922714356 | D76: 10.80115939 | E76: 10.73868802 | F76: 10.28764808 | G76: 10.62945264 | H76: 10.70919083 | I76: 10.68497339 | J76: 11.17626242 | K76: 11.31506235 | L76: 11.05258404 | M76: 11.17033657 | N76: 12.37301899
A77: Міжнародний Валютний Фонд | B77: 127.9080385 | C77: 133.5363838 | D77: 143.7229393 | E77: 142.0534082 | F77: 136.8745231 | G77: 135.7782088 | H77: 133.711406 | I77: 132.8879877 | J77: 137.5594551 | K77: 164.9987614 | L77: 159.7955062 | M77: 158.0979213 | N77: 166.7568566
A78: 2. Заборгованість за позиками, одержаними від органів управління іноземних держав | B78: =SUM(B$79:B$79) -> 4.679066995 | C78: 4.290545786 | D78: 4.615106584 | E78: 4.47243968 | F78: 4.296475193 | G78: 4.29297374 | H78: 4.239820261 | I78: 3.625913538 | J78: 3.750788078 | K78: 3.78875151 | L78: 3.727935857 | M78: 3.743058035 | N78: 3.975759701
A79: Канада | B79: 4.679066995 | C79: 4.290545786 | D79: 4.615106584 | E79: 4.47243968 | F79: 4.296475193 | G79: 4.29297374 | H79: 4.239820261 | I79: 3.625913538 | J79: 3.750788078 | K79: 3.78875151 | L79: 3.727935857 | M79: 3.743058035 | N79: 3.975759701
A80: 3. Заборгованість за позиками, одержаними від іноземних комерційних банків, інших іноземних фінансових установ | B80: =SUM(B$81:B$89) -> 68.22755055 | C80: 71.49521178 | D80: 65.87400524 | E80: 63.74689454 | F80: 58.76101962 | G80: 58.44015464 | H80: 57.71098927 | I80: 57.25733862 | J80: 59.23961329 | K80: 59.72274481 | L80: 58.56315329 | M80: 58.34109511 | N80: 61.95552088
A81: Citibank, N.A. London | B81: 0.9786004447 | C81: 1.023376522 | D81: 0 | E81: 0 | F81: 0 | G81: 0 | H81: 0 | I81: 0 | J81: 0 | K81: 0 | L81: 0 | M81: 0 | N81: 0
A82: Credit Suisse International | B82: 2.419267234 | C82: 2.535298315 | D82: 2.727082411 | E82: 2.642780045 | F82: 0 | G82: 0 | H82: 0 | I82: 0 | J82: 0 | K82: 0 | L82: 0 | M82: 0 | N82: 0
A83: Deutsche Bank AG London | B83: 0 | C83: 0 | D83: 0 | E83: 0 | F83: 0.2204260584 | G83: 0.3787919925 | H83: 0.373172053 | I83: 0.3723281643 | J83: 0.3878598622 | K83: 0.3936448566 | L83: 0.3770053483 | M83: 0.3665429803 | N83: 0.3881279224
A84: UniCredit Bank Austria AG | B84: 1.114482976 | C84: 1.165476388 | D84: 1.265482585 | E84: 1.135616751 | F84: 1.09421235 | G84: 1.072239676 | H84: 1.054305399 | I84: 1.0519212 | J84: 1.095802173 | K84: 0.9885744399 | L84: 0.9467870461 | M84: 0.9205125263 | N84: 0.96636853
A85: ВАТ "Газпромбанк" | B85: 12.0003335 | C85: 12.5758845 | D85: 13.5271945 | E85: 13.109028 | F85: 12.593264 | G85: 12.583001 | H85: 12.4272045 | I85: 12.399102 | J85: 12.8261205 | K85: 12.9559395 | L85: 12.7479755 | M85: 12.799687 | N85: 13.595429
A86: Державний банк розвитку КНР | B86: 1.729968077 | C86: 1.81293951 | D86: 1.950080359 | E86: 1.889797476 | F86: 1.652739967 | G86: 1.651393051 | H86: 1.630946319 | I86: 1.627258146 | J86: 1.683300054 | K86: 1.7003375 | L86: 1.508340461 | M86: 1.514458966 | N86: 1.608611159
A87: Експортно-імпортний банк Китаю | B87: 37.25200875 | C87: 39.03866167 | D87: 41.99176363 | E87: 40.6936712 | F87: 39.09261194 | G87: 39.06075305 | H87: 38.57712211 | I87: 38.16674024 | J87: 39.48118254 | K87: 39.88078955 | L87: 39.2406377 | M87: 39.39981531 | N87: 41.84925707
A88: Експортно-імпортний банк Кореї | B88: 3.914358784 | C88: 4.102096325 | D88: 4.412401756 | E88: 4.276001071 | F88: 4.107765301 | G88: 3.693975875 | H88: 3.648238891 | I88: 3.639988875 | J88: 3.765348163 | K88: 3.803458964 | L88: 3.742407233 | M88: 3.340078323 | N88: 3.547727198
A89: Сбербанк Росії | B89: 8.818530789 | C89: 9.241478553 | D89: 0 | E89: 0 | F89: 0 | G89: 0 | H89: 0 | I89: 0 | J89: 0 | K89: 0 | L89: 0 | M89: 0 | N89: 0
A90: 4. Заборгованість за випущеними цінними паперами на зовнішньому ринку
A91: 5. Заборгованість, не віднесена до інших категорій | B91: =SUM(B$92:B$92) -> 2.708682131 | C91: 2.82787244 | D91: 3.043591022 | E91: 3.008235706 | F91: 2.898563525 | G91: 2.875347105 | H91: 2.831578848 | I91: 2.814141488 | J91: 2.913068189 | K91: 2.945657768 | L91: 2.852766106 | M91: 2.822459792 | N91: 2.977044347
A92: Міжнародний Валютний Фонд | B92: 2.708682131 | C92: 2.82787244 | D92: 3.043591022 | E92: 3.008235706 | F92: 2.898563525 | G92: 2.875347105 | H92: 2.831578848 | I92: 2.814141488 | J92: 2.913068189 | K92: 2.945657768 | L92: 2.852766106 | M92: 2.822459792 | N92: 2.977044347

Sheet MTK2_USD (hidden)
A2: Державний та гарантований державою борг України за поточний рік
N4: =VALUSD -> млрд. дол. США
B5: 2015-12-31 | C5: 2016-01-31 | D5: 2016-02-29 | E5: 2016-03-31 | F5: 2016-04-30 | G5: 2016-05-31 | H5: 2016-06-30 | I5: 2016-07-31 | J5: 2016-08-31 | K5: 2016-09-30 | L5: 2016-10-31 | M5: 2016-11-30 | N5: 2016-12-31
A6: Загальна сума державного та гарантованого державою боргу | B6: =B$7+B$47 -> 65.50568611 | C6: 65.4275913 | D6: 64.34958306 | E6: 65.23693793 | F6: 67.09963632 | G6: 66.8992385 | H6: 67.122592 | I6: 67.00556245 | J6: 66.72124069 | K6: 68.61848438 | L6: 68.35005314 | M6: 67.53755485 | N6: 70.97086461
A7: Внутрішній борг | B7: =B$8+B$32 -> 22.06024433 | C7: 21.85159369 | D7: 20.90117142 | E7: 21.10837958 | F7: 22.54690165 | G7: 22.76739011 | H7: 22.96135259 | I7: 22.79849938 | J7: 22.35645824 | K7: 22.21395628 | L7: 22.30829496 | M7: 21.87681636 | N7: 25.36624647
A8: Державний борг | B8: =B$9+B$30 -> 21.16612522 | C8: 21.01068872 | D8: 20.12679624 | E8: 20.30930251 | F8: 21.73040999 | G8: 21.95327033 | H8: 22.14010232 | I8: 21.98035414 | J8: 21.5817712 | K8: 21.46004498 | L8: 21.54702514 | M8: 21.1215813 | N8: 24.66437545
A9: 1. Заборгованість за випущеними цінними паперами на внутрішньому ринку | B9: =SUM(B$10:B$29) -> 21.05591785 | C9: 20.90552512 | D9: 20.02902835 | E9: 20.209677 | F9: 21.62670426 | G9: 21.84948001 | H9: 22.03634108 | I9: 21.87635773 | J9: 21.48123713 | K9: 21.36179425 | L9: 21.4471716 | M9: 21.02213117 | N9: 24.57196211
A10: Казначейські зобов'язання | B10: 0.00410980245 | C10: 0.00395996003 | D10: 0.0036814729 | E10: 0.00379890866 | F10: 0.00395449504 | G10: 0 | H10: 0 | I10: 0 | J10: 0 | K10: 0 | L10: 0 | M10: 0 | N10: 0
A11: ОВДП (10 - річні) | B11: 2.523199168 | C11: 2.975257247 | D11: 2.766020072 | E11: 2.854253687 | F11: 2.971151204 | G11: 2.973574547 | H11: 3.010853447 | I11: 3.01767753 | J11: 2.917210352 | K11: 2.887979795 | L11: 2.935092831 | M11: 2.923234881 | N11: 2.752137612
A12: ОВДП (11 - річні) | B12: 0.7242707463 | C12: 0.6911235945 | D12: 0.6425198144 | E12: 0.6630156332 | F12: 0.6901698003 | G12: 0.6907327195 | H12: 0.6993922487 | I12: 0.7009774176 | J12: 0.67763986 | K12: 0.6708498832 | L12: 0.6817937876 | M12: 0.6790393 | N12: 0.6392950528
A13: ОВДП (12 - місячні) | B13: 0.345145 | C13: 0.3491208635 | D13: 0.3488412579 | E13: 0.350866248 | F13: 0.3749228241 | G13: 0.4027624158 | H13: 0.275595277 | I13: 0.1090631402 | J13: 0.1058219436 | K13: 0.1056492275 | L13: 0.1142365703 | M13: 0.1159235378 | N13: 0.1278948241
A14: ОВДП (12 - річні) | B14: 0.5208188589 | C14: 0.4969829359 | D14: 0.4620322418 | E14: 0.4767706652 | F14: 0.496297068 | G14: 0.4967018599 | H14: 0.5029288767 | I14: 0.5040687624 | J14: 0.4872868612 | K14: 0.4824042286 | L14: 0.4902739262 | M14: 0.4882931903 | N14: 1.048146403
A15: ОВДП (13 - річні) | B15: 0.5465527271 | C15: 0.5215390615 | D15: 0.4848614397 | E15: 0.5003280945 | F15: 0.5208193047 | G15: 0.5212440975 | H15: 0.5277787937 | I15: 0.5289750016 | J15: 0.5113638999 | K15: 0.5062400145 | L15: 0.5144985571 | M15: 0.5124199522 | N15: 1.365077557
A16: ОВДП (14 - річні) | B16: 0.1354129033 | C16: 0.1292155633 | D16: 0.1201283829 | E16: 0.123960373 | F16: 0.1290372377 | G16: 0.1291424836 | H16: 0.1307615079 | I16: 0.1310578782 | J16: 0.1266945839 | K16: 0.1254250994 | L16: 0.1274712208 | M16: 0.1269562295 | N16: 1.884824672
A17: ОВДП (15 - річні) | B17: 0.6603499811 | C17: 0.6301282427 | D17: 0.585814006 | E17: 0.6045009592 | F17: 0.6292586259 | G17: 0.6297718644 | H17: 0.6376671439 | I17: 0.6391124131 | J17: 0.6178345198 | K17: 0.6116437947 | L17: 0.621621841 | M17: 0.6191104517 | N17: 1.573684729
A18: ОВДП (18 - місячні) | B18: 0.04370400039 | C18: 0.5281250004 | D18: 0.5285370007 | E18: 0.5298090006 | F18: 0.484513 | G18: 0.755518 | H18: 0.755518 | I18: 0.755518 | J18: 0.755518 | K18: 0.755518 | L18: 0.755518 | M18: 0.755518 | N18: 1.076022
A19: ОВДП (2 - річні) | B19: 0.9129055595 | C19: 0.8762624669 | D19: 1.267129978 | E19: 1.303565984 | F19: 1.9517774 | G19: 2.070715829 | H19: 1.968702774 | I19: 1.986121059 | J19: 2.334839346 | K19: 2.451368385 | L19: 2.565814412 | M19: 2.278909786 | N19: 2.366730742
A20: ОВДП (3 - місячні) | B20: 0 | C20: 0 | D20: 0 | E20: 0 | F20: 0.01191112963 | G20: 0.01192084464 | H20: 0.02880776606 | I20: 0.01677540841 | J20: 0.01621690674 | K20: 0 | L20: 0 | M20: 0 | N20: 0.00036777067
A21: ОВДП (3 - річні) | B21: 1.80733461 | C21: 1.446006513 | D21: 1.430636033 | E21: 1.114915645 | F21: 1.3577467 | G21: 1.300085441 | H21: 1.368247988 | I21: 1.405609471 | J21: 1.186571078 | K21: 1.179173153 | L21: 0.8925969315 | M21: 0.8210365498 | N21: 0.6789923657
A22: ОВДП (4 - річні) | B22: 0.6268620251 | C22: 0.6054955037 | D22: 0.5741657016 | E22: 0.5873772243 | F22: 0.6048806918 | G22: 0.6052435472 | H22: 0.6108254451 | I22: 0.6118472386 | J22: 0.5979734308 | K22: 0.5935849207 | L22: 0.6006582049 | M22: 0.5988779194 | N22: 0.5731903451
A23: ОВДП (5 - річні) | B23: 6.209569597 | C23: 5.929037255 | D23: 5.493883311 | E23: 5.602957461 | F23: 5.808150014 | G23: 5.812414287 | H23: 6.051601931 | I23: 6.041795001 | J23: 5.754875554 | K23: 5.821500754 | L23: 5.906517785 | M23: 5.884997999 | N23: 5.574287189
A24: ОВДП (6 - місячні) | B24: 0 | C24: 0.00198793174 | D24: 0.00184812897 | E24: 0.00495841492 | F24: 0.03295412532 | G24: 0.0329810035 | H24: 0.03554701302 | I24: 0.0438229317 | J24: 0.04246416522 | K24: 0.02505804384 | L24: 0.0117391581 | M24: 0.00960183636 | N24: 0.00793652779
A25: ОВДП (6 - річні) | B25: 1.129135286 | C25: 1.077459005 | D25: 1.0016859 | E25: 1.033638802 | F25: 1.075972043 | G25: 1.076849632 | H25: 1.02999834 | I25: 0.9718445739 | J25: 0.9394890684 | K25: 0.9300753527 | L25: 0.9452481298 | M25: 0.9414292709 | N25: 0.886327309
A26: ОВДП (7 - річні) | B26: 2.025976653 | C26: 1.933255311 | D26: 1.797297695 | E26: 1.854629916 | F26: 1.776338168 | G26: 1.630763242 | H26: 1.651207679 | I26: 1.654950133 | J26: 1.744088986 | K26: 1.726613149 | L26: 1.754780239 | M26: 1.747690822 | N26: 1.645398281
A27: ОВДП (8 - річні) | B27: 1.304180338 | C27: 1.244492902 | D27: 1.156973015 | E27: 1.193879439 | F27: 1.242775423 | G27: 1.243789061 | H27: 1.259382108 | I27: 1.262236491 | J27: 1.220213002 | K27: 1.058055188 | L27: 1.075315763 | M27: 1.070971423 | N27: 1.008287344
A28: ОВДП (9 - місячні) | B28: 0 | C28: 0 | D28: 0 | E28: 0 | F28: 2.251204e-05 | G28: 2.25304e-05 | H28: 0.00790873764 | I28: 0.00792666275 | J28: 0.00766276131 | K28: 0.00758598016 | L28: 0.00770973399 | M28: 0.0076785862 | N28: 0.00722915769
A29: ОВДП (9 - річні) | B29: 1.536390593 | C29: 1.466075766 | D29: 1.362972899 | E29: 1.406450539 | F29: 1.464052489 | G29: 1.465246605 | H29: 1.483616005 | I29: 1.486978613 | J29: 1.437472812 | K29: 1.42306928 | L29: 1.44628451 | M29: 1.440441434 | N29: 1.356132234
A30: 2. Заборгованість перед банківськими та іншими фінансовими установами | B30: =SUM(B$31:B$31) -> 0.1102073726 | C30: 0.1051635951 | D30: 0.09776788713 | E30: 0.09962551455 | F30: 0.1037057319 | G30: 0.1037903168 | H30: 0.1037612356 | I30: 0.1039964099 | J30: 0.1005340699 | K30: 0.09825073119 | L30: 0.09985354373 | M30: 0.09945012945 | N30: 0.09241333715
A31: Національний банк України | B31: 0.1102073726 | C31: 0.1051635951 | D31: 0.09776788713 | E31: 0.09962551455 | F31: 0.1037057319 | G31: 0.1037903168 | H31: 0.1037612356 | I31: 0.1039964099 | J31: 0.1005340699 | K31: 0.09825073119 | L31: 0.09985354373 | M31: 0.09945012945 | N31: 0.09241333715
A32: Гарантований державою борг | B32: =B$33+B$41+B$45 -> 0.8941191053 | C32: 0.8409049674 | D32: 0.7743751852 | E32: 0.7990770747 | F32: 0.8164916608 | G32: 0.8141197826 | H32: 0.821250269 | I32: 0.818145244 | J32: 0.7746870373 | K32: 0.7539112982 | L32: 0.7612698147 | M32: 0.7552350648 | N32: 0.7018710203
A33: 1. Заборгованість за випущеними цінними паперами на внутрішньому ринку | B33: =SUM(B$34:B$40) -> 0.6833148262 | C33: 0.6520420731 | D33: 0.5987942141 | E33: 0.6178952246 | F33: 0.6432014607 | G33: 0.6437260714 | H33: 0.651796291 | I33: 0.6532735838 | J33: 0.6217784871 | K33: 0.6155482434 | L33: 0.6255899849 | M33: 0.6230625639 | N33: 0.5865946415
A34: Державні цінні папери | B34: 4.8332e-07 | C34: 4.612e-07 | D34: 4.2877e-07 | E34: 4.4244e-07 | F34: 4.6056e-07 | G34: 4.6094e-07 | H34: 4.6672e-07 | I34: 4.6778e-07 | J34: 4.522e-07 | K34: 4.4767e-07 | L34: 4.5497e-07 | M34: 4.5314e-07 | N34: 4.2661e-07
A35: Облігації ДІУ (10 - річні) | B35: 0.04166550871 | C35: 0.03975863487 | D35: 0.03696257934 | E35: 0.03814165322 | F35: 0.03970376544 | G35: 0.03973614879 | H35: 0.04023431014 | I35: 0.04032550099 | J35: 0.0389829489 | K35: 0.03859233829 | L35: 0.0392219141 | M35: 0.03906345522 | N35: 0.03677706676
A36: Облігації ДІУ (5 - річні) | B36: 0.1249965261 | C36: 0.1192759046 | D36: 0.110887738 | E36: 0.1144249597 | F36: 0.1191112963 | G36: 0.1192084464 | H36: 0.1207029304 | I36: 0.120976503 | J36: 0.1169488467 | K36: 0.1157770149 | L36: 0.1176657423 | M36: 0.1171903657 | N36: 0.1103312003
A37: Облігації ДІУ (7 - річні) | B37: 0.1333296278 | C37: 0.1272276316 | D37: 0.110887738 | E37: 0.1144249597 | F37: 0.1191112963 | G37: 0.1192084464 | H37: 0.1207029304 | I37: 0.120976503 | J37: 0.1169488467 | K37: 0.1157770149 | L37: 0.1176657423 | M37: 0.1171903657 | N37: 0.1103312003
A38: Облігації НАК "Нафтогаз України" (3 - річні) | B38: 0.1999944418 | C38: 0.1908414474 | D38: 0.1774203809 | E38: 0.1830799355 | F38: 0.1905780741 | G38: 0.1907335142 | H38: 0.1931246887 | I38: 0.1935624048 | J38: 0.1871181547 | K38: 0.1852432238 | L38: 0.1882651877 | M38: 0.1875045851 | N38: 0.1765299205
A39: Облігації Укравтодору (3 - річні) | B39: 0.01041637718 | C39: 0.00993965872 | D39: 0.00924064484 | E39: 0.0095354133 | F39: 0.00992594136 | G39: 0.0099340372 | H39: 0.01005857753 | I39: 0.01008137525 | J39: 0 | K39: 0 | L39: 0 | M39: 0 | N39: 0
A40: Облігації Укравтодору (5 - річні) | B40: 0.1729118612 | C40: 0.1649983347 | D40: 0.1533947043 | E40: 0.1582878609 | F40: 0.1647706266 | G40: 0.1649050175 | H40: 0.1669723871 | I40: 0.1673508291 | J40: 0.1617792379 | K40: 0.1601582039 | L40: 0.1627709435 | M40: 0.1621133392 | N40: 0.1526248271
A41: 2. Заборгованість перед банківськими та іншими фінансовими установами | B41: =SUM(B$42:B$44) -> 0.2107645032 | C41: 0.1888249388 | D41: 0.1755456847 | E41: 0.1811454381 | F41: 0.1732522969 | G41: 0.1703557771 | H41: 0.1694155684 | I41: 0.1648331634 | J41: 0.1528713351 | K41: 0.1383262126 | L41: 0.1356423866 | M41: 0.1321352089 | N41: 0.1152412696
A42: ВАТ "Державний експортно-імпортний банк України" | B42: 0.04374878415 | C42: 0.03130992496 | D42: 0.02910803123 | E42: 0.03003655191 | F42: 0.02084447686 | G42: 0.02086147812 | H42: 0.02112301282 | I42: 0.02117088802 | J42: 0.01697223709 | K42: 0.006739213 | L42: 0.006739213 | M42: 0.006739213 | N42: 0
A43: ВАТ "Державний ощадний банк України" | B43: 0.160823127 | C43: 0.1519719077 | D43: 0.1412843705 | E43: 0.145791218 | F43: 0.1472379328 | G43: 0.1443201951 | H43: 0.1430535853 | I43: 0.1387827247 | J43: 0.1311820015 | K43: 0.1269171687 | L43: 0.1245182938 | M43: 0.1210288313 | N43: 0.1111297157
A44: ПАТ АБ "Укргазбанк" | B44: 0.00619259196 | C44: 0.00554310606 | D44: 0.005153283 | E44: 0.00531766822 | F44: 0.0051698872 | G44: 0.00517410389 | H44: 0.00523897023 | I44: 0.00487955072 | J44: 0.00471709643 | K44: 0.00466983095 | L44: 0.00438487978 | M44: 0.00436716461 | N44: 0.00411155398
A45: 3. Заборгованість, не віднесена до інших категорій | B45: =SUM(B$46:B$46) -> 3.977598e-05 | C45: 3.795558e-05 | D45: 3.528633e-05 | E45: 3.641193e-05 | F45: 3.79032e-05 | G45: 3.793411e-05 | H45: 3.840968e-05 | I45: 3.849674e-05 | J45: 3.721507e-05 | K45: 3.684218e-05 | L45: 3.74432e-05 | M45: 3.729193e-05 | N45: 3.510923e-05
A46: Інші кредитори | B46: 3.977598e-05 | C46: 3.795558e-05 | D46: 3.528633e-05 | E46: 3.641193e-05 | F46: 3.79032e-05 | G46: 3.793411e-05 | H46: 3.840968e-05 | I46: 3.849674e-05 | J46: 3.721507e-05 | K46: 3.684218e-05 | L46: 3.74432e-05 | M46: 3.729193e-05 | N46: 3.510923e-05
A47: Зовнішній борг | B47: =B$48+B$71 -> 43.44544179 | C47: 43.57599762 | D47: 43.44841164 | E47: 44.12855835 | F47: 44.55273467 | G47: 44.13184839 | H47: 44.16123941 | I47: 44.20706307 | J47: 44.36478245 | K47: 46.4045281 | L47: 46.04175818 | M47: 45.66073848 | N47: 45.60461814
A48: Державний борг | B48: =B$49+B$56+B$62+B$64+B$69 -> 34.42697981 | C48: 34.34924819 | D48: 34.72025697 | E48: 35.28878487 | F48: 35.79691999 | G48: 35.60646298 | H48: 35.649108 | I48: 35.57856121 | J48: 35.61171712 | K48: 36.62586502 | L48: 36.36854837 | M48: 36.08886436 | N48: 36.04834037
A49: 1. Заборгованість за позиками, одержаними від міжнародних фінансових організацій | B49: =SUM(B$50:B$55) -> 14.05999638 | C49: 13.99007815 | D49: 14.01865264 | E49: 14.20931827 | F49: 14.25186646 | G49: 14.10652644 | H49: 14.10570933 | I49: 14.05825757 | J49: 14.0672188 | K49: 14.07894211 | L49: 13.88520388 | M49: 13.67991529 | N49: 13.67533621
A50: Європейське Співтовариство | B50: 2.414646022 | C50: 2.409563023 | D50: 2.432326038 | E50: 2.502604032 | F50: 2.510118044 | G50: 2.461719033 | H50: 2.450890037 | I50: 2.450889979 | J50: 2.468128022 | K50: 2.479840964 | L50: 2.413762028 | M50: 2.337296005 | N50: 2.310113011
A51: Європейський банк реконструкції та розвитку | B51: 0.582929594 | C51: 0.5852621355 | D51: 0.5910105311 | E51: 0.6076941691 | F51: 0.6193363581 | G51: 0.5913878686 | H51: 0.5977430895 | I51: 0.6029812771 | J51: 0.6072296209 | K51: 0.6137337998 | L51: 0.6036220025 | M51: 0.572814689 | N51: 0.591002251
A52: Європейський Інвестиційний Банк | B52: 0.5220748706 | C52: 0.5209758664 | D52: 0.519321413 | E52: 0.534326337 | F52: 0.5382022396 | G52: 0.5278248567 | H52: 0.525502978 | I52: 0.5365929654 | J52: 0.5322795347 | K52: 0.5348055622 | L52: 0.5205548973 | M52: 0.5040641405 | N52: 0.5340904563
A53: Міжнародний банк реконструкції та розвитку | B53: 5.197652457 | C53: 5.151760007 | D53: 5.150323954 | E53: 5.132993916 | F53: 5.136189738 | G53: 5.116797125 | H53: 5.138328953 | I53: 5.095609794 | J53: 5.083690876 | K53: 5.068933877 | L53: 5.050088263 | M53: 5.045353515 | N53: 5.055394225
A54: Міжнародний Валютний Фонд | B54: 5.341838923 | C54: 5.321662601 | D54: 5.324816192 | E54: 5.430845298 | F54: 5.44716557 | G54: 5.407943046 | H54: 5.392389762 | I54: 5.371329039 | J54: 5.375036232 | K54: 5.38070817 | L54: 5.296036955 | M54: 5.218605592 | N54: 5.18225106
A55: Фонд чистих технологій (МБРР) | B55: 0.0008545125 | C55: 0.0008545125 | D55: 0.0008545125 | E55: 0.0008545125 | F55: 0.0008545125 | G55: 0.0008545125 | H55: 0.0008545125 | I55: 0.0008545125 | J55: 0.0008545125 | K55: 0.00091973702 | L55: 0.00113973702 | M55: 0.00178135187 | N55: 0.00248521025
A56: 2. Заборгованість за позиками, одержаними від органів управління іноземних держав | B56: =SUM(B$57:B$61) -> 1.362817423 | C56: 1.361431453 | D56: 1.387091611 | E56: 1.731176013 | F56: 1.766435833 | G56: 1.733814548 | H56: 1.782231529 | I56: 1.76584553 | J56: 1.788858859 | K56: 1.789476348 | L56: 1.752872016 | M56: 1.70314462 | N56: 1.678781308
A57: Канада | B57: 0.2880759272 | C57: 0.2839877545 | D57: 0.2952847318 | E57: 0.3069874593 | F57: 0.3185527914 | G57: 0.3067749895 | H57: 0.307905885 | I57: 0.3039397047 | J57: 0.3067710459 | K57: 0.3056868551 | L57: 0.2987622309 | M57: 0.2972456436 | N57: 0.295407655
A58: Німеччина | B58: 0.226168202 | C58: 0.2256921021 | D58: 0.2278242036 | E58: 0.234406803 | F58: 0.2351106041 | G58: 0.2305773031 | H58: 0.2295630035 | I58: 0.229562998 | J58: 0.2352263385 | K58: 0.2363426471 | L58: 0.2300449566 | M58: 0.2227573191 | N58: 0.2200474642
A59: Росія | B59: 0.60585586 | C59: 0.60585586 | D59: 0.60585586 | E59: 0.60585586 | F59: 0.60585586 | G59: 0.60585586 | H59: 0.60585586 | I59: 0.60585586 | J59: 0.60585586 | K59: 0.60585586 | L59: 0.60585586 | M59: 0.60585586 | N59: 0.60585586
A60: США | B60: 0.00902199743 | C60: 0.00902199743 | D60: 0.00902199743 | E60: 0.00902199743 | F60: 0.00902199743 | G60: 0.00902199743 | H60: 0.00902199743 | I60: 0.00902199743 | J60: 0.00902199743 | K60: 0.00902199743 | L60: 0.00902199743 | M60: 0.00902199743 | N60: 0.00759709027
A61: Японія | B61: 0.2336954364 | C61: 0.2368737388 | D61: 0.2491048182 | E61: 0.5749038937 | F61: 0.5978945803 | G61: 0.5815843982 | H61: 0.6298847832 | I61: 0.6174649704 | J61: 0.6319836169 | K61: 0.6325689882 | L61: 0.6091869709 | M61: 0.5682638 | N61: 0.5498732387
A62: 3. Заборгованість за позиками, одержаними від іноземних комерційних банків, інших іноземних фінансових установ | B62: =SUM(B$63:B$63) -> 5.586376e-05 | C62: 5.574617e-05 | D62: 5.62728e-05 | E62: 5.789871e-05 | F62: 5.807255e-05 | G62: 5.695282e-05 | H62: 5.670228e-05 | I62: 5.670228e-05 | J62: 5.710109e-05 | K62: 5.737207e-05 | L62: 5.584331e-05 | M62: 5.407424e-05 | N62: 5.344535e-05
A63: Chase Manhattan Bank Luxembourg S.A. | B63: 5.586376e-05 | C63: 5.574617e-05 | D63: 5.62728e-05 | E63: 5.789871e-05 | F63: 5.807255e-05 | G63: 5.695282e-05 | H63: 5.670228e-05 | I63: 5.670228e-05 | J63: 5.710109e-05 | K63: 5.737207e-05 | L63: 5.584331e-05 | M63: 5.407424e-05 | N63: 5.344535e-05
A64: 4. Заборгованість за випущеними цінними паперами на зовнішньому ринку | B64: =SUM(B$65:B$68) -> 17.302433 | C64: 17.302433 | D64: 17.618202 | E64: 17.618202 | F64: 18.04333 | G64: 18.04333 | H64: 18.04333 | I64: 18.04333 | J64: 18.04333 | K64: 19.04333 | L64: 19.04333 | M64: 19.04333 | N64: 19.04333
A65: ОЗДП 2013 року | B65: 3 | C65: 3 | D65: 3 | E65: 3 | F65: 3 | G65: 3 | H65: 3 | I65: 3 | J65: 3 | K65: 3 | L65: 3 | M65: 3 | N65: 3
A66: ОЗДП 2014 року | B66: 1 | C66: 1 | D66: 1 | E66: 1 | F66: 1 | G66: 1 | H66: 1 | I66: 1 | J66: 1 | K66: 1 | L66: 1 | M66: 1 | N66: 1
A67: ОЗДП 2015 року | B67: 13.302433 | C67: 13.302433 | D67: 13.618202 | E67: 13.618202 | F67: 14.04333 | G67: 14.04333 | H67: 14.04333 | I67: 14.04333 | J67: 14.04333 | K67: 14.04333 | L67: 14.04333 | M67: 14.04333 | N67: 14.04333
A68: ОЗДП 2016 року | B68: 0 | C68: 0 | D68: 0 | E68: 0 | F68: 0 | G68: 0 | H68: 0 | I68: 0 | J68: 0 | K68: 1 | L68: 1 | M68: 1 | N68: 1
A69: 5. Заборгованість, не віднесена до інших категорій | B69: =SUM(B$70:B$70) -> 1.701677142 | C69: 1.695249845 | D69: 1.696254441 | E69: 1.730030695 | F69: 1.735229623 | G69: 1.722735035 | H69: 1.717780437 | I69: 1.711071408 | J69: 1.712252358 | K69: 1.71405919 | L69: 1.687086631 | M69: 1.662420372 | N69: 1.650839402
A70: Міжнародний Валютний Фонд | B70: 1.701677142 | C70: 1.695249845 | D70: 1.696254441 | E70: 1.730030695 | F70: 1.735229623 | G70: 1.722735035 | H70: 1.717780437 | I70: 1.711071408 | J70: 1.712252358 | K70: 1.71405919 | L70: 1.687086631 | M70: 1.662420372 | N70: 1.650839402
A71: Гарантований державою борг | B71: =B$72+B$78+B$80+B$90+B$91 -> 9.018461978 | C71: 9.226749428 | D71: 8.728154669 | E71: 8.839773473 | F71: 8.755814682 | G71: 8.525385409 | H71: 8.51213141 | I71: 8.628501865 | J71: 8.753065338 | K71: 9.778663085 | L71: 9.673209813 | M71: 9.571874122 | N71: 9.556277774
A72: 1. Заборгованість за позиками, одержаними від міжнародних фінансових організацій | B72: =SUM(B$73:B$77) -> 5.867912051 | C72: 6.101178817 | D72: 6.010196306 | E72: 6.123036202 | F72: 6.137110812 | G72: 5.918357265 | H72: 5.905656704 | I72: 6.059872554 | J72: 6.183953752 | K72: 7.213926113 | L72: 7.118143118 | M72: 7.036397554 | N72: 7.022031708
A73: Європейське співтоватиство з атомної енергії | B73: 0.0190260701 | C73: 0.0190036451 | D73: 0.01910407017 | E73: 0.01720594011 | F73: 0.01607456515 | G73: 0.01590374512 | H73: 0.01586552513 | I73: 0.01586552493 | J73: 0.01592636508 | K73: 0.0137796099 | L73: 0.01115492507 | M73: 0.01095251501 | N73: 0.01088056003
A74: Європейський банк реконструкції та розвитку | B74: 0.127085772 | C74: 0.3784372681 | D74: 0.2739799786 | E74: 0.272425115 | F74: 0.2724649218 | G74: 0.07920739957 | H74: 0.07358309631 | I74: 0.2432654447 | J74: 0.3587025128 | K74: 0.3845627717 | L74: 0.3841550737 | M74: 0.3920900282 | N74: 0.3866942552
A75: Європейський Інвестиційний Банк | B75: 0 | C75: 0 | D75: 0.00550300009 | E75: 0.00566200007 | F75: 0.0056790001 | G75: 0.00556950007 | H75: 0.00554500008 | I75: 0.0110899999 | J75: 0.0111680001 | K75: 0.01122099984 | L75: 0.02184400025 | M75: 0.02115200005 | N75: 0.03658550017
A76: Міжнародний банк реконструкції та розвитку | B76: 0.3924467181 | C76: 0.394513577 | D76: 0.3992387109 | E76: 0.4095913143 | F76: 0.4084583665 | G76: 0.4223735116 | H76: 0.430876905 | I76: 0.430876905 | J76: 0.4356836669 | K76: 0.4366747138 | L76: 0.433503502 | M76: 0.4363519424 | N76: 0.4550433454
A77: Міжнародний Валютний Фонд | B77: 5.329353491 | C77: 5.309224327 | D77: 5.312370546 | E77: 5.418151832 | F77: 5.434433959 | G77: 5.395303109 | H77: 5.379786178 | I77: 5.35877468 | J77: 5.362473207 | K77: 6.367688018 | L77: 6.267485617 | M77: 6.175851069 | N77: 6.132828047
A78: 2. Заборгованість за позиками, одержаними від органів управління іноземних держав | B78: =SUM(B$79:B$79) -> 0.1949557066 | C78: 0.1705862433 | D78: 0.1705862433 | E78: 0.1705862433 | F78: 0.1705862433 | G78: 0.1705862433 | H78: 0.1705862433 | I78: 0.14621678 | J78: 0.14621678 | K78: 0.14621678 | L78: 0.14621678 | M78: 0.14621678 | N78: 0.14621678
A79: Канада | B79: 0.1949557066 | C79: 0.1705862433 | D79: 0.1705862433 | E79: 0.1705862433 | F79: 0.1705862433 | G79: 0.1705862433 | H79: 0.1705862433 | I79: 0.14621678 | J79: 0.14621678 | K79: 0.14621678 | L79: 0.14621678 | M79: 0.14621678 | N79: 0.14621678
A80: 3. Заборгованість за позиками, одержаними від іноземних комерційних банків, інших іноземних фінансових установ | B80: =SUM(B$81:B$89) -> 2.842735602 | C80: 2.84255202 | D80: 2.434873145 | E80: 2.431411945 | F80: 2.33303374 | G80: 2.32218668 | H80: 2.321961841 | I80: 2.308930865 | J80: 2.309334818 | K80: 2.304840371 | L80: 2.296958968 | M80: 2.279004756 | N80: 2.278542328
A81: Citibank, N.A. London | B81: 0.04077388535 | C81: 0.04068805347 | D81: 0 | E81: 0 | F81: 0 | G81: 0 | H81: 0 | I81: 0 | J81: 0 | K81: 0 | L81: 0 | M81: 0 | N81: 0
A82: Credit Suisse International | B82: 0.1008 | C82: 0.1008 | D82: 0.1008 | E82: 0.1008 | F82: 0 | G82: 0 | H82: 0 | I82: 0 | J82: 0 | K82: 0 | L82: 0 | M82: 0 | N82: 0
A83: Deutsche Bank AG London | B83: 0 | C83: 0 | D83: 0 | E83: 0 | F83: 0.00875174452 | G83: 0.01505173498 | H83: 0.01501432012 | I83: 0.01501431976 | J83: 0.01511992119 | K83: 0.01519167547 | L83: 0.01478687139 | M83: 0.0143184353 | N83: 0.01427420651
A84: UniCredit Bank Austria AG | B84: 0.04643550014 | C84: 0.04633775017 | D84: 0.04677550046 | E84: 0.0433143003 | F84: 0.04344435049 | G84: 0.04260667531 | H84: 0.04241925039 | I84: 0.04241924938 | J84: 0.04271760012 | K84: 0.03815139921 | L84: 0.03713480019 | M84: 0.03595839985 | N84: 0.03554019995
A85: ВАТ "Газпромбанк" | B85: 0.5 | C85: 0.5 | D85: 0.5 | E85: 0.5 | F85: 0.5 | G85: 0.5 | H85: 0.5 | I85: 0.5 | J85: 0.5 | K85: 0.5 | L85: 0.5 | M85: 0.5 | N85: 0.5
A86: Державний банк розвитку КНР | B86: 0.07208 | C86: 0.07208 | D86: 0.07208 | E86: 0.07208 | F86: 0.06562 | G86: 0.06562 | H86: 0.06562 | I86: 0.06562 | J86: 0.06562 | K86: 0.06562 | L86: 0.05916 | M86: 0.05916 | N86: 0.05916
A87: Експортно-імпортний банк Китаю | B87: 1.552123895 | C87: 1.552123895 | D87: 1.552123895 | E87: 1.552123895 | F87: 1.552123895 | G87: 1.552123895 | H87: 1.552123895 | I87: 1.539092921 | J87: 1.539092921 | K87: 1.539092921 | L87: 1.539092921 | M87: 1.539092921 | N87: 1.539092921
A88: Експортно-імпортний банк Кореї | B88: 0.16309375 | C88: 0.16309375 | D88: 0.16309375 | E88: 0.16309375 | F88: 0.16309375 | G88: 0.146784375 | H88: 0.146784375 | I88: 0.146784375 | J88: 0.146784375 | K88: 0.146784375 | L88: 0.146784375 | M88: 0.130475 | N88: 0.130475
A89: Сбербанк Росії | B89: 0.3674285714 | C89: 0.3674285714 | D89: 0 | E89: 0 | F89: 0 | G89: 0 | H89: 0 | I89: 0 | J89: 0 | K89: 0 | L89: 0 | M89: 0 | N89: 0
A90: 4. Заборгованість за випущеними цінними паперами на зовнішньому ринку
A91: 5. Заборгованість, не віднесена до інших категорій | B91: =SUM(B$92:B$92) -> 0.1128586189 | C91: 0.1124323478 | D91: 0.1124989746 | E91: 0.1147390831 | F91: 0.1150838863 | G91: 0.1142552204 | H91: 0.1139266215 | I91: 0.1134816654 | J91: 0.1135599883 | K91: 0.1136798211 | L91: 0.1118909471 | M91: 0.1102550317 | N91: 0.1094869587
A92: Міжнародний Валютний Фонд | B92: 0.1128586189 | C92: 0.1124323478 | D92: 0.1124989746 | E92: 0.1147390831 | F92: 0.1150838863 | G92: 0.1142552204 | H92: 0.1139266215 | I92: 0.1134816654 | J92: 0.1135599883 | K92: 0.1136798211 | L92: 0.1118909471 | M92: 0.1102550317 | N92: 0.1094869587

Sheet DKT2
A2: ="Державний та гарантований державою борг України за станом на " & TEXT(DREPORTDATE,"dd.MM.yyyy") -> Державний та гарантований державою борг України за станом на 31.12.2016
A3: (за ознакою умовності)
D5: =VALVAL -> млрд. одиниць
B6: дол.США | C6: грн. | D6: %
A7: Загальна сума державного та гарантованого державою боргу | B7: =B$8+B$55 -> 70.97086461 | C7: 1929.758702 | D7: 0.999999
A8: Державний борг | B8: =B$9+B$32 -> 60.71271582 | C8: 1650.830835 | D8: 0.855458
A9: Внутрішній борг | B9: =B$10+B$30 -> 24.66437545 | C9: 670.6455305 | D9: 0.347527
A10: 1. Заборгованість за випущеними цінними паперами на внутрішньому ринку | B10: =SUM(B$11:B$29) -> 24.57196211 | C10: 668.1327326 | D10: 0.346225
A11: ОВДП (10 - річні) | B11: 2.752137612 | C11: 74.832983 | D11: 0.038778
A12: ОВДП (11 - річні) | B12: 0.6392950528 | C12: 17.382981 | D12: 0.009008
A13: ОВДП (12 - місячні) | B13: 0.1278948241 | C13: 3.47757 | D13: 0.001802
A14: ОВДП (12 - річні) | B14: 1.048146403 | C14: 28.5 | D14: 0.014769
A15: ОВДП (13 - річні) | B15: 1.365077557 | C15: 37.11763 | D15: 0.019234
A16: ОВДП (14 - річні) | B16: 1.884824672 | C16: 51.25 | D16: 0.026558
A17: ОВДП (15 - річні) | B17: 1.573684729 | C17: 42.789838 | D17: 0.022174
A18: ОВДП (18 - місячні) | B18: 1.076022 | C18: 29.25796141 | D18: 0.015161
A19: ОВДП (2 - річні) | B19: 2.366730742 | C19: 64.35343953 | D19: 0.033348
A20: ОВДП (3 - місячні) | B20: 0.00036777067 | C20: 0.01 | D20: 5e-06
A21: ОВДП (3 - річні) | B21: 0.6789923657 | C21: 18.462385 | D21: 0.009567
A22: ОВДП (4 - річні) | B22: 0.5731903451 | C22: 15.58553728 | D22: 0.008076
A23: ОВДП (5 - річні) | B23: 5.574287189 | C23: 151.5696514 | D23: 0.078543
A24: ОВДП (6 - місячні) | B24: 0.00793652779 | C24: 0.215801 | D24: 0.000112
A25: ОВДП (6 - річні) | B25: 0.886327309 | C25: 24.1 | D25: 0.012489
A26: ОВДП (7 - річні) | B26: 1.645398281 | C26: 44.739791 | D26: 0.023184
A27: ОВДП (8 - річні) | B27: 1.008287344 | C27: 27.416198 | D27: 0.014207
A28: ОВДП (9 - місячні) | B28: 0.00722915769 | C28: 0.196567 | D28: 0.000102
A29: ОВДП (9 - річні) | B29: 1.356132234 | C29: 36.874399 | D29: 0.019108
A30: 2. Заборгованість перед банківськими та іншими фінансовими установами | B30: =SUM(B$31:B$31) -> 0.09241333715 | C30: 2.512797928 | D30: 0.001302
A31: Національний банк України | B31: 0.09241333715 | C31: 2.512797928 | D31: 0.001302
A32: Зовнішній борг | B32: =B$33+B$40+B$46+B$48+B$53 -> 36.04834037 | C32: 980.1853041 | D32: 0.507931
A33: 1. Заборгованість за позиками, одержаними від міжнародних фінансових організацій | B33: =SUM(B$34:B$39) -> 13.67533621 | C33: 371.8441251 | D33: 0.192688
A34: Європейське Співтовариство | B34: 2.310113011 | C34: 62.81395484 | D34: 0.03255
A35: Європейський банк реконструкції та розвитку | B35: 0.591002251 | C35: 16.06985828 | D35: 0.008327
A36: Європейський Інвестиційний Банк | B36: 0.5340904563 | C36: 14.52237776 | D36: 0.007525
A37: Міжнародний банк реконструкції та розвитку | B37: 5.055394225 | C37: 137.4605065 | D37: 0.071232
A38: Міжнародний Валютний Фонд | B38: 5.18225106 | C38: 140.9098527 | D38: 0.073019
A39: Фонд чистих технологій (МБРР) | B39: 0.00248521025 | C39: 0.06757499901 | D39: 3.5e-05
A40: 2. Заборгованість за позиками, одержаними від органів управління іноземних держав | B40: =SUM(B$41:B$45) -> 1.678781308 | C40: 45.64750416 | D40: 0.023655
A41: Канада | B41: 0.295407655 | C41: 8.0323876 | D41: 0.004162
A42: Німеччина | B42: 0.2200474642 | C42: 5.983279353 | D42: 0.003101
A43: Росія | B43: 0.60585586 | C43: 16.47374066 | D43: 0.008537
A44: США | B44: 0.00759709027 | C44: 0.2065714027 | D44: 0.000107
A45: Японія | B45: 0.5498732387 | C45: 14.95152515 | D45: 0.007748
A46: 3. Заборгованість за позиками, одержаними від іноземних комерційних банків, інших іноземних фінансових установ | B46: =SUM(B$47:B$47) -> 5.344535e-05 | C46: 0.001453225 | D46: 1e-06
A47: Chase Manhattan Bank Luxembourg S.A. | B47: 5.344535e-05 | C47: 0.001453225 | D47: 1e-06
A48: 4. Заборгованість за випущеними цінними паперами на зовнішньому ринку | B48: =SUM(B$49:B$52) -> 19.04333 | C48: 517.8044819 | D48: 0.268326
A49: ОЗДП 2013 року | B49: 3 | C49: 81.572574 | D49: 0.042271
A50: ОЗДП 2014 року | B50: 1 | C50: 27.190858 | D50: 0.01409
A51: ОЗДП 2015 року | B51: 14.04333 | C51: 381.8501919 | D51: 0.197875
A52: ОЗДП 2016 року | B52: 1 | C52: 27.190858 | D52: 0.01409
A53: 5. Заборгованість, не віднесена до інших категорій | B53: =SUM(B$54:B$54) -> 1.650839402 | C53: 44.88773975 | D53: 0.023261
A54: Міжнародний Валютний Фонд | B54: 1.650839402 | C54: 44.88773975 | D54: 0.023261
A55: Гарантований державою борг | B55: =B$56+B$69 -> 10.25814879 | C55: 278.9278672 | D55: 0.144541
A56: Внутрішній борг | B56: =B$57+B$64+B$67 -> 0.7018710203 | C56: 19.08447525 | D56: 0.00989
A57: 1. Заборгованість за випущеними цінними паперами на внутрішньому ринку | B57: =SUM(B$58:B$63) -> 0.5865946415 | C57: 15.9500116 | D57: 0.008266
A58: Державні цінні папери | B58: 4.2661e-07 | C58: 1.16e-05 | D58: 0
A59: Облігації ДІУ (10 - річні) | B59: 0.03677706676 | C59: 1 | D59: 0.000518
A60: Облігації ДІУ (5 - річні) | B60: 0.1103312003 | C60: 3 | D60: 0.001555
A61: Облігації ДІУ (7 - річні) | B61: 0.1103312003 | C61: 3 | D61: 0.001555
A62: Облігації НАК "Нафтогаз України" (3 - річні) | B62: 0.1765299205 | C62: 4.8 | D62: 0.002487
A63: Облігації Укравтодору (5 - річні) | B63: 0.1526248271 | C63: 4.15 | D63: 0.002151
A64: 2. Заборгованість перед банківськими та іншими фінансовими установами | B64: =SUM(B$65:B$66) -> 0.1152412696 | C64: 3.133508998 | D64: 0.001624
A65: ВАТ "Державний ощадний банк України" | B65: 0.1111297157 | C65: 3.021712318 | D65: 0.001566
A66: ПАТ АБ "Укргазбанк" | B66: 0.00411155398 | C66: 0.1117966802 | D66: 5.8e-05
A67: 3. Заборгованість, не віднесена до інших категорій | B67: =SUM(B$68:B$68) -> 3.510923e-05 | C67: 0.00095465 | D67: 0
A68: Інші кредитори | B68: 3.510923e-05 | C68: 0.00095465 | D68: 0
A69: Зовнішній борг | B69: =B$70+B$76+B$78+B$85+B$86 -> 9.556277774 | C69: 259.843392 | D69: 0.134651
A70: 1. Заборгованість за позиками, одержаними від міжнародних фінансових організацій | B70: =SUM(B$71:B$75) -> 7.022031708 | C70: 190.935067 | D70: 0.098943
A71: Європейське співтоватиство з атомної енергії | B71: 0.01088056003 | C71: 0.2958517627 | D71: 0.000153
A72: Європейський банк реконструкції та розвитку | B72: 0.3866942552 | C72: 10.51454858 | D72: 0.005449
A73: Європейський Інвестиційний Банк | B73: 0.03658550017 | C73: 0.99479114 | D73: 0.000516
A74: Міжнародний банк реконструкції та розвитку | B74: 0.4550433454 | C74: 12.37301899 | D74: 0.006412
A75: Міжнародний Валютний Фонд | B75: 6.132828047 | C75: 166.7568566 | D75: 0.086413
A76: 2. Заборгованість за позиками, одержаними від органів управління іноземних держав | B76: =SUM(B$77:B$77) -> 0.14621678 | C76: 3.975759701 | D76: 0.00206
A77: Канада | B77: 0.14621678 | C77: 3.975759701 | D77: 0.00206
A78: 3. Заборгованість за позиками, одержаними від іноземних комерційних банків, інших іноземних фінансових установ | B78: =SUM(B$79:B$84) -> 2.278542328 | C78: 61.95552088 | D78: 0.032105
A79: Deutsche Bank AG London | B79: 0.01427420651 | C79: 0.3881279224 | D79: 0.000201
A80: UniCredit Bank Austria AG | B80: 0.03554019995 | C80: 0.96636853 | D80: 0.000501
A81: ВАТ "Газпромбанк" | B81: 0.5 | C81: 13.595429 | D81: 0.007045
A82: Державний банк розвитку КНР | B82: 0.05916 | C82: 1.608611159 | D82: 0.000834
A83: Експортно-імпортний банк Китаю | B83: 1.539092921 | C83: 41.84925707 | D83: 0.021686
A84: Експортно-імпортний банк Кореї | B84: 0.130475 | C84: 3.547727198 | D84: 0.001838
A85: 4. Заборгованість за випущеними цінними паперами на зовнішньому ринку
A86: 5. Заборгованість, не віднесена до інших категорій | B86: =SUM(B$87:B$87) -> 0.1094869587 | C86: 2.977044347 | D86: 0.001543
A87: Міжнародний Валютний Фонд | B87: 0.1094869587 | C87: 2.977044347 | D87: 0.001543

Sheet MKT2_UAH
A2: Державний та гарантований державою борг України за поточний рік
N4: =VALUAH -> млрд. грн
B5: 2015-12-31 | C5: 2016-01-31 | D5: 2016-02-29 | E5: 2016-03-31 | F5: 2016-04-30 | G5: 2016-05-31 | H5: 2016-06-30 | I5: 2016-07-31 | J5: 2016-08-31 | K5: 2016-09-30 | L5: 2016-10-31 | M5: 2016-11-30 | N5: 2016-12-31
A6: Загальна сума державного та гарантованого державою боргу | B6: =B$7+B$55 -> 1572.180159 | C6: 1645.619663 | D6: 1740.938652 | E6: 1710.385692 | F6: 1690.006869 | G6: 1683.58637 | H6: 1668.292355 | I6: 1661.617607 | J6: 1711.549346 | K6: 1778.033864 | L6: 1742.649606 | M6: 1728.919126 | N6: 1929.758702
A7: Державний борг | B7: =B$8+B$32 -> 1334.271601 | C7: 1392.400345 | D7: 1483.853513 | E7: 1457.673768 | F7: 1448.913707 | G7: 1448.548364 | H7: 1436.316669 | I7: 1427.357725 | J7: 1467.141146 | K7: 1505.115072 | L7: 1476.612625 | M7: 1464.551595 | N7: 1650.830835
A8: Внутрішній борг | B8: =B$9+B$30 -> 508.0011231 | C8: 528.4559892 | D8: 544.5181747 | E8: 532.4704305 | F8: 547.3135796 | G8: 552.476045 | H8: 550.2791583 | I8: 545.0733059 | J8: 553.6207961 | K8: 556.0700889 | L8: 549.3618973 | M8: 540.6992592 | N8: 670.6455305
A9: 1. Заборгованість за випущеними цінними паперами на внутрішньому ринку | B9: =SUM(B$10:B$29) -> 505.3560727 | C9: 525.8109387 | D9: 541.8731242 | E9: 529.8584432 | F9: 544.7015923 | G9: 549.8640577 | H9: 547.7002341 | I9: 542.4943817 | J9: 551.0418719 | K9: 553.5242278 | L9: 546.8160362 | M9: 538.1533981 | N9: 668.1327326
A10: Казначейські зобов'язання | B10: 0.098638 | C10: 0.0996 | D10: 0.0996 | E10: 0.0996 | F10: 0.0996 | G10: 0 | H10: 0 | I10: 0 | J10: 0 | K10: 0 | L10: 0 | M10: 0 | N10: 0
A11: ОВДП (10 - річні) | B11: 60.558463 | C11: 74.832983 | D11: 74.832983 | E11: 74.832983 | F11: 74.832983 | G11: 74.832983 | H11: 74.832983 | I11: 74.832983 | J11: 74.832983 | K11: 74.832983 | L11: 74.832983 | M11: 74.832983 | N11: 74.832983
A12: ОВДП (11 - річні) | B12: 17.382981 | C12: 17.382981 | D12: 17.382981 | E12: 17.382981 | F12: 17.382981 | G12: 17.382981 | H12: 17.382981 | I12: 17.382981 | J12: 17.382981 | K12: 17.382981 | L12: 17.382981 | M12: 17.382981 | N12: 17.382981
A13: ОВДП (12 - місячні) | B13: 8.283710212 | C13: 8.781007312 | D13: 9.437687091 | E13: 9.199030938 | F13: 9.443004207 | G13: 10.13591976 | H13: 6.849757734 | I13: 2.70457 | J13: 2.71457 | K13: 2.73757 | L13: 2.91257 | M13: 2.96757 | N13: 3.47757
A14: ОВДП (12 - річні) | B14: 12.5 | C14: 12.5 | D14: 12.5 | E14: 12.5 | F14: 12.5 | G14: 12.5 | H14: 12.5 | I14: 12.5 | J14: 12.5 | K14: 12.5 | L14: 12.5 | M14: 12.5 | N14: 28.5
A15: ОВДП (13 - річні) | B15: 13.11763 | C15: 13.11763 | D15: 13.11763 | E15: 13.11763 | F15: 13.11763 | G15: 13.11763 | H15: 13.11763 | I15: 13.11763 | J15: 13.11763 | K15: 13.11763 | L15: 13.11763 | M15: 13.11763 | N15: 37.11763
A16: ОВДП (14 - річні) | B16: 3.25 | C16: 3.25 | D16: 3.25 | E16: 3.25 | F16: 3.25 | G16: 3.25 | H16: 3.25 | I16: 3.25 | J16: 3.25 | K16: 3.25 | L16: 3.25 | M16: 3.25 | N16: 51.25
A17: ОВДП (15 - річні) | B17: 15.84884 | C17: 15.84884 | D17: 15.84884 | E17: 15.84884 | F17: 15.84884 | G17: 15.84884 | H17: 15.84884 | I17: 15.84884 | J17: 15.84884 | K17: 15.84884 | L17: 15.84884 | M17: 15.84884 | N17: 42.789838
A18: ОВДП (18 - місячні) | B18: 1.04892516 | C18: 13.28327801 | D18: 14.29924562 | E18: 13.89056205 | F18: 12.20320024 | G18: 19.0133675 | H18: 18.77795338 | I18: 18.73548949 | J18: 19.38072982 | K18: 19.576891 | L18: 19.26264991 | M18: 19.34078785 | N18: 29.25796141
A19: ОВДП (2 - річні) | B19: 21.91034234 | C19: 22.03955115 | D19: 34.28142733 | E19: 34.17696595 | F19: 49.15849615 | G19: 52.11163869 | H19: 48.93094395 | I19: 49.25223519 | J19: 59.89386161 | K19: 63.51956097 | L19: 65.41787852 | M19: 58.33866393 | N19: 64.35343953
A20: ОВДП (3 - місячні) | B20: 0 | C20: 0 | D20: 0 | E20: 0 | F20: 0.3 | G20: 0.3 | H20: 0.716 | I20: 0.416 | J20: 0.416 | K20: 0 | L20: 0 | M20: 0 | N20: 0.01
A21: ОВДП (3 - річні) | B21: 43.37723613 | C21: 36.36962179 | D21: 38.70498374 | E21: 29.23092083 | F21: 34.19692528 | G21: 32.71795282 | H21: 34.00699511 | I21: 34.85659042 | J21: 30.43820725 | K21: 30.55459206 | L21: 22.75760763 | M21: 21.01802171 | N21: 18.462385
A22: ОВДП (4 - річні) | B22: 15.04510672 | C22: 15.22928304 | D22: 15.53370224 | E22: 15.39988896 | F22: 15.23484448 | G22: 15.23156032 | H22: 15.18170544 | I22: 15.17271264 | J22: 15.33935856 | K22: 15.38090064 | L22: 15.31435216 | M22: 15.33089984 | N22: 15.58553728
A23: ОВДП (5 - річні) | B23: 149.0338121 | C23: 149.1257754 | D23: 148.6336562 | E23: 146.8986525 | F23: 146.287133 | G23: 146.2752296 | H23: 150.4089895 | I23: 149.825665 | J23: 147.6254546 | K23: 150.8460231 | L23: 150.592288 | M23: 150.6522648 | N23: 151.5696514
A24: ОВДП (6 - місячні) | B24: 0 | C24: 0.05 | D24: 0.05 | E24: 0.13 | F24: 0.83 | G24: 0.83 | H24: 0.8835 | I24: 1.08673 | J24: 1.089301 | K24: 0.649301 | L24: 0.299301 | M24: 0.245801 | N24: 0.215801
A25: ОВДП (6 - річні) | B25: 27.1 | C25: 27.1 | D25: 27.1 | E25: 27.1 | F25: 27.1 | G25: 27.1 | H25: 25.6 | I25: 24.1 | J25: 24.1 | K25: 24.1 | L25: 24.1 | M25: 24.1 | N25: 24.1
A26: ОВДП (7 - річні) | B26: 48.624791 | C26: 48.624791 | D26: 48.624791 | E26: 48.624791 | F26: 44.739791 | G26: 41.039791 | H26: 41.039791 | I26: 41.039791 | J26: 44.739791 | K26: 44.739791 | L26: 44.739791 | M26: 44.739791 | N26: 44.739791
A27: ОВДП (8 - річні) | B27: 31.301198 | C27: 31.301198 | D27: 31.301198 | E27: 31.301198 | F27: 31.301198 | G27: 31.301198 | H27: 31.301198 | I27: 31.301198 | J27: 31.301198 | K27: 27.416198 | L27: 27.416198 | M27: 27.416198 | N27: 27.416198
A28: ОВДП (9 - місячні) | B28: 0 | C28: 0 | D28: 0 | E28: 0 | F28: 0.000567 | G28: 0.000567 | H28: 0.196567 | I28: 0.196567 | J28: 0.196567 | K28: 0.196567 | L28: 0.196567 | M28: 0.196567 | N28: 0.196567
A29: ОВДП (9 - річні) | B29: 36.874399 | C29: 36.874399 | D29: 36.874399 | E29: 36.874399 | F29: 36.874399 | G29: 36.874399 | H29: 36.874399 | I29: 36.874399 | J29: 36.874399 | K29: 36.874399 | L29: 36.874399 | M29: 36.874399 | N29: 36.874399
A30: 2. Заборгованість перед банківськими та іншими фінансовими установами | B30: =SUM(B$31:B$31) -> 2.64505045 | C30: 2.64505045 | D30: 2.64505045 | E30: 2.611987319 | F30: 2.611987319 | G30: 2.611987319 | H30: 2.578924189 | I30: 2.578924189 | J30: 2.578924189 | K30: 2.545861058 | L30: 2.545861058 | M30: 2.545861058 | N30: 2.512797928
A31: Національний банк України | B31: 2.64505045 | C31: 2.64505045 | D31: 2.64505045 | E31: 2.611987319 | F31: 2.611987319 | G31: 2.611987319 | H31: 2.578924189 | I31: 2.578924189 | J31: 2.578924189 | K31: 2.545861058 | L31: 2.545861058 | M31: 2.545861058 | N31: 2.512797928
A32: Зовнішній борг | B32: =B$33+B$40+B$46+B$48+B$53 -> 826.2704782 | C32: 863.9443558 | D32: 939.3353381 | E32: 925.203338 | F32: 901.6001277 | G32: 896.0723185 | H32: 886.0375107 | I32: 882.2844189 | J32: 913.5203499 | K32: 949.0449827 | L32: 927.2507272 | M32: 923.852336 | N32: 980.1853041
A33: 1. Заборгованість за позиками, одержаними від міжнародних фінансових організацій | B33: =SUM(B$34:B$39) -> 337.4492911 | C33: 351.8752138 | D33: 379.2660818 | E33: 372.540702 | F33: 358.9550337 | G33: 355.0048726 | H33: 350.589069 | I33: 348.619539 | J33: 360.8556868 | K33: 364.8118444 | L33: 354.0164778 | M33: 350.1972679 | N33: 371.8441251
A34: Європейське Співтовариство | B34: 57.95311509 | C34: 60.60477254 | D34: 65.80509481 | E34: 65.61341267 | F34: 63.22115839 | G34: 61.9516261 | H34: 60.9154234 | I34: 60.77766968 | J34: 63.31301483 | K34: 64.25733899 | L34: 61.54115838 | M34: 59.83331458 | N34: 62.81395484
A35: Європейський банк реконструкції та розвитку | B35: 13.99069907 | C35: 14.72037804 | D35: 15.98942881 | E35: 15.93255976 | F35: 15.59893252 | G35: 14.88286828 | H35: 14.85655122 | I35: 14.95285272 | J35: 15.57680058 | K35: 15.90299596 | L35: 15.389917 | M35: 14.66369746 | N35: 16.06985828
A36: Європейський Інвестиційний Банк | B36: 12.53014512 | C36: 13.10346465 | D36: 14.04992352 | E36: 14.00899783 | F36: 13.55544578 | G36: 13.2832414 | H36: 13.06106595 | I36: 13.30654182 | J36: 13.6541629 | K36: 13.85781702 | L36: 13.27204215 | M36: 12.90372645 | N36: 14.52237776
A37: Міжнародний банк реконструкції та розвитку | B37: 124.7471258 | C37: 129.5758776 | D37: 139.3388677 | E37: 134.5771219 | F37: 129.3627866 | G37: 128.7693267 | H37: 127.7101294 | I37: 126.3619712 | J37: 130.4080635 | K37: 131.3456013 | L37: 128.7568029 | M37: 129.1578916 | N37: 137.4605065
A38: Міжнародний Валютний Фонд | B38: 128.2076972 | C38: 133.8492284 | D38: 144.0596486 | E38: 142.3862062 | F38: 137.1951882 | G38: 136.0963055 | H38: 134.0246606 | I38: 133.1993133 | J38: 137.8817248 | K38: 139.424259 | L38: 135.0274987 | M38: 133.5930363 | N38: 140.9098527
A39: Фонд чистих технологій (МБРР) | B39: 0.02050886997 | C39: 0.02149250101 | D39: 0.02311831358 | E39: 0.02240365658 | F39: 0.021522203 | G39: 0.02150466328 | H39: 0.02123840317 | I39: 0.0211903753 | J39: 0.0219201606 | K39: 0.02383211438 | L39: 0.02905867921 | M39: 0.04560149275 | N39: 0.06757499901
A40: 2. Заборгованість за позиками, одержаними від органів управління іноземних держав | B40: =SUM(B$41:B$45) -> 32.70852715 | C40: 34.24240941 | D40: 37.52691602 | E40: 45.38806967 | F40: 44.49038557 | G40: 43.63318039 | H40: 44.29631136 | I40: 43.7897977 | J40: 45.88823856 | K40: 46.3686946 | L40: 44.69113903 | M40: 43.59943611 | N40: 45.64750416
A41: Канада | B41: 6.9140144 | C41: 7.1427944 | D41: 7.988748 | E41: 8.0486144 | F41: 8.0232388 | G41: 7.7203 | H41: 7.6528188 | I41: 7.5371588 | J41: 7.8693648 | K41: 7.9209208 | L41: 7.6172272 | M41: 7.6093024 | N41: 8.0323876
A42: Німеччина | B42: 5.428187703 | C42: 5.676555618 | D42: 6.163644627 | E42: 6.145690689 | F42: 5.921619813 | G42: 5.80270887 | H42: 5.70565278 | I42: 5.692750056 | J42: 6.034082725 | K42: 6.124082073 | L42: 5.865214943 | M42: 5.702447922 | N42: 5.983279353
A43: Росія | B43: 14.54094475 | C43: 15.23834664 | D43: 16.39106011 | E43: 15.88436287 | F43: 15.25940558 | G43: 15.24696978 | H43: 15.05818934 | I43: 15.02413721 | J43: 15.54156053 | K43: 15.69886374 | L43: 15.44687132 | M43: 15.50953075 | N43: 16.47374066
A44: США | B44: 0.216533956 | C44: 0.2269191953 | D44: 0.244084628 | E44: 0.2365392339 | F44: 0.2272327909 | G44: 0.2270476054 | H44: 0.2242364141 | I44: 0.2237293328 | J44: 0.2314344524 | K44: 0.2337769057 | L44: 0.2300244044 | M44: 0.2309574864 | N44: 0.2065714027
A45: Японія | B45: 5.608846349 | C45: 5.95779356 | D45: 6.739378653 | E45: 15.07286248 | F45: 15.05888859 | G45: 14.63615413 | H45: 15.65541402 | I45: 15.3120223 | J45: 16.21179605 | K45: 16.39105108 | L45: 15.53180116 | M45: 14.54719755 | N45: 14.95152515
A46: 3. Заборгованість за позиками, одержаними від іноземних комерційних банків, інших іноземних фінансових установ | B46: =SUM(B$47:B$47) -> 0.00134076761 | C46: 0.00140211472 | D46: 0.00152242618 | E46: 0.00151799154 | F46: 0.00146264582 | G46: 0.0014332747 | H46: 0.00140930175 | I46: 0.00140611476 | J46: 0.00146477095 | K46: 0.00148661825 | L46: 0.00142377837 | M46: 0.00138426675 | N46: 0.001453225
A47: Chase Manhattan Bank Luxembourg S.A. | B47: 0.00134076761 | C47: 0.00140211472 | D47: 0.00152242618 | E47: 0.00151799154 | F47: 0.00146264582 | G47: 0.0014332747 | H47: 0.00140930175 | I47: 0.00140611476 | J47: 0.00146477095 | K47: 0.00148661825 | L47: 0.00142377837 | M47: 0.00138426675 | N47: 0.001453225
A48: 4. Заборгованість за випущеними цінними паперами на зовнішньому ринку | B48: =SUM(B$49:B$52) -> 415.2699327 | C48: 435.186798 | D48: 476.6496904 | E48: 461.9150067 | F48: 454.4488363 | G48: 454.0784789 | H48: 448.4563035 | I48: 447.4421782 | J48: 462.8518496 | K48: 493.4484627 | L48: 485.5278086 | M48: 487.4973269 | N48: 517.8044819
A49: ОЗДП 2013 року | B49: 72.002001 | C49: 75.455307 | D49: 81.163167 | E49: 78.654168 | F49: 75.559584 | G49: 75.498006 | H49: 74.563227 | I49: 74.394612 | J49: 76.956723 | K49: 77.735637 | L49: 76.487853 | M49: 76.798122 | N49: 81.572574
A50: ОЗДП 2014 року | B50: 24.000667 | C50: 25.151769 | D50: 27.054389 | E50: 26.218056 | F50: 25.186528 | G50: 25.166002 | H50: 24.854409 | I50: 24.798204 | J50: 25.652241 | K50: 25.911879 | L50: 25.495951 | M50: 25.599374 | N50: 27.190858
A51: ОЗДП 2015 року | B51: 319.2672647 | C51: 334.579722 | D51: 368.4321344 | E51: 357.0427827 | F51: 353.7027243 | G51: 353.4144709 | H51: 349.0386675 | I51: 348.2493622 | J51: 360.2428856 | K51: 363.8890677 | L51: 358.0480536 | M51: 359.5004569 | N51: 381.8501919
A52: ОЗДП 2016 року | B52: 0 | C52: 0 | D52: 0 | E52: 0 | F52: 0 | G52: 0 | H52: 0 | I52: 0 | J52: 0 | K52: 25.911879 | L52: 25.495951 | M52: 25.599374 | N52: 27.190858
A53: 5. Заборгованість, не віднесена до інших категорій | B53: =SUM(B$54:B$54) -> 40.84138642 | C53: 42.6385325 | D53: 45.8911275 | E53: 45.35804165 | F53: 43.70440948 | G53: 43.35435334 | H53: 42.69441755 | I53: 42.43149784 | J53: 43.92311014 | K53: 44.41449434 | L53: 43.01387806 | M53: 42.55692084 | N53: 44.88773975
A54: Міжнародний Валютний Фонд | B54: 40.84138642 | C54: 42.6385325 | D54: 45.8911275 | E54: 45.35804165 | F54: 43.70440948 | G54: 43.35435334 | H54: 42.69441755 | I54: 42.43149784 | J54: 43.92311014 | K54: 44.41449434 | L54: 43.01387806 | M54: 42.55692084 | N54: 44.88773975
A55: Гарантований державою борг | B55: =B$56+B$71 -> 237.9085577 | C55: 253.2193177 | D55: 257.0851392 | E55: 252.7119234 | F55: 241.0931617 | G55: 235.0380063 | H55: 231.9756856 | I55: 234.2598821 | J55: 244.4082001 | K55: 272.918793 | L55: 266.0369813 | M55: 264.3675304 | N55: 278.9278672
A56: Внутрішній борг | B56: =B$57+B$65+B$69 -> 21.45945491 | C56: 21.15024749 | D56: 20.95024749 | E56: 20.95024749 | F56: 20.56459008 | G56: 20.48814008 | H56: 20.41169008 | I56: 20.28853266 | J56: 19.87245858 | K56: 19.53525833 | L56: 19.40929789 | M56: 19.33354488 | N56: 19.08447525
A57: 1. Заборгованість за випущеними цінними паперами на внутрішньому ринку | B57: =SUM(B$58:B$64) -> 16.4000116 | C57: 16.4000116 | D57: 16.2000116 | E57: 16.2000116 | F57: 16.2000116 | G57: 16.2000116 | H57: 16.2000116 | I57: 16.2000116 | J57: 15.9500116 | K57: 15.9500116 | L57: 15.9500116 | M57: 15.9500116 | N57: 15.9500116
A58: Державні цінні папери | B58: 1.16e-05 | C58: 1.16e-05 | D58: 1.16e-05 | E58: 1.16e-05 | F58: 1.16e-05 | G58: 1.16e-05 | H58: 1.16e-05 | I58: 1.16e-05 | J58: 1.16e-05 | K58: 1.16e-05 | L58: 1.16e-05 | M58: 1.16e-05 | N58: 1.16e-05
A59: Облігації ДІУ (10 - річні) | B59: 1 | C59: 1 | D59: 1 | E59: 1 | F59: 1 | G59: 1 | H59: 1 | I59: 1 | J59: 1 | K59: 1 | L59: 1 | M59: 1 | N59: 1
A60: Облігації ДІУ (5 - річні) | B60: 3 | C60: 3 | D60: 3 | E60: 3 | F60: 3 | G60: 3 | H60: 3 | I60: 3 | J60: 3 | K60: 3 | L60: 3 | M60: 3 | N60: 3
A61: Облігації ДІУ (7 - річні) | B61: 3.2 | C61: 3.2 | D61: 3 | E61: 3 | F61: 3 | G61: 3 | H61: 3 | I61: 3 | J61: 3 | K61: 3 | L61: 3 | M61: 3 | N61: 3
A62: Облігації НАК "Нафтогаз України" (3 - річні) | B62: 4.8 | C62: 4.8 | D62: 4.8 | E62: 4.8 | F62: 4.8 | G62: 4.8 | H62: 4.8 | I62: 4.8 | J62: 4.8 | K62: 4.8 | L62: 4.8 | M62: 4.8 | N62: 4.8
A63: Облігації Укравтодору (3 - річні) | B63: 0.25 | C63: 0.25 | D63: 0.25 | E63: 0.25 | F63: 0.25 | G63: 0.25 | H63: 0.25 | I63: 0.25 | J63: 0 | K63: 0 | L63: 0 | M63: 0 | N63: 0
A64: Облігації Укравтодору (5 - річні) | B64: 4.15 | C64: 4.15 | D64: 4.15 | E64: 4.15 | F64: 4.15 | G64: 4.15 | H64: 4.15 | I64: 4.15 | J64: 4.15 | K64: 4.15 | L64: 4.15 | M64: 4.15 | N64: 4.15
A65: 2. Заборгованість перед банківськими та іншими фінансовими установами | B65: =SUM(B$66:B$68) -> 5.058488656 | C65: 4.749281241 | D65: 4.749281241 | E65: 4.749281241 | F65: 4.363623827 | G65: 4.287173827 | H65: 4.210723827 | I65: 4.087566413 | J65: 3.921492329 | K65: 3.584292084 | L65: 3.458331643 | M65: 3.382578632 | N65: 3.133508998
A66: ВАТ "Державний експортно-імпортний банк України" | B66: 1.05 | C66: 0.7875 | D66: 0.7875 | E66: 0.7875 | F66: 0.525 | G66: 0.525 | H66: 0.525 | I66: 0.525 | J66: 0.435375916 | K66: 0.1746256718 | L66: 0.1718226444 | M66: 0.1725196341 | N66: 0
A67: ВАТ "Державний ощадний банк України" | B67: 3.859862318 | C67: 3.822362318 | D67: 3.822362318 | E67: 3.822362318 | F67: 3.708412318 | G67: 3.631962318 | H67: 3.555512318 | I67: 3.441562318 | J67: 3.365112318 | K67: 3.288662318 | L67: 3.174712318 | M67: 3.098262318 | N67: 3.021712318
A68: ПАТ АБ "Укргазбанк" | B68: 0.1486263374 | C68: 0.1394189231 | D68: 0.1394189231 | E68: 0.1394189231 | F68: 0.1302115088 | G68: 0.1302115088 | H68: 0.1302115088 | I68: 0.1210040945 | J68: 0.1210040945 | K68: 0.1210040945 | L68: 0.1117966802 | M68: 0.1117966802 | N68: 0.1117966802
A69: 3. Заборгованість, не віднесена до інших категорій | B69: =SUM(B$70:B$70) -> 0.00095465 | C69: 0.00095465 | D69: 0.00095465 | E69: 0.00095465 | F69: 0.00095465 | G69: 0.00095465 | H69: 0.00095465 | I69: 0.00095465 | J69: 0.00095465 | K69: 0.00095465 | L69: 0.00095465 | M69: 0.00095465 | N69: 0.00095465
A70: Інші кредитори | B70: 0.00095465 | C70: 0.00095465 | D70: 0.00095465 | E70: 0.00095465 | F70: 0.00095465 | G70: 0.00095465 | H70: 0.00095465 | I70: 0.00095465 | J70: 0.00095465 | K70: 0.00095465 | L70: 0.00095465 | M70: 0.00095465 | N70: 0.00095465
A71: Зовнішній борг | B71: =B$72+B$78+B$80+B$90+B$91 -> 216.4491028 | C71: 232.0690702 | D71: 236.1348917 | E71: 231.761676 | F71: 220.5285717 | G71: 214.5498663 | H71: 211.5639955 | I71: 213.9713495 | J71: 224.5357415 | K71: 253.3835346 | L71: 246.6276834 | M71: 245.0339855 | N71: 259.843392
A72: 1. Заборгованість за позиками, одержаними від міжнародних фінансових організацій | B72: =SUM(B$73:B$77) -> 140.8338031 | C72: 153.4554402 | D72: 162.6021888 | E72: 160.534106 | F72: 154.5725133 | G72: 148.9413908 | H72: 146.7816071 | I72: 150.2739558 | J72: 158.632272 | K72: 186.9263806 | L72: 181.4838281 | M72: 180.1273726 | N72: 190.935067
A73: Європейське співтоватиство з атомної енергії | B73: 0.4566383727 | C73: 0.4779752917 | D73: 0.5168489458 | E73: 0.4511063015 | F73: 0.4048624853 | G73: 0.4002336814 | H73: 0.3943282506 | I73: 0.3934365237 | J73: 0.4085469552 | K73: 0.3570555845 | L73: 0.2844054231 | M73: 0.2803775281 | N73: 0.2958517627
A74: Європейський банк реконструкції та розвитку | B74: 3.050143293 | C74: 9.518366749 | D74: 7.412360918 | E74: 7.142456921 | F74: 6.862445381 | G74: 1.993333576 | H74: 1.828864371 | I74: 6.032546123 | J74: 9.201523305 | K74: 9.964744009 | L74: 9.794398936 | M74: 10.03725927 | N74: 10.51454858
A75: Європейський Інвестиційний Банк | B75: 0 | C75: 0 | D75: 0.148880305 | E75: 0.148446635 | F75: 0.143034295 | G75: 0.14016205 | H75: 0.1378177 | I75: 0.27501208 | J75: 0.28648423 | K75: 0.29075719 | L75: 0.55693356 | M75: 0.54147796 | N75: 0.99479114
A76: Міжнародний банк реконструкції та розвитку | B76: 9.418982998 | C76: 9.922714356 | D76: 10.80115939 | E76: 10.73868802 | F76: 10.28764808 | G76: 10.62945264 | H76: 10.70919083 | I76: 10.68497339 | J76: 11.17626242 | K76: 11.31506235 | L76: 11.05258404 | M76: 11.17033657 | N76: 12.37301899
A77: Міжнародний Валютний Фонд | B77: 127.9080385 | C77: 133.5363838 | D77: 143.7229393 | E77: 142.0534082 | F77: 136.8745231 | G77: 135.7782088 | H77: 133.711406 | I77: 132.8879877 | J77: 137.5594551 | K77: 164.9987614 | L77: 159.7955062 | M77: 158.0979213 | N77: 166.7568566
A78: 2. Заборгованість за позиками, одержаними від органів управління іноземних держав | B78: =SUM(B$79:B$79) -> 4.679066995 | C78: 4.290545786 | D78: 4.615106584 | E78: 4.47243968 | F78: 4.296475193 | G78: 4.29297374 | H78: 4.239820261 | I78: 3.625913538 | J78: 3.750788078 | K78: 3.78875151 | L78: 3.727935857 | M78: 3.743058035 | N78: 3.975759701
A79: Канада | B79: 4.679066995 | C79: 4.290545786 | D79: 4.615106584 | E79: 4.47243968 | F79: 4.296475193 | G79: 4.29297374 | H79: 4.239820261 | I79: 3.625913538 | J79: 3.750788078 | K79: 3.78875151 | L79: 3.727935857 | M79: 3.743058035 | N79: 3.975759701
A80: 3. Заборгованість за позиками, одержаними від іноземних комерційних банків, інших іноземних фінансових установ | B80: =SUM(B$81:B$89) -> 68.22755055 | C80: 71.49521178 | D80: 65.87400524 | E80: 63.74689454 | F80: 58.76101962 | G80: 58.44015464 | H80: 57.71098927 | I80: 57.25733862 | J80: 59.23961329 | K80: 59.72274481 | L80: 58.56315329 | M80: 58.34109511 | N80: 61.95552088
A81: Citibank, N.A. London | B81: 0.9786004447 | C81: 1.023376522 | D81: 0 | E81: 0 | F81: 0 | G81: 0 | H81: 0 | I81: 0 | J81: 0 | K81: 0 | L81: 0 | M81: 0 | N81: 0
A82: Credit Suisse International | B82: 2.419267234 | C82: 2.535298315 | D82: 2.727082411 | E82: 2.642780045 | F82: 0 | G82: 0 | H82: 0 | I82: 0 | J82: 0 | K82: 0 | L82: 0 | M82: 0 | N82: 0
A83: Deutsche Bank AG London | B83: 0 | C83: 0 | D83: 0 | E83: 0 | F83: 0.2204260584 | G83: 0.3787919925 | H83: 0.373172053 | I83: 0.3723281643 | J83: 0.3878598622 | K83: 0.3936448566 | L83: 0.3770053483 | M83: 0.3665429803 | N83: 0.3881279224
A84: UniCredit Bank Austria AG | B84: 1.114482976 | C84: 1.165476388 | D84: 1.265482585 | E84: 1.135616751 | F84: 1.09421235 | G84: 1.072239676 | H84: 1.054305399 | I84: 1.0519212 | J84: 1.095802173 | K84: 0.9885744399 | L84: 0.9467870461 | M84: 0.9205125263 | N84: 0.96636853
A85: ВАТ "Газпромбанк" | B85: 12.0003335 | C85: 12.5758845 | D85: 13.5271945 | E85: 13.109028 | F85: 12.593264 | G85: 12.583001 | H85: 12.4272045 | I85: 12.399102 | J85: 12.8261205 | K85: 12.9559395 | L85: 12.7479755 | M85: 12.799687 | N85: 13.595429
A86: Державний банк розвитку КНР | B86: 1.729968077 | C86: 1.81293951 | D86: 1.950080359 | E86: 1.889797476 | F86: 1.652739967 | G86: 1.651393051 | H86: 1.630946319 | I86: 1.627258146 | J86: 1.683300054 | K86: 1.7003375 | L86: 1.508340461 | M86: 1.514458966 | N86: 1.608611159
A87: Експортно-імпортний банк Китаю | B87: 37.25200875 | C87: 39.03866167 | D87: 41.99176363 | E87: 40.6936712 | F87: 39.09261194 | G87: 39.06075305 | H87: 38.57712211 | I87: 38.16674024 | J87: 39.48118254 | K87: 39.88078955 | L87: 39.2406377 | M87: 39.39981531 | N87: 41.84925707
A88: Експортно-імпортний банк Кореї | B88: 3.914358784 | C88: 4.102096325 | D88: 4.412401756 | E88: 4.276001071 | F88: 4.107765301 | G88: 3.693975875 | H88: 3.648238891 | I88: 3.639988875 | J88: 3.765348163 | K88: 3.803458964 | L88: 3.742407233 | M88: 3.340078323 | N88: 3.547727198
A89: Сбербанк Росії | B89: 8.818530789 | C89: 9.241478553 | D89: 0 | E89: 0 | F89: 0 | G89: 0 | H89: 0 | I89: 0 | J89: 0 | K89: 0 | L89: 0 | M89: 0 | N89: 0
A90: 4. Заборгованість за випущеними цінними паперами на зовнішньому ринку
A91: 5. Заборгованість, не віднесена до інших категорій | B91: =SUM(B$92:B$92) -> 2.708682131 | C91: 2.82787244 | D91: 3.043591022 | E91: 3.008235706 | F91: 2.898563525 | G91: 2.875347105 | H91: 2.831578848 | I91: 2.814141488 | J91: 2.913068189 | K91: 2.945657768 | L91: 2.852766106 | M91: 2.822459792 | N91: 2.977044347
A92: Міжнародний Валютний Фонд | B92: 2.708682131 | C92: 2.82787244 | D92: 3.043591022 | E92: 3.008235706 | F92: 2.898563525 | G92: 2.875347105 | H92: 2.831578848 | I92: 2.814141488 | J92: 2.913068189 | K92: 2.945657768 | L92: 2.852766106 | M92: 2.822459792 | N92: 2.977044347

Sheet MKT2_USD
A2: Державний та гарантований державою борг України за поточний рік
N4: =VALUSD -> млрд. дол. США
B5: 2015-12-31 | C5: 2016-01-31 | D5: 2016-02-29 | E5: 2016-03-31 | F5: 2016-04-30 | G5: 2016-05-31 | H5: 2016-06-30 | I5: 2016-07-31 | J5: 2016-08-31 | K5: 2016-09-30 | L5: 2016-10-31 | M5: 2016-11-30 | N5: 2016-12-31
A6: Загальна сума державного та гарантованого державою боргу | B6: =B$7+B$55 -> 65.50568611 | C6: 65.4275913 | D6: 64.34958306 | E6: 65.23693793 | F6: 67.09963632 | G6: 66.8992385 | H6: 67.122592 | I6: 67.00556245 | J6: 66.72124069 | K6: 68.61848438 | L6: 68.35005314 | M6: 67.53755485 | N6: 70.97086461
A7: Державний борг | B7: =B$8+B$32 -> 55.59310503 | C7: 55.35993691 | D7: 54.8470532 | E7: 55.59808738 | F7: 57.52732998 | G7: 57.55973331 | H7: 57.78921032 | I7: 57.55891535 | J7: 57.19348832 | K7: 58.08591 | L7: 57.91557352 | M7: 57.21044566 | N7: 60.71271582
A8: Внутрішній борг | B8: =B$9+B$30 -> 21.16612522 | C8: 21.01068872 | D8: 20.12679624 | E8: 20.30930251 | F8: 21.73040999 | G8: 21.95327033 | H8: 22.14010232 | I8: 21.98035414 | J8: 21.5817712 | K8: 21.46004498 | L8: 21.54702514 | M8: 21.1215813 | N8: 24.66437545
A9: 1. Заборгованість за випущеними цінними паперами на внутрішньому ринку | B9: =SUM(B$10:B$29) -> 21.05591785 | C9: 20.90552512 | D9: 20.02902835 | E9: 20.209677 | F9: 21.62670426 | G9: 21.84948001 | H9: 22.03634108 | I9: 21.87635773 | J9: 21.48123713 | K9: 21.36179425 | L9: 21.4471716 | M9: 21.02213117 | N9: 24.57196211
A10: Казначейські зобов'язання | B10: 0.00410980245 | C10: 0.00395996003 | D10: 0.0036814729 | E10: 0.00379890866 | F10: 0.00395449504 | G10: 0 | H10: 0 | I10: 0 | J10: 0 | K10: 0 | L10: 0 | M10: 0 | N10: 0
A11: ОВДП (10 - річні) | B11: 2.523199168 | C11: 2.975257247 | D11: 2.766020072 | E11: 2.854253687 | F11: 2.971151204 | G11: 2.973574547 | H11: 3.010853447 | I11: 3.01767753 | J11: 2.917210352 | K11: 2.887979795 | L11: 2.935092831 | M11: 2.923234881 | N11: 2.752137612
A12: ОВДП (11 - річні) | B12: 0.7242707463 | C12: 0.6911235945 | D12: 0.6425198144 | E12: 0.6630156332 | F12: 0.6901698003 | G12: 0.6907327195 | H12: 0.6993922487 | I12: 0.7009774176 | J12: 0.67763986 | K12: 0.6708498832 | L12: 0.6817937876 | M12: 0.6790393 | N12: 0.6392950528
A13: ОВДП (12 - місячні) | B13: 0.345145 | C13: 0.3491208635 | D13: 0.3488412579 | E13: 0.350866248 | F13: 0.3749228241 | G13: 0.4027624158 | H13: 0.275595277 | I13: 0.1090631402 | J13: 0.1058219436 | K13: 0.1056492275 | L13: 0.1142365703 | M13: 0.1159235378 | N13: 0.1278948241
A14: ОВДП (12 - річні) | B14: 0.5208188589 | C14: 0.4969829359 | D14: 0.4620322418 | E14: 0.4767706652 | F14: 0.496297068 | G14: 0.4967018599 | H14: 0.5029288767 | I14: 0.5040687624 | J14: 0.4872868612 | K14: 0.4824042286 | L14: 0.4902739262 | M14: 0.4882931903 | N14: 1.048146403
A15: ОВДП (13 - річні) | B15: 0.5465527271 | C15: 0.5215390615 | D15: 0.4848614397 | E15: 0.5003280945 | F15: 0.5208193047 | G15: 0.5212440975 | H15: 0.5277787937 | I15: 0.5289750016 | J15: 0.5113638999 | K15: 0.5062400145 | L15: 0.5144985571 | M15: 0.5124199522 | N15: 1.365077557
A16: ОВДП (14 - річні) | B16: 0.1354129033 | C16: 0.1292155633 | D16: 0.1201283829 | E16: 0.123960373 | F16: 0.1290372377 | G16: 0.1291424836 | H16: 0.1307615079 | I16: 0.1310578782 | J16: 0.1266945839 | K16: 0.1254250994 | L16: 0.1274712208 | M16: 0.1269562295 | N16: 1.884824672
A17: ОВДП (15 - річні) | B17: 0.6603499811 | C17: 0.6301282427 | D17: 0.585814006 | E17: 0.6045009592 | F17: 0.6292586259 | G17: 0.6297718644 | H17: 0.6376671439 | I17: 0.6391124131 | J17: 0.6178345198 | K17: 0.6116437947 | L17: 0.621621841 | M17: 0.6191104517 | N17: 1.573684729
A18: ОВДП (18 - місячні) | B18: 0.04370400039 | C18: 0.5281250004 | D18: 0.5285370007 | E18: 0.5298090006 | F18: 0.484513 | G18: 0.755518 | H18: 0.755518 | I18: 0.755518 | J18: 0.755518 | K18: 0.755518 | L18: 0.755518 | M18: 0.755518 | N18: 1.076022
A19: ОВДП (2 - річні) | B19: 0.9129055595 | C19: 0.8762624669 | D19: 1.267129978 | E19: 1.303565984 | F19: 1.9517774 | G19: 2.070715829 | H19: 1.968702774 | I19: 1.986121059 | J19: 2.334839346 | K19: 2.451368385 | L19: 2.565814412 | M19: 2.278909786 | N19: 2.366730742
A20: ОВДП (3 - місячні) | B20: 0 | C20: 0 | D20: 0 | E20: 0 | F20: 0.01191112963 | G20: 0.01192084464 | H20: 0.02880776606 | I20: 0.01677540841 | J20: 0.01621690674 | K20: 0 | L20: 0 | M20: 0 | N20: 0.00036777067
A21: ОВДП (3 - річні) | B21: 1.80733461 | C21: 1.446006513 | D21: 1.430636033 | E21: 1.114915645 | F21: 1.3577467 | G21: 1.300085441 | H21: 1.368247988 | I21: 1.405609471 | J21: 1.186571078 | K21: 1.179173153 | L21: 0.8925969315 | M21: 0.8210365498 | N21: 0.6789923657
A22: ОВДП (4 - річні) | B22: 0.6268620251 | C22: 0.6054955037 | D22: 0.5741657016 | E22: 0.5873772243 | F22: 0.6048806918 | G22: 0.6052435472 | H22: 0.6108254451 | I22: 0.6118472386 | J22: 0.5979734308 | K22: 0.5935849207 | L22: 0.6006582049 | M22: 0.5988779194 | N22: 0.5731903451
A23: ОВДП (5 - річні) | B23: 6.209569597 | C23: 5.929037255 | D23: 5.493883311 | E23: 5.602957461 | F23: 5.808150014 | G23: 5.812414287 | H23: 6.051601931 | I23: 6.041795001 | J23: 5.754875554 | K23: 5.821500754 | L23: 5.906517785 | M23: 5.884997999 | N23: 5.574287189
A24: ОВДП (6 - місячні) | B24: 0 | C24: 0.00198793174 | D24: 0.00184812897 | E24: 0.00495841492 | F24: 0.03295412532 | G24: 0.0329810035 | H24: 0.03554701302 | I24: 0.0438229317 | J24: 0.04246416522 | K24: 0.02505804384 | L24: 0.0117391581 | M24: 0.00960183636 | N24: 0.00793652779
A25: ОВДП (6 - річні) | B25: 1.129135286 | C25: 1.077459005 | D25: 1.0016859 | E25: 1.033638802 | F25: 1.075972043 | G25: 1.076849632 | H25: 1.02999834 | I25: 0.9718445739 | J25: 0.9394890684 | K25: 0.9300753527 | L25: 0.9452481298 | M25: 0.9414292709 | N25: 0.886327309
A26: ОВДП (7 - річні) | B26: 2.025976653 | C26: 1.933255311 | D26: 1.797297695 | E26: 1.854629916 | F26: 1.776338168 | G26: 1.630763242 | H26: 1.651207679 | I26: 1.654950133 | J26: 1.744088986 | K26: 1.726613149 | L26: 1.754780239 | M26: 1.747690822 | N26: 1.645398281
A27: ОВДП (8 - річні) | B27: 1.304180338 | C27: 1.244492902 | D27: 1.156973015 | E27: 1.193879439 | F27: 1.242775423 | G27: 1.243789061 | H27: 1.259382108 | I27: 1.262236491 | J27: 1.220213002 | K27: 1.058055188 | L27: 1.075315763 | M27: 1.070971423 | N27: 1.008287344
A28: ОВДП (9 - місячні) | B28: 0 | C28: 0 | D28: 0 | E28: 0 | F28: 2.251204e-05 | G28: 2.25304e-05 | H28: 0.00790873764 | I28: 0.00792666275 | J28: 0.00766276131 | K28: 0.00758598016 | L28: 0.00770973399 | M28: 0.0076785862 | N28: 0.00722915769
A29: ОВДП (9 - річні) | B29: 1.536390593 | C29: 1.466075766 | D29: 1.362972899 | E29: 1.406450539 | F29: 1.464052489 | G29: 1.465246605 | H29: 1.483616005 | I29: 1.486978613 | J29: 1.437472812 | K29: 1.42306928 | L29: 1.44628451 | M29: 1.440441434 | N29: 1.356132234
A30: 2. Заборгованість перед банківськими та іншими фінансовими установами | B30: =SUM(B$31:B$31) -> 0.1102073726 | C30: 0.1051635951 | D30: 0.09776788713 | E30: 0.09962551455 | F30: 0.1037057319 | G30: 0.1037903168 | H30: 0.1037612356 | I30: 0.1039964099 | J30: 0.1005340699 | K30: 0.09825073119 | L30: 0.09985354373 | M30: 0.09945012945 | N30: 0.09241333715
A31: Національний банк України | B31: 0.1102073726 | C31: 0.1051635951 | D31: 0.09776788713 | E31: 0.09962551455 | F31: 0.1037057319 | G31: 0.1037903168 | H31: 0.1037612356 | I31: 0.1039964099 | J31: 0.1005340699 | K31: 0.09825073119 | L31: 0.09985354373 | M31: 0.09945012945 | N31: 0.09241333715
A32: Зовнішній борг | B32: =B$33+B$40+B$46+B$48+B$53 -> 34.42697981 | C32: 34.34924819 | D32: 34.72025697 | E32: 35.28878487 | F32: 35.79691999 | G32: 35.60646298 | H32: 35.649108 | I32: 35.57856121 | J32: 35.61171712 | K32: 36.62586502 | L32: 36.36854837 | M32: 36.08886436 | N32: 36.04834037
A33: 1. Заборгованість за позиками, одержаними від міжнародних фінансових організацій | B33: =SUM(B$34:B$39) -> 14.05999638 | C33: 13.99007815 | D33: 14.01865264 | E33: 14.20931827 | F33: 14.25186646 | G33: 14.10652644 | H33: 14.10570933 | I33: 14.05825757 | J33: 14.0672188 | K33: 14.07894211 | L33: 13.88520388 | M33: 13.67991529 | N33: 13.67533621
A34: Європейське Співтовариство | B34: 2.414646022 | C34: 2.409563023 | D34: 2.432326038 | E34: 2.502604032 | F34: 2.510118044 | G34: 2.461719033 | H34: 2.450890037 | I34: 2.450889979 | J34: 2.468128022 | K34: 2.479840964 | L34: 2.413762028 | M34: 2.337296005 | N34: 2.310113011
A35: Європейський банк реконструкції та розвитку | B35: 0.582929594 | C35: 0.5852621355 | D35: 0.5910105311 | E35: 0.6076941691 | F35: 0.6193363581 | G35: 0.5913878686 | H35: 0.5977430895 | I35: 0.6029812771 | J35: 0.6072296209 | K35: 0.6137337998 | L35: 0.6036220025 | M35: 0.572814689 | N35: 0.591002251
A36: Європейський Інвестиційний Банк | B36: 0.5220748706 | C36: 0.5209758664 | D36: 0.519321413 | E36: 0.534326337 | F36: 0.5382022396 | G36: 0.5278248567 | H36: 0.525502978 | I36: 0.5365929654 | J36: 0.5322795347 | K36: 0.5348055622 | L36: 0.5205548973 | M36: 0.5040641405 | N36: 0.5340904563
A37: Міжнародний банк реконструкції та розвитку | B37: 5.197652457 | C37: 5.151760007 | D37: 5.150323954 | E37: 5.132993916 | F37: 5.136189738 | G37: 5.116797125 | H37: 5.138328953 | I37: 5.095609794 | J37: 5.083690876 | K37: 5.068933877 | L37: 5.050088263 | M37: 5.045353515 | N37: 5.055394225
A38: Міжнародний Валютний Фонд | B38: 5.341838923 | C38: 5.321662601 | D38: 5.324816192 | E38: 5.430845298 | F38: 5.44716557 | G38: 5.407943046 | H38: 5.392389762 | I38: 5.371329039 | J38: 5.375036232 | K38: 5.38070817 | L38: 5.296036955 | M38: 5.218605592 | N38: 5.18225106
A39: Фонд чистих технологій (МБРР) | B39: 0.0008545125 | C39: 0.0008545125 | D39: 0.0008545125 | E39: 0.0008545125 | F39: 0.0008545125 | G39: 0.0008545125 | H39: 0.0008545125 | I39: 0.0008545125 | J39: 0.0008545125 | K39: 0.00091973702 | L39: 0.00113973702 | M39: 0.00178135187 | N39: 0.00248521025
A40: 2. Заборгованість за позиками, одержаними від органів управління іноземних держав | B40: =SUM(B$41:B$45) -> 1.362817423 | C40: 1.361431453 | D40: 1.387091611 | E40: 1.731176013 | F40: 1.766435833 | G40: 1.733814548 | H40: 1.782231529 | I40: 1.76584553 | J40: 1.788858859 | K40: 1.789476348 | L40: 1.752872016 | M40: 1.70314462 | N40: 1.678781308
A41: Канада | B41: 0.2880759272 | C41: 0.2839877545 | D41: 0.2952847318 | E41: 0.3069874593 | F41: 0.3185527914 | G41: 0.3067749895 | H41: 0.307905885 | I41: 0.3039397047 | J41: 0.3067710459 | K41: 0.3056868551 | L41: 0.2987622309 | M41: 0.2972456436 | N41: 0.295407655
A42: Німеччина | B42: 0.226168202 | C42: 0.2256921021 | D42: 0.2278242036 | E42: 0.234406803 | F42: 0.2351106041 | G42: 0.2305773031 | H42: 0.2295630035 | I42: 0.229562998 | J42: 0.2352263385 | K42: 0.2363426471 | L42: 0.2300449566 | M42: 0.2227573191 | N42: 0.2200474642
A43: Росія | B43: 0.60585586 | C43: 0.60585586 | D43: 0.60585586 | E43: 0.60585586 | F43: 0.60585586 | G43: 0.60585586 | H43: 0.60585586 | I43: 0.60585586 | J43: 0.60585586 | K43: 0.60585586 | L43: 0.60585586 | M43: 0.60585586 | N43: 0.60585586
A44: США | B44: 0.00902199743 | C44: 0.00902199743 | D44: 0.00902199743 | E44: 0.00902199743 | F44: 0.00902199743 | G44: 0.00902199743 | H44: 0.00902199743 | I44: 0.00902199743 | J44: 0.00902199743 | K44: 0.00902199743 | L44: 0.00902199743 | M44: 0.00902199743 | N44: 0.00759709027
A45: Японія | B45: 0.2336954364 | C45: 0.2368737388 | D45: 0.2491048182 | E45: 0.5749038937 | F45: 0.5978945803 | G45: 0.5815843982 | H45: 0.6298847832 | I45: 0.6174649704 | J45: 0.6319836169 | K45: 0.6325689882 | L45: 0.6091869709 | M45: 0.5682638 | N45: 0.5498732387
A46: 3. Заборгованість за позиками, одержаними від іноземних комерційних банків, інших іноземних фінансових установ | B46: =SUM(B$47:B$47) -> 5.586376e-05 | C46: 5.574617e-05 | D46: 5.62728e-05 | E46: 5.789871e-05 | F46: 5.807255e-05 | G46: 5.695282e-05 | H46: 5.670228e-05 | I46: 5.670228e-05 | J46: 5.710109e-05 | K46: 5.737207e-05 | L46: 5.584331e-05 | M46: 5.407424e-05 | N46: 5.344535e-05
A47: Chase Manhattan Bank Luxembourg S.A. | B47: 5.586376e-05 | C47: 5.574617e-05 | D47: 5.62728e-05 | E47: 5.789871e-05 | F47: 5.807255e-05 | G47: 5.695282e-05 | H47: 5.670228e-05 | I47: 5.670228e-05 | J47: 5.710109e-05 | K47: 5.737207e-05 | L47: 5.584331e-05 | M47: 5.407424e-05 | N47: 5.344535e-05
A48: 4. Заборгованість за випущеними цінними паперами на зовнішньому ринку | B48: =SUM(B$49:B$52) -> 17.302433 | C48: 17.302433 | D48: 17.618202 | E48: 17.618202 | F48: 18.04333 | G48: 18.04333 | H48: 18.04333 | I48: 18.04333 | J48: 18.04333 | K48: 19.04333 | L48: 19.04333 | M48: 19.04333 | N48: 19.04333
A49: ОЗДП 2013 року | B49: 3 | C49: 3 | D49: 3 | E49: 3 | F49: 3 | G49: 3 | H49: 3 | I49: 3 | J49: 3 | K49: 3 | L49: 3 | M49: 3 | N49: 3
A50: ОЗДП 2014 року | B50: 1 | C50: 1 | D50: 1 | E50: 1 | F50: 1 | G50: 1 | H50: 1 | I50: 1 | J50: 1 | K50: 1 | L50: 1 | M50: 1 | N50: 1
A51: ОЗДП 2015 року | B51: 13.302433 | C51: 13.302433 | D51: 13.618202 | E51: 13.618202 | F51: 14.04333 | G51: 14.04333 | H51: 14.04333 | I51: 14.04333 | J51: 14.04333 | K51: 14.04333 | L51: 14.04333 | M51: 14.04333 | N51: 14.04333
A52: ОЗДП 2016 року | B52: 0 | C52: 0 | D52: 0 | E52: 0 | F52: 0 | G52: 0 | H52: 0 | I52: 0 | J52: 0 | K52: 1 | L52: 1 | M52: 1 | N52: 1
A53: 5. Заборгованість, не віднесена до інших категорій | B53: =SUM(B$54:B$54) -> 1.701677142 | C53: 1.695249845 | D53: 1.696254441 | E53: 1.730030695 | F53: 1.735229623 | G53: 1.722735035 | H53: 1.717780437 | I53: 1.711071408 | J53: 1.712252358 | K53: 1.71405919 | L53: 1.687086631 | M53: 1.662420372 | N53: 1.650839402
A54: Міжнародний Валютний Фонд | B54: 1.701677142 | C54: 1.695249845 | D54: 1.696254441 | E54: 1.730030695 | F54: 1.735229623 | G54: 1.722735035 | H54: 1.717780437 | I54: 1.711071408 | J54: 1.712252358 | K54: 1.71405919 | L54: 1.687086631 | M54: 1.662420372 | N54: 1.650839402
A55: Гарантований державою борг | B55: =B$56+B$71 -> 9.912581084 | C55: 10.0676544 | D55: 9.502529855 | E55: 9.638850548 | F55: 9.572306343 | G55: 9.339505192 | H55: 9.333381679 | I55: 9.446647109 | J55: 9.527752375 | K55: 10.53257438 | L55: 10.43447963 | M55: 10.32710919 | N55: 10.25814879
A56: Внутрішній борг | B56: =B$57+B$65+B$69 -> 0.8941191053 | C56: 0.8409049674 | D56: 0.7743751852 | E56: 0.7990770747 | F56: 0.8164916608 | G56: 0.8141197826 | H56: 0.821250269 | I56: 0.818145244 | J56: 0.7746870373 | K56: 0.7539112982 | L56: 0.7612698147 | M56: 0.7552350648 | N56: 0.7018710203
A57: 1. Заборгованість за випущеними цінними паперами на внутрішньому ринку | B57: =SUM(B$58:B$64) -> 0.6833148262 | C57: 0.6520420731 | D57: 0.5987942141 | E57: 0.6178952246 | F57: 0.6432014607 | G57: 0.6437260714 | H57: 0.651796291 | I57: 0.6532735838 | J57: 0.6217784871 | K57: 0.6155482434 | L57: 0.6255899849 | M57: 0.6230625639 | N57: 0.5865946415
A58: Державні цінні папери | B58: 4.8332e-07 | C58: 4.612e-07 | D58: 4.2877e-07 | E58: 4.4244e-07 | F58: 4.6056e-07 | G58: 4.6094e-07 | H58: 4.6672e-07 | I58: 4.6778e-07 | J58: 4.522e-07 | K58: 4.4767e-07 | L58: 4.5497e-07 | M58: 4.5314e-07 | N58: 4.2661e-07
A59: Облігації ДІУ (10 - річні) | B59: 0.04166550871 | C59: 0.03975863487 | D59: 0.03696257934 | E59: 0.03814165322 | F59: 0.03970376544 | G59: 0.03973614879 | H59: 0.04023431014 | I59: 0.04032550099 | J59: 0.0389829489 | K59: 0.03859233829 | L59: 0.0392219141 | M59: 0.03906345522 | N59: 0.03677706676
A60: Облігації ДІУ (5 - річні) | B60: 0.1249965261 | C60: 0.1192759046 | D60: 0.110887738 | E60: 0.1144249597 | F60: 0.1191112963 | G60: 0.1192084464 | H60: 0.1207029304 | I60: 0.120976503 | J60: 0.1169488467 | K60: 0.1157770149 | L60: 0.1176657423 | M60: 0.1171903657 | N60: 0.1103312003
A61: Облігації ДІУ (7 - річні) | B61: 0.1333296278 | C61: 0.1272276316 | D61: 0.110887738 | E61: 0.1144249597 | F61: 0.1191112963 | G61: 0.1192084464 | H61: 0.1207029304 | I61: 0.120976503 | J61: 0.1169488467 | K61: 0.1157770149 | L61: 0.1176657423 | M61: 0.1171903657 | N61: 0.1103312003
A62: Облігації НАК "Нафтогаз України" (3 - річні) | B62: 0.1999944418 | C62: 0.1908414474 | D62: 0.1774203809 | E62: 0.1830799355 | F62: 0.1905780741 | G62: 0.1907335142 | H62: 0.1931246887 | I62: 0.1935624048 | J62: 0.1871181547 | K62: 0.1852432238 | L62: 0.1882651877 | M62: 0.1875045851 | N62: 0.1765299205
A63: Облігації Укравтодору (3 - річні) | B63: 0.01041637718 | C63: 0.00993965872 | D63: 0.00924064484 | E63: 0.0095354133 | F63: 0.00992594136 | G63: 0.0099340372 | H63: 0.01005857753 | I63: 0.01008137525 | J63: 0 | K63: 0 | L63: 0 | M63: 0 | N63: 0
A64: Облігації Укравтодору (5 - річні) | B64: 0.1729118612 | C64: 0.1649983347 | D64: 0.1533947043 | E64: 0.1582878609 | F64: 0.1647706266 | G64: 0.1649050175 | H64: 0.1669723871 | I64: 0.1673508291 | J64: 0.1617792379 | K64: 0.1601582039 | L64: 0.1627709435 | M64: 0.1621133392 | N64: 0.1526248271
A65: 2. Заборгованість перед банківськими та іншими фінансовими установами | B65: =SUM(B$66:B$68) -> 0.2107645032 | C65: 0.1888249388 | D65: 0.1755456847 | E65: 0.1811454381 | F65: 0.1732522969 | G65: 0.1703557771 | H65: 0.1694155684 | I65: 0.1648331634 | J65: 0.1528713351 | K65: 0.1383262126 | L65: 0.1356423866 | M65: 0.1321352089 | N65: 0.1152412696
A66: ВАТ "Державний експортно-імпортний банк України" | B66: 0.04374878415 | C66: 0.03130992496 | D66: 0.02910803123 | E66: 0.03003655191 | F66: 0.02084447686 | G66: 0.02086147812 | H66: 0.02112301282 | I66: 0.02117088802 | J66: 0.01697223709 | K66: 0.006739213 | L66: 0.006739213 | M66: 0.006739213 | N66: 0
A67: ВАТ "Державний ощадний банк України" | B67: 0.160823127 | C67: 0.1519719077 | D67: 0.1412843705 | E67: 0.145791218 | F67: 0.1472379328 | G67: 0.1443201951 | H67: 0.1430535853 | I67: 0.1387827247 | J67: 0.1311820015 | K67: 0.1269171687 | L67: 0.1245182938 | M67: 0.1210288313 | N67: 0.1111297157
A68: ПАТ АБ "Укргазбанк" | B68: 0.00619259196 | C68: 0.00554310606 | D68: 0.005153283 | E68: 0.00531766822 | F68: 0.0051698872 | G68: 0.00517410389 | H68: 0.00523897023 | I68: 0.00487955072 | J68: 0.00471709643 | K68: 0.00466983095 | L68: 0.00438487978 | M68: 0.00436716461 | N68: 0.00411155398
A69: 3. Заборгованість, не віднесена до інших категорій | B69: =SUM(B$70:B$70) -> 3.977598e-05 | C69: 3.795558e-05 | D69: 3.528633e-05 | E69: 3.641193e-05 | F69: 3.79032e-05 | G69: 3.793411e-05 | H69: 3.840968e-05 | I69: 3.849674e-05 | J69: 3.721507e-05 | K69: 3.684218e-05 | L69: 3.74432e-05 | M69: 3.729193e-05 | N69: 3.510923e-05
A70: Інші кредитори | B70: 3.977598e-05 | C70: 3.795558e-05 | D70: 3.528633e-05 | E70: 3.641193e-05 | F70: 3.79032e-05 | G70: 3.793411e-05 | H70: 3.840968e-05 | I70: 3.849674e-05 | J70: 3.721507e-05 | K70: 3.684218e-05 | L70: 3.74432e-05 | M70: 3.729193e-05 | N70: 3.510923e-05
A71: Зовнішній борг | B71: =B$72+B$78+B$80+B$90+B$91 -> 9.018461978 | C71: 9.226749428 | D71: 8.728154669 | E71: 8.839773473 | F71: 8.755814682 | G71: 8.525385409 | H71: 8.51213141 | I71: 8.628501865 | J71: 8.753065338 | K71: 9.778663085 | L71: 9.673209813 | M71: 9.571874122 | N71: 9.556277774
A72: 1. Заборгованість за позиками, одержаними від міжнародних фінансових організацій | B72: =SUM(B$73:B$77) -> 5.867912051 | C72: 6.101178817 | D72: 6.010196306 | E72: 6.123036202 | F72: 6.137110812 | G72: 5.918357265 | H72: 5.905656704 | I72: 6.059872554 | J72: 6.183953752 | K72: 7.213926113 | L72: 7.118143118 | M72: 7.036397554 | N72: 7.022031708
A73: Європейське співтоватиство з атомної енергії | B73: 0.0190260701 | C73: 0.0190036451 | D73: 0.01910407017 | E73: 0.01720594011 | F73: 0.01607456515 | G73: 0.01590374512 | H73: 0.01586552513 | I73: 0.01586552493 | J73: 0.01592636508 | K73: 0.0137796099 | L73: 0.01115492507 | M73: 0.01095251501 | N73: 0.01088056003
A74: Європейський банк реконструкції та розвитку | B74: 0.127085772 | C74: 0.3784372681 | D74: 0.2739799786 | E74: 0.272425115 | F74: 0.2724649218 | G74: 0.07920739957 | H74: 0.07358309631 | I74: 0.2432654447 | J74: 0.3587025128 | K74: 0.3845627717 | L74: 0.3841550737 | M74: 0.3920900282 | N74: 0.3866942552
A75: Європейський Інвестиційний Банк | B75: 0 | C75: 0 | D75: 0.00550300009 | E75: 0.00566200007 | F75: 0.0056790001 | G75: 0.00556950007 | H75: 0.00554500008 | I75: 0.0110899999 | J75: 0.0111680001 | K75: 0.01122099984 | L75: 0.02184400025 | M75: 0.02115200005 | N75: 0.03658550017
A76: Міжнародний банк реконструкції та розвитку | B76: 0.3924467181 | C76: 0.394513577 | D76: 0.3992387109 | E76: 0.4095913143 | F76: 0.4084583665 | G76: 0.4223735116 | H76: 0.430876905 | I76: 0.430876905 | J76: 0.4356836669 | K76: 0.4366747138 | L76: 0.433503502 | M76: 0.4363519424 | N76: 0.4550433454
A77: Міжнародний Валютний Фонд | B77: 5.329353491 | C77: 5.309224327 | D77: 5.312370546 | E77: 5.418151832 | F77: 5.434433959 | G77: 5.395303109 | H77: 5.379786178 | I77: 5.35877468 | J77: 5.362473207 | K77: 6.367688018 | L77: 6.267485617 | M77: 6.175851069 | N77: 6.132828047
A78: 2. Заборгованість за позиками, одержаними від органів управління іноземних держав | B78: =SUM(B$79:B$79) -> 0.1949557066 | C78: 0.1705862433 | D78: 0.1705862433 | E78: 0.1705862433 | F78: 0.1705862433 | G78: 0.1705862433 | H78: 0.1705862433 | I78: 0.14621678 | J78: 0.14621678 | K78: 0.14621678 | L78: 0.14621678 | M78: 0.14621678 | N78: 0.14621678
A79: Канада | B79: 0.1949557066 | C79: 0.1705862433 | D79: 0.1705862433 | E79: 0.1705862433 | F79: 0.1705862433 | G79: 0.1705862433 | H79: 0.1705862433 | I79: 0.14621678 | J79: 0.14621678 | K79: 0.14621678 | L79: 0.14621678 | M79: 0.14621678 | N79: 0.14621678
A80: 3. Заборгованість за позиками, одержаними від іноземних комерційних банків, інших іноземних фінансових установ | B80: =SUM(B$81:B$89) -> 2.842735602 | C80: 2.84255202 | D80: 2.434873145 | E80: 2.431411945 | F80: 2.33303374 | G80: 2.32218668 | H80: 2.321961841 | I80: 2.308930865 | J80: 2.309334818 | K80: 2.304840371 | L80: 2.296958968 | M80: 2.279004756 | N80: 2.278542328
A81: Citibank, N.A. London | B81: 0.04077388535 | C81: 0.04068805347 | D81: 0 | E81: 0 | F81: 0 | G81: 0 | H81: 0 | I81: 0 | J81: 0 | K81: 0 | L81: 0 | M81: 0 | N81: 0
A82: Credit Suisse International | B82: 0.1008 | C82: 0.1008 | D82: 0.1008 | E82: 0.1008 | F82: 0 | G82: 0 | H82: 0 | I82: 0 | J82: 0 | K82: 0 | L82: 0 | M82: 0 | N82: 0
A83: Deutsche Bank AG London | B83: 0 | C83: 0 | D83: 0 | E83: 0 | F83: 0.00875174452 | G83: 0.01505173498 | H83: 0.01501432012 | I83: 0.01501431976 | J83: 0.01511992119 | K83: 0.01519167547 | L83: 0.01478687139 | M83: 0.0143184353 | N83: 0.01427420651
A84: UniCredit Bank Austria AG | B84: 0.04643550014 | C84: 0.04633775017 | D84: 0.04677550046 | E84: 0.0433143003 | F84: 0.04344435049 | G84: 0.04260667531 | H84: 0.04241925039 | I84: 0.04241924938 | J84: 0.04271760012 | K84: 0.03815139921 | L84: 0.03713480019 | M84: 0.03595839985 | N84: 0.03554019995
A85: ВАТ "Газпромбанк" | B85: 0.5 | C85: 0.5 | D85: 0.5 | E85: 0.5 | F85: 0.5 | G85: 0.5 | H85: 0.5 | I85: 0.5 | J85: 0.5 | K85: 0.5 | L85: 0.5 | M85: 0.5 | N85: 0.5
A86: Державний банк розвитку КНР | B86: 0.07208 | C86: 0.07208 | D86: 0.07208 | E86: 0.07208 | F86: 0.06562 | G86: 0.06562 | H86: 0.06562 | I86: 0.06562 | J86: 0.06562 | K86: 0.06562 | L86: 0.05916 | M86: 0.05916 | N86: 0.05916
A87: Експортно-імпортний банк Китаю | B87: 1.552123895 | C87: 1.552123895 | D87: 1.552123895 | E87: 1.552123895 | F87: 1.552123895 | G87: 1.552123895 | H87: 1.552123895 | I87: 1.539092921 | J87: 1.539092921 | K87: 1.539092921 | L87: 1.539092921 | M87: 1.539092921 | N87: 1.539092921
A88: Експортно-імпортний банк Кореї | B88: 0.16309375 | C88: 0.16309375 | D88: 0.16309375 | E88: 0.16309375 | F88: 0.16309375 | G88: 0.146784375 | H88: 0.146784375 | I88: 0.146784375 | J88: 0.146784375 | K88: 0.146784375 | L88: 0.146784375 | M88: 0.130475 | N88: 0.130475
A89: Сбербанк Росії | B89: 0.3674285714 | C89: 0.3674285714 | D89: 0 | E89: 0 | F89: 0 | G89: 0 | H89: 0 | I89: 0 | J89: 0 | K89: 0 | L89: 0 | M89: 0 | N89: 0
A90: 4. Заборгованість за випущеними цінними паперами на зовнішньому ринку
A91: 5. Заборгованість, не віднесена до інших категорій | B91: =SUM(B$92:B$92) -> 0.1128586189 | C91: 0.1124323478 | D91: 0.1124989746 | E91: 0.1147390831 | F91: 0.1150838863 | G91: 0.1142552204 | H91: 0.1139266215 | I91: 0.1134816654 | J91: 0.1135599883 | K91: 0.1136798211 | L91: 0.1118909471 | M91: 0.1102550317 | N91: 0.1094869587
A92: Міжнародний Валютний Фонд | B92: 0.1128586189 | C92: 0.1124323478 | D92: 0.1124989746 | E92: 0.1147390831 | F92: 0.1150838863 | G92: 0.1142552204 | H92: 0.1139266215 | I92: 0.1134816654 | J92: 0.1135599883 | K92: 0.1136798211 | L92: 0.1118909471 | M92: 0.1102550317 | N92: 0.1094869587

Sheet MT_ALL (hidden)
A2: Державний та гарантований державою борг України за поточний рік
A4: =$A$2 & " (" &N4 & ")" -> Державний та гарантований державою борг України за поточний рік (млрд. грн) | N4: =VALUAH -> млрд. грн
B5: 2015-12-31 | C5: 2016-01-31 | D5: 2016-02-29 | E5: 2016-03-31 | F5: 2016-04-30 | G5: 2016-05-31 | H5: 2016-06-30 | I5: 2016-07-31 | J5: 2016-08-31 | K5: 2016-09-30 | L5: 2016-10-31 | M5: 2016-11-30 | N5: 2016-12-31
A6: Загальна сума державного та гарантованого державою боргу | B6: =SUM(B7:B8) -> 1572.180159 | C6: 1645.619663 | D6: 1740.938652 | E6: 1710.385692 | F6: 1690.006869 | G6: 1683.58637 | H6: 1668.292355 | I6: 1661.617607 | J6: 1711.549346 | K6: 1778.033864 | L6: 1742.649606 | M6: 1728.919126 | N6: 1929.758702
A7: Внутрішній борг | B7: 529.460578 | C7: 549.6062367 | D7: 565.4684222 | E7: 553.420678 | F7: 567.8781697 | G7: 572.9641851 | H7: 570.6908484 | I7: 565.3618386 | J7: 573.4932546 | K7: 575.6053472 | L7: 568.7711952 | M7: 560.032804 | N7: 689.7300058
A8: Зовнішній борг | B8: 1042.719581 | C8: 1096.013426 | D8: 1175.47023 | E8: 1156.965014 | F8: 1122.128699 | G8: 1110.622185 | H8: 1097.601506 | I8: 1096.255768 | J8: 1138.056091 | K8: 1202.428517 | L8: 1173.878411 | M8: 1168.886322 | N8: 1240.028696
A10: =$A$2 & " (" &N10 & ")" -> Державний та гарантований державою борг України за поточний рік (млрд. дол. США) | N10: =VALUSD -> млрд. дол. США
B11: 2015-12-31 | C11: 2016-01-31 | D11: 2016-02-29 | E11: 2016-03-31 | F11: 2016-04-30 | G11: 2016-05-31 | H11: 2016-06-30 | I11: 2016-07-31 | J11: 2016-08-31 | K11: 2016-09-30 | L11: 2016-10-31 | M11: 2016-11-30 | N11: 2016-12-31
A12: Загальна сума державного та гарантованого державою боргу | B12: =SUM(B13:B14) -> 65.50568611 | C12: 65.4275913 | D12: 64.34958306 | E12: 65.23693793 | F12: 67.09963632 | G12: 66.8992385 | H12: 67.122592 | I12: 67.00556245 | J12: 66.72124069 | K12: 68.61848438 | L12: 68.35005314 | M12: 67.53755485 | N12: 70.97086461
A13: Внутрішній борг | B13: 22.06024433 | C13: 21.85159369 | D13: 20.90117142 | E13: 21.10837958 | F13: 22.54690165 | G13: 22.76739011 | H13: 22.96135259 | I13: 22.79849938 | J13: 22.35645824 | K13: 22.21395628 | L13: 22.30829496 | M13: 21.87681636 | N13: 25.36624647
A14: Зовнішній борг | B14: 43.44544179 | C14: 43.57599762 | D14: 43.44841164 | E14: 44.12855835 | F14: 44.55273467 | G14: 44.13184839 | H14: 44.16123941 | I14: 44.20706307 | J14: 44.36478245 | K14: 46.4045281 | L14: 46.04175818 | M14: 45.66073848 | N14: 45.60461814
N16: %%
B17: 2015-12-31 | C17: 2016-01-31 | D17: 2016-02-29 | E17: 2016-03-31 | F17: 2016-04-30 | G17: 2016-05-31 | H17: 2016-06-30 | I17: 2016-07-31 | J17: 2016-08-31 | K17: 2016-09-30 | L17: 2016-10-31 | M17: 2016-11-30 | N17: 2016-12-31
A18: Загальна сума державного та гарантованого державою боргу | B18: =SUM(B19:B20) -> 1 | C18: 1 | D18: 1 | E18: 1 | F18: 1 | G18: 1 | H18: 1 | I18: 1 | J18: 1 | K18: 1 | L18: 1 | M18: 0.968758 | N18: 1
A19: Внутрішній борг | B19: 0.336768 | C19: 0.333981 | D19: 0.324807 | E19: 0.323565 | F19: 0.336021 | G19: 0.340324 | H19: 0.342081 | I19: 0.340248 | J19: 0.335073 | K19: 0.323731 | L19: 0.326383 | M19: 0.323547 | N19: 0.357418
A20: Зовнішній борг | B20: 0.663232 | C20: 0.666019 | D20: 0.675193 | E20: 0.676435 | F20: 0.663979 | G20: 0.659676 | H20: 0.657919 | I20: 0.659752 | J20: 0.664927 | K20: 0.676269 | L20: 0.673617 | M20: 0.645211 | N20: 0.642582

Sheet MTM_ALL (hidden)
A2: Державний та гарантований державою борг України за поточний рік
N4: млрд. грн.
B5: =MT_ALL!B5 -> 2015-12-31 | C5: =MT_ALL!C5 -> 2016-01-31 | D5: =MT_ALL!D5 -> 2016-02-29 | E5: =MT_ALL!E5 -> 2016-03-31 | F5: =MT_ALL!F5 -> 2016-04-30 | G5: =MT_ALL!G5 -> 2016-05-31 | H5: =MT_ALL!H5 -> 2016-06-30 | I5: =MT_ALL!I5 -> 2016-07-31 | J5: =MT_ALL!J5 -> 2016-08-31 | K5: =MT_ALL!K5 -> 2016-09-30 | L5: =MT_ALL!L5 -> 2016-10-31 | M5: =MT_ALL!M5 -> 2016-11-30 | N5: =MT_ALL!N5 -> 2016-12-31
A6: =MT_ALL!A6 -> Загальна сума державного та гарантованого державою боргу | B6: =SUM(B7:B8) -> 1572.180159 | C6: 1645.619663 | D6: 1740.938652 | E6: 1710.385692 | F6: 1690.006869 | G6: 1683.58637 | H6: 1668.292355 | I6: 1661.617607 | J6: 1711.549346 | K6: 1778.033864 | L6: 1742.649606 | M6: 1728.919126 | N6: 1929.758702
A7: =MT_ALL!A7 -> Внутрішній борг | B7: =MT_ALL!B7/DMLMLR -> 529.460578 | C7: =MT_ALL!C7/DMLMLR -> 549.6062367 | D7: =MT_ALL!D7/DMLMLR -> 565.4684222 | E7: =MT_ALL!E7/DMLMLR -> 553.420678 | F7: =MT_ALL!F7/DMLMLR -> 567.8781697 | G7: =MT_ALL!G7/DMLMLR -> 572.9641851 | H7: =MT_ALL!H7/DMLMLR -> 570.6908484 | I7: =MT_ALL!I7/DMLMLR -> 565.3618386 | J7: =MT_ALL!J7/DMLMLR -> 573.4932546 | K7: =MT_ALL!K7/DMLMLR -> 575.6053472 | L7: =MT_ALL!L7/DMLMLR -> 568.7711952 | M7: =MT_ALL!M7/DMLMLR -> 560.032804 | N7: =MT_ALL!N7/DMLMLR -> 689.7300058
A8: =MT_ALL!A8 -> Зовнішній борг | B8: =MT_ALL!B8/DMLMLR -> 1042.719581 | C8: =MT_ALL!C8/DMLMLR -> 1096.013426 | D8: =MT_ALL!D8/DMLMLR -> 1175.47023 | E8: =MT_ALL!E8/DMLMLR -> 1156.965014 | F8: =MT_ALL!F8/DMLMLR -> 1122.128699 | G8: =MT_ALL!G8/DMLMLR -> 1110.622185 | H8: =MT_ALL!H8/DMLMLR -> 1097.601506 | I8: =MT_ALL!I8/DMLMLR -> 1096.255768 | J8: =MT_ALL!J8/DMLMLR -> 1138.056091 | K8: =MT_ALL!K8/DMLMLR -> 1202.428517 | L8: =MT_ALL!L8/DMLMLR -> 1173.878411 | M8: =MT_ALL!M8/DMLMLR -> 1168.886322 | N8: =MT_ALL!N8/DMLMLR -> 1240.028696
N10: млрд. дол.США
B11: =MT_ALL!B11 -> 2015-12-31 | C11: =MT_ALL!C11 -> 2016-01-31 | D11: =MT_ALL!D11 -> 2016-02-29 | E11: =MT_ALL!E11 -> 2016-03-31 | F11: =MT_ALL!F11 -> 2016-04-30 | G11: =MT_ALL!G11 -> 2016-05-31 | H11: =MT_ALL!H11 -> 2016-06-30 | I11: =MT_ALL!I11 -> 2016-07-31 | J11: =MT_ALL!J11 -> 2016-08-31 | K11: =MT_ALL!K11 -> 2016-09-30 | L11: =MT_ALL!L11 -> 2016-10-31 | M11: =MT_ALL!M11 -> 2016-11-30 | N11: =MT_ALL!N11 -> 2016-12-31
A12: =MT_ALL!A12 -> Загальна сума державного та гарантованого державою боргу | B12: =SUM(B13:B14) -> 65.50568611 | C12: 65.4275913 | D12: 64.34958306 | E12: 65.23693793 | F12: 67.09963632 | G12: 66.8992385 | H12: 67.122592 | I12: 67.00556245 | J12: 66.72124069 | K12: 68.61848438 | L12: 68.35005314 | M12: 67.53755485 | N12: 70.97086461
A13: =MT_ALL!A13 -> Внутрішній борг | B13: =MT_ALL!B13/DMLMLR -> 22.06024433 | C13: =MT_ALL!C13/DMLMLR -> 21.85159369 | D13: =MT_ALL!D13/DMLMLR -> 20.90117142 | E13: =MT_ALL!E13/DMLMLR -> 21.10837958 | F13: =MT_ALL!F13/DMLMLR -> 22.54690165 | G13: =MT_ALL!G13/DMLMLR -> 22.76739011 | H13: =MT_ALL!H13/DMLMLR -> 22.96135259 | I13: =MT_ALL!I13/DMLMLR -> 22.79849938 | J13: =MT_ALL!J13/DMLMLR -> 22.35645824 | K13: =MT_ALL!K13/DMLMLR -> 22.21395628 | L13: =MT_ALL!L13/DMLMLR -> 22.30829496 | M13: =MT_ALL!M13/DMLMLR -> 21.87681636 | N13: =MT_ALL!N13/DMLMLR -> 25.36624647
A14: =MT_ALL!A14 -> Зовнішній борг | B14: =MT_ALL!B14/DMLMLR -> 43.44544179 | C14: =MT_ALL!C14/DMLMLR -> 43.57599762 | D14: =MT_ALL!D14/DMLMLR -> 43.44841164 | E14: =MT_ALL!E14/DMLMLR -> 44.12855835 | F14: =MT_ALL!F14/DMLMLR -> 44.55273467 | G14: =MT_ALL!G14/DMLMLR -> 44.13184839 | H14: =MT_ALL!H14/DMLMLR -> 44.16123941 | I14: =MT_ALL!I14/DMLMLR -> 44.20706307 | J14: =MT_ALL!J14/DMLMLR -> 44.36478245 | K14: =MT_ALL!K14/DMLMLR -> 46.4045281 | L14: =MT_ALL!L14/DMLMLR -> 46.04175818 | M14: =MT_ALL!M14/DMLMLR -> 45.66073848 | N14: =MT_ALL!N14/DMLMLR -> 45.60461814
N16: %%
B17: =MT_ALL!B17 -> 2015-12-31 | C17: =MT_ALL!C17 -> 2016-01-31 | D17: =MT_ALL!D17 -> 2016-02-29 | E17: =MT_ALL!E17 -> 2016-03-31 | F17: =MT_ALL!F17 -> 2016-04-30 | G17: =MT_ALL!G17 -> 2016-05-31 | H17: =MT_ALL!H17 -> 2016-06-30 | I17: =MT_ALL!I17 -> 2016-07-31 | J17: =MT_ALL!J17 -> 2016-08-31 | K17: =MT_ALL!K17 -> 2016-09-30 | L17: =MT_ALL!L17 -> 2016-10-31 | M17: =MT_ALL!M17 -> 2016-11-30 | N17: =MT_ALL!N17 -> 2016-12-31
A18: =MT_ALL!A18 -> Загальна сума державного та гарантованого державою боргу | B18: =SUM(B19:B20) -> 1 | C18: 1 | D18: 1 | E18: 1 | F18: 1 | G18: 1 | H18: 1 | I18: 1 | J18: 1 | K18: 1 | L18: 1 | M18: 0.968758 | N18: 1
A19: =MT_ALL!A19 -> Внутрішній борг | B19: =MT_ALL!B19 -> 0.336768 | C19: =MT_ALL!C19 -> 0.333981 | D19: =MT_ALL!D19 -> 0.324807 | E19: =MT_ALL!E19 -> 0.323565 | F19: =MT_ALL!F19 -> 0.336021 | G19: =MT_ALL!G19 -> 0.340324 | H19: =MT_ALL!H19 -> 0.342081 | I19: =MT_ALL!I19 -> 0.340248 | J19: =MT_ALL!J19 -> 0.335073 | K19: =MT_ALL!K19 -> 0.323731 | L19: =MT_ALL!L19 -> 0.326383 | M19: =MT_ALL!M19 -> 0.323547 | N19: =MT_ALL!N19 -> 0.357418
A20: =MT_ALL!A20 -> Зовнішній борг | B20: =MT_ALL!B20 -> 0.663232 | C20: =MT_ALL!C20 -> 0.666019 | D20: =MT_ALL!D20 -> 0.675193 | E20: =MT_ALL!E20 -> 0.676435 | F20: =MT_ALL!F20 -> 0.663979 | G20: =MT_ALL!G20 -> 0.659676 | H20: =MT_ALL!H20 -> 0.657919 | I20: =MT_ALL!I20 -> 0.659752 | J20: =MT_ALL!J20 -> 0.664927 | K20: =MT_ALL!K20 -> 0.676269 | L20: =MT_ALL!L20 -> 0.673617 | M20: =MT_ALL!M20 -> 0.645211 | N20: =MT_ALL!N20 -> 0.642582

Sheet MK_ALL (hidden)
A2: Державний та гарантований державою борг України за поточний рік
A4: =$A$2 & " (" &N4 & ")" -> Державний та гарантований державою борг України за поточний рік (млрд. грн) | N4: =VALUAH -> млрд. грн
B5: 2015-12-31 | C5: 2016-01-31 | D5: 2016-02-29 | E5: 2016-03-31 | F5: 2016-04-30 | G5: 2016-05-31 | H5: 2016-06-30 | I5: 2016-07-31 | J5: 2016-08-31 | K5: 2016-09-30 | L5: 2016-10-31 | M5: 2016-11-30 | N5: 2016-12-31
A6: Загальна сума державного та гарантованого державою боргу | B6: =SUM(B7:B8) -> 1572.180159 | C6: 1645.619663 | D6: 1740.938652 | E6: 1710.385692 | F6: 1690.006869 | G6: 1683.58637 | H6: 1668.292355 | I6: 1661.617607 | J6: 1711.549346 | K6: 1778.033864 | L6: 1742.649606 | M6: 1728.919126 | N6: 1929.758702
A7: Державний борг | B7: 1334.271601 | C7: 1392.400345 | D7: 1483.853513 | E7: 1457.673768 | F7: 1448.913707 | G7: 1448.548364 | H7: 1436.316669 | I7: 1427.357725 | J7: 1467.141146 | K7: 1505.115072 | L7: 1476.612625 | M7: 1464.551595 | N7: 1650.830835
A8: Гарантований державою борг | B8: 237.9085577 | C8: 253.2193177 | D8: 257.0851392 | E8: 252.7119234 | F8: 241.0931617 | G8: 235.0380063 | H8: 231.9756856 | I8: 234.2598821 | J8: 244.4082001 | K8: 272.918793 | L8: 266.0369813 | M8: 264.3675304 | N8: 278.9278672
A10: =$A$2 & " (" &N10 & ")" -> Державний та гарантований державою борг України за поточний рік (млрд. дол. США) | N10: =VALUSD -> млрд. дол. США
B11: 2015-12-31 | C11: 2016-01-31 | D11: 2016-02-29 | E11: 2016-03-31 | F11: 2016-04-30 | G11: 2016-05-31 | H11: 2016-06-30 | I11: 2016-07-31 | J11: 2016-08-31 | K11: 2016-09-30 | L11: 2016-10-31 | M11: 2016-11-30 | N11: 2016-12-31
A12: Загальна сума державного та гарантованого державою боргу | B12: =SUM(B13:B14) -> 65.50568611 | C12: 65.4275913 | D12: 64.34958306 | E12: 65.23693793 | F12: 67.09963632 | G12: 66.8992385 | H12: 67.122592 | I12: 67.00556245 | J12: 66.72124069 | K12: 68.61848438 | L12: 68.35005314 | M12: 67.53755485 | N12: 70.97086461
A13: Державний борг | B13: 55.59310503 | C13: 55.35993691 | D13: 54.8470532 | E13: 55.59808738 | F13: 57.52732998 | G13: 57.55973331 | H13: 57.78921032 | I13: 57.55891535 | J13: 57.19348832 | K13: 58.08591 | L13: 57.91557352 | M13: 57.21044566 | N13: 60.71271582
A14: Гарантований державою борг | B14: 9.912581084 | C14: 10.0676544 | D14: 9.502529855 | E14: 9.638850548 | F14: 9.572306343 | G14: 9.339505192 | H14: 9.333381679 | I14: 9.446647109 | J14: 9.527752375 | K14: 10.53257438 | L14: 10.43447963 | M14: 10.32710919 | N14: 10.25814879
N16: %%
B17: 2015-12-31 | C17: 2016-01-31 | D17: 2016-02-29 | E17: 2016-03-31 | F17: 2016-04-30 | G17: 2016-05-31 | H17: 2016-06-30 | I17: 2016-07-31 | J17: 2016-08-31 | K17: 2016-09-30 | L17: 2016-10-31 | M17: 2016-11-30 | N17: 2016-12-31
A18: Загальна сума державного та гарантованого державою боргу | B18: =SUM(B19:B20) -> 1 | C18: 1 | D18: 1 | E18: 1 | F18: 1 | G18: 1 | H18: 1 | I18: 1 | J18: 1 | K18: 1 | L18: 1 | M18: 0.968758 | N18: 1
A19: Державний борг | B19: 0.848676 | C19: 0.846125 | D19: 0.85233 | E19: 0.852249 | F19: 0.857342 | G19: 0.860394 | H19: 0.86095 | I19: 0.859017 | J19: 0.857201 | K19: 0.846505 | L19: 0.847338 | M19: 0.819691 | N19: 0.85546
A20: Гарантований державою борг | B20: 0.151324 | C20: 0.153875 | D20: 0.14767 | E20: 0.147751 | F20: 0.142658 | G20: 0.139606 | H20: 0.13905 | I20: 0.140983 | J20: 0.142799 | K20: 0.153495 | L20: 0.152662 | M20: 0.149067 | N20: 0.14454

Sheet SRATE_M (hidden)
A2: ="Державний та гарантований державою борг України за станом на " & TEXT(DREPORTDATE,"dd.MM.yyyy")&" (за видами відсоткових ставок)" -> Державний та гарантований державою борг України за станом на 31.12.2016 (за видами відсоткових ставок)
D4: =VALVAL -> млрд. одиниць
B5: дол.США | C5: грн. | D5: %
A6: Загальна сума державного та гарантованого державою боргу | B6: =SUM(B$7+ B$8) -> 70.97086461 | C6: 1929.758702 | D6: 1
A7: Борг, по якому сплата відсотків здійснюється за плаваючими процентними ставками | B7: 22.11028257 | C7: 601.1975538 | D7: 0.31154
A8: Борг, по якому сплата відсотків здійснюється за фіксованими процентними ставками | B8: 48.86058204 | C8: 1328.561148 | D8: 0.68846

Sheet SRATE (hidden)
A2: ="Державний та гарантований державою борг України за станом на " & TEXT(DREPORTDATE,"dd.MM.yyyy") -> Державний та гарантований державою борг України за станом на 31.12.2016
A3: (за видами відсоткових ставок)
D5: =VALVAL -> млрд. одиниць
B6: дол.США | C6: грн. | D6: %
A7: Загальна сума державного та гарантованого державою боргу | B7: =SUM(B$8+ B$9) -> 70.97086461 | C7: 1929.758702 | D7: 1
A8: =SRATE_M!A7 -> Борг, по якому сплата відсотків здійснюється за плаваючими процентними ставками | B8: =SRATE_M!B7 -> 22.11028257 | C8: =SRATE_M!C7 -> 601.1975538 | D8: =SRATE_M!D7 -> 0.31154
A9: =SRATE_M!A8 -> Борг, по якому сплата відсотків здійснюється за фіксованими процентними ставками | B9: =SRATE_M!B8 -> 48.86058204 | C9: =SRATE_M!C8 -> 1328.561148 | D9: =SRATE_M!D8 -> 0.68846
A11: В тому числі:
D12: =VALVAL -> млрд. одиниць
B13: дол.США | C13: грн. | D13: %
A14: Загальна сума державного та гарантованого державою боргу | B14: =B$18+B$15 -> 70.97086461 | C14: 1929.758702 | D14: 1
A15: Державний борг | B15: =SUM(B$16:B$17) -> 60.71271582 | C15: 1650.830835 | D15: 1.04334
A16: Борг, по якому сплата відсотків здійснюється за плаваючими процентними ставками | B16: 13.3340147 | C16: 362.5633003 | D16: 0.18788
A17: Борг, по якому сплата відсотків здійснюється за фіксованими процентними ставками | B17: 47.37870112 | C17: 1288.267534 | D17: 0.66758
A18: Гарантований державою борг | B18: =SUM(B$19:B$20) -> 10.25814879 | C18: 278.9278672 | D18: 0.2682
A19: Борг, по якому сплата відсотків здійснюється за плаваючими процентними ставками | B19: 8.776267873 | C19: 238.6342535 | D19: 0.12366
A20: Борг, по якому сплата відсотків здійснюється за фіксованими процентними ставками | B20: 1.481880921 | C20: 40.29361371 | D20: 0.02088

Sheet RATE_M
A2: ="Державний та гарантований державою борг України за станом на " & TEXT(DREPORTDATE,"dd.MM.yyyy") -> Державний та гарантований державою борг України за станом на 31.12.2016
A3: (за видами відсоткових ставок)
D5: =VALVAL -> млрд. одиниць
B6: дол.США | C6: грн. | D6: %
A7: Загальна сума державного та гарантованого державою боргу | B7: =SUM(B8:B19) -> 70.97086461 | C7: 1929.758702 | D7: 1
A8: LIBOR | B8: 9.034877108 | C8: 245.6660605 | D8: 0.127304
A9: Ставка МВФ | B9: 13.07540547 | C9: 355.5314934 | D9: 0.184236
A10: Фіксована | B10: 48.86058204 | C10: 1328.561148 | D10: 0.68846

Sheet RATE (hidden)
A2: ="Державний та гарантований державою борг України за станом на " & TEXT(DREPORTDATE,"dd.MM.yyyy") -> Державний та гарантований державою борг України за станом на 31.12.2016
A3: (за видами відсоткових ставок)
D5: =VALVAL -> млрд. одиниць
B6: дол.США | C6: грн. | D6: %
A7: Загальна сума державного та гарантованого державою боргу | B7: =SUM(B8:B18) -> 70.97086461 | C7: 1929.758702 | D7: 1
A8: LIBOR | B8: 9.034877108 | C8: 245.6660605 | D8: 0.127304
A9: Ставка МВФ | B9: 13.07540547 | C9: 355.5314934 | D9: 0.184236
A10: Фіксована | B10: 48.86058204 | C10: 1328.561148 | D10: 0.68846
A19: В тому числі:
B20: ="Державний борг України за станом на " & TEXT(DREPORTDATE,"dd.MM.yyyy") -> Державний борг України за станом на 31.12.2016 | D20: =VALVAL -> млрд. одиниць
B21: дол.США | C21: грн. | D21: %
A22: Загальна сума державного та гарантованого державою боргу | B22: =B$27+B$23 -> 70.97086461 | C22: 1929.758702 | D22: 1
A23: Державний борг | B23: =SUM(B$24:B$26) -> 60.71271582 | C23: 1650.830835 | D23: 0.85546
A24: LIBOR | B24: 6.50092424 | C24: 176.7657079 | D24: 0.0916
A25: Ставка МВФ | B25: 6.833090461 | C25: 185.7975924 | D25: 0.09628
A26: Фіксована | B26: 47.37870112 | C26: 1288.267534 | D26: 0.66758
A27: Гарантований державою борг | B27: =SUM(B$28:B$30) -> 10.25814879 | C27: 278.9278672 | D27: 0.14454
A28: LIBOR | B28: 2.533952867 | C28: 68.90035259 | D28: 0.035704
A29: Ставка МВФ | B29: 6.242315006 | C29: 169.7339009 | D29: 0.087956
A30: Фіксована | B30: 1.481880921 | C30: 40.29361371 | D30: 0.02088

Sheet RATE_CMP (hidden)
A2: Структура боргу за типом ставки на кінець попереднього року та звітну дату
H4: =VALVAL -> млрд. одиниць
B5: 2015-12-31 | E5: 2016-12-31
B6: дол.США | C6: грн. | D6: % | E6: дол.США | F6: грн. | G6: % | H6: Зміна структури
A7: Загальна сума державного та гарантованого державою боргу | B7: =SUM(B8:B15) -> 65.50568611 | C7: 1572.180159 | D7: 1 | E7: 70.97086461 | F7: 1929.758702 | G7: 1 | H7: 0
A8: LIBOR | B8: 8.905883117 | C8: 213.747135 | D8: 0.135956 | E8: 9.034877108 | F8: 245.6660605 | G8: 0.127304 | H8: -0.008652
A9: Ставка МВФ | B9: 12.48572817 | C9: 299.6658042 | D9: 0.190605 | E9: 13.07540547 | F9: 355.5314934 | G9: 0.184236 | H9: -0.006369
A10: Фіксована | B10: 44.11407482 | C10: 1058.76722 | D10: 0.673439 | E10: 48.86058204 | F10: 1328.561148 | G10: 0.68846 | H10: 0.015021
H11: =G11-D11 -> 0
H12: 0
H13: 0
H17: =VALVAL -> млрд. одиниць
B18: 2015-12-31 | E18: 2016-12-31
B19: дол.США | C19: грн. | D19: % | E19: дол.США | F19: грн. | G19: % | H19: Зміна структури
A20: Загальна сума державного та гарантованого державою боргу | B20: =B$25+B$21 -> 65.50568611 | C20: 1572.180159 | D20: 0.999999 | E20: 70.97086461 | F20: 1929.758702 | G20: 1 | H20: 0
A21: Державний борг | B21: =SUM(B$22:B$24) -> 55.59310503 | C21: 1334.271601 | D21: 0.848675 | E21: 60.71271582 | F21: 1650.830835 | G21: 0.85546 | H21: 0.006783
A22: LIBOR | B22: 6.302656922 | C22: 151.26797 | D22: 0.096215 | E22: 6.50092424 | F22: 176.7657079 | G22: 0.0916 | H22: -0.004616
A23: Ставка МВФ | B23: 7.043516065 | C23: 169.0490836 | D23: 0.107525 | E23: 6.833090461 | F23: 185.7975924 | G23: 0.09628 | H23: -0.011245
A24: Фіксована | B24: 42.24693204 | C24: 1013.954548 | D24: 0.644935 | E24: 47.37870112 | F24: 1288.267534 | G24: 0.66758 | H24: 0.022644
A25: Гарантований державою борг | B25: =SUM(B$26:B$28) -> 9.912581084 | C25: 237.9085577 | D25: 0.151324 | E25: 10.25814879 | F25: 278.9278672 | G25: 0.14454 | H25: -0.006783
A26: LIBOR | B26: 2.603226196 | C26: 62.47916505 | D26: 0.03974 | E26: 2.533952867 | F26: 68.90035259 | G26: 0.035704 | H26: -0.004036
A27: Ставка МВФ | B27: 5.44221211 | C27: 130.6167206 | D27: 0.08308 | E27: 6.242315006 | F27: 169.7339009 | G27: 0.087956 | H27: 0.004876
A28: Фіксована | B28: 1.867142779 | C28: 44.81267207 | D28: 0.028504 | E28: 1.481880921 | F28: 40.29361371 | G28: 0.02088 | H28: -0.007623

Sheet CUR_M
A2: ="Державний та гарантований державою борг України за станом на " & TEXT(DREPORTDATE,"dd.MM.yyyy") -> Державний та гарантований державою борг України за станом на 31.12.2016
A3: (в розрізі валют погашеня)
D5: =VALVAL -> млрд. одиниць
B6: дол.США | C6: грн. | D6: %
A7: Загальна сума державного та гарантованого державою боргу | B7: =SUM(B8:B26) -> 70.97086461 | C7: 1929.758702 | D7: 0.999999
A8: Долар США | B8: 31.63775002 | C8: 860.2575682 | D8: 0.445785
A9: ЄВРО | B9: 3.932361561 | C9: 106.9242848 | D9: 0.055408
A10: Канадський долар | B10: 0.295407655 | C10: 8.0323876 | D10: 0.004162
A11: СПЗ | B11: 13.07540547 | C11: 355.5314934 | D11: 0.184236
A12: Українська гривня | B12: 21.48006667 | C12: 584.0614428 | D12: 0.30266
A13: Японська єна | B13: 0.5498732387 | C13: 14.95152515 | D13: 0.007748

Sheet CUR (hidden)
A2: ="Державний та гарантований державою борг України за станом на " & TEXT(DREPORTDATE,"dd.MM.yyyy") -> Державний та гарантований державою борг України за станом на 31.12.2016
A3: (в розрізі валют погашеня)
D5: =VALVAL -> млрд. одиниць
B6: дол.США | C6: грн. | D6: %
A7: Загальна сума державного та гарантованого державою боргу | B7: =SUM(B8:B18) -> 70.97086461 | C7: 1929.758702 | D7: 0.999999
A8: Долар США | B8: 31.63775002 | C8: 860.2575682 | D8: 0.445785
A9: ЄВРО | B9: 3.932361561 | C9: 106.9242848 | D9: 0.055408
A10: Канадський долар | B10: 0.295407655 | C10: 8.0323876 | D10: 0.004162
A11: СПЗ | B11: 13.07540547 | C11: 355.5314934 | D11: 0.184236
A12: Українська гривня | B12: 21.48006667 | C12: 584.0614428 | D12: 0.30266
A13: Японська єна | B13: 0.5498732387 | C13: 14.95152515 | D13: 0.007748
A20: В тому числі:
B21: ="Державний борг України за станом на " & TEXT(DREPORTDATE,"dd.MM.yyyy") -> Державний борг України за станом на 31.12.2016 | D21: =VALVAL -> млрд. одиниць
B22: дол.США | C22: грн. | D22: %
A23: Загальна сума державного та гарантованого державою боргу | B23: =B$31+B$24 -> 70.97086461 | C23: 1929.758702 | D23: 1
A24: Державний борг | B24: =SUM(B$25:B$30) -> 60.71271582 | C24: 1650.830835 | D24: 0.85546
A25: Долар США | B25: 28.45312039 | C25: 773.6647561 | D25: 0.400913
A26: ЄВРО | B26: 3.803028424 | C26: 103.4076059 | D26: 0.053586
A27: Канадський долар | B27: 0.295407655 | C27: 8.0323876 | D27: 0.004162
A28: СПЗ | B28: 6.833090461 | C28: 185.7975924 | D28: 0.09628
A29: Українська гривня | B29: 20.77819565 | C29: 564.9769675 | D29: 0.292771
A30: Японська єна | B30: 0.5498732387 | C30: 14.95152515 | D30: 0.007748
A31: Гарантований державою борг | B31: =SUM(B$32:B$35) -> 10.25814879 | C31: 278.9278672 | D31: 0.14454
A32: Долар США | B32: 3.184629632 | C32: 86.5928121 | D32: 0.044872
A33: ЄВРО | B33: 0.1293331366 | C33: 3.516678951 | D33: 0.001822
A34: СПЗ | B34: 6.242315006 | C34: 169.7339009 | D34: 0.087956
A35: Українська гривня | B35: 0.7018710203 | C35: 19.08447525 | D35: 0.00989

Sheet CUR_CMP (hidden)
A2: Валютна структура державного боргу на кінець попереднього року та звітну дату
H5: =VALVAL -> млрд. одиниць
B6: 2015-12-31 | E6: 2016-12-31
B7: дол.США | C7: грн. | D7: % | E7: дол.США | F7: грн. | G7: % | H7: Зміна структури
A8: Загальна сума державного та гарантованого державою боргу | B8: =SUM(B9:B18) -> 65.50568611 | C8: 1572.180159 | D8: 1.000001 | E8: 70.97086461 | F8: 1929.758702 | G8: 0.999999 | H8: 0
A9: Долар США | B9: 29.08306251 | C9: 698.0128986 | D9: 0.443978 | E9: 31.63775002 | F9: 860.2575682 | G9: 0.445785 | H9: 0.001807
A10: ЄВРО | B10: 3.89963574 | C10: 93.59385881 | D10: 0.059531 | E10: 3.932361561 | F10: 106.9242848 | G10: 0.055408 | H10: -0.004123
A11: Канадський долар | B11: 0.2880759272 | C11: 6.9140144 | D11: 0.004398 | E11: 0.295407655 | F11: 8.0323876 | G11: 0.004162 | H11: -0.000235
A12: СПЗ | B12: 12.48572817 | C12: 299.6658042 | D12: 0.190605 | E12: 13.07540547 | F12: 355.5314934 | G12: 0.184236 | H12: -0.006369
A13: Українська гривня | B13: 19.51548833 | C13: 468.3847367 | D13: 0.297921 | E13: 21.48006667 | F13: 584.0614428 | G13: 0.30266 | H13: 0.00474
A14: Японська єна | B14: 0.2336954364 | C14: 5.608846349 | D14: 0.003568 | E14: 0.5498732387 | F14: 14.95152515 | G14: 0.007748 | H14: 0.00418
H21: =VALVAL -> млрд. одиниць
B22: 2015-12-31 | E22: 2016-12-31
B23: дол.США | C23: грн. | D23: % | E23: дол.США | F23: грн. | G23: % | H23: Зміна структури
A24: Загальна сума державного та гарантованого державою боргу | B24: =B$32+B$25 -> 65.50568611 | C24: 1572.180159 | D24: 0.999999 | E24: 70.97086461 | F24: 1929.758702 | G24: 1 | H24: 0
A25: Державний борг | B25: =SUM(B$26:B$31) -> 55.59310503 | C25: 1334.271601 | D25: 0.848676 | E25: 60.71271582 | F25: 1650.830835 | G25: 0.85546 | H25: 0.006784
A26: Долар США | B26: 25.61686983 | C26: 614.8219623 | D26: 0.391063 | E26: 28.45312039 | F26: 773.6647561 | G26: 0.400913 | H26: 0.009849
A27: ЄВРО | B27: 3.789578552 | C27: 90.95241291 | D27: 0.057851 | E27: 3.803028424 | F27: 103.4076059 | G27: 0.053586 | H27: -0.004265
A28: Канадський долар | B28: 0.2880759272 | C28: 6.9140144 | D28: 0.004398 | E28: 0.295407655 | F28: 8.0323876 | G28: 0.004162 | H28: -0.000235
A29: СПЗ | B29: 7.043516065 | C29: 169.0490836 | D29: 0.107525 | E29: 6.833090461 | F29: 185.7975924 | G29: 0.09628 | H29: -0.011245
A30: Українська гривня | B30: 18.62136922 | C30: 446.9252818 | D30: 0.284271 | E30: 20.77819565 | F30: 564.9769675 | G30: 0.292771 | H30: 0.0085
A31: Японська єна | B31: 0.2336954364 | C31: 5.608846349 | D31: 0.003568 | E31: 0.5498732387 | F31: 14.95152515 | G31: 0.007748 | H31: 0.00418
A32: Гарантований державою борг | B32: =SUM(B$33:B$36) -> 9.912581084 | C32: 237.9085577 | D32: 0.151323 | E32: 10.25814879 | F32: 278.9278672 | G32: 0.14454 | H32: -0.006784
A33: Долар США | B33: 3.466192681 | C33: 83.1909363 | D33: 0.052914 | E33: 3.184629632 | F33: 86.5928121 | G33: 0.044872 | H33: -0.008042
A34: ЄВРО | B34: 0.1100571874 | C34: 2.641445906 | D34: 0.00168 | E34: 0.1293331366 | F34: 3.516678951 | G34: 0.001822 | H34: 0.000142
A35: СПЗ | B35: 5.44221211 | C35: 130.6167206 | D35: 0.08308 | E35: 6.242315006 | F35: 169.7339009 | G35: 0.087956 | H35: 0.004876
A36: Українська гривня | B36: 0.8941191053 | C36: 21.45945491 | D36: 0.013649 | E36: 0.7018710203 | F36: 19.08447525 | G36: 0.00989 | H36: -0.00376

Sheet CUR_M_EXT (hidden)
A2: Валютна структура боргу на кінець попереднього року та на звітну дату
N4: =VALVAL -> млрд. одиниць
B5: 2015-12-31 | H5: 2016-12-31
B6: оріг. | C6: курс до USD | D6: курс до UAH | E6: дол.США | F6: грн. | G6: % | H6: оріг. | I6: курс до USD | J6: курс до UAH | K6: дол.США | L6: грн. | M6: % | N6: Зміна структури
A7: Загальна сума державного та гарантованого державою боргу | E7: =SUM(E8:E23) -> 65.50568611 | F7: 1572.180159 | G7: 1.000001 | K7: =SUM(K8:K23) -> 70.97086461 | L7: 1929.758702 | M7: 0.999999 | N7: 0
A8: Долар США | B8: 29.08306251 | C8: 1 | D8: 24.000667 | E8: 29.08306251 | F8: 698.0128986 | G8: 0.443978 | H8: 31.63775002 | I8: 1 | J8: 27.190858 | K8: 31.63775002 | L8: 860.2575682 | M8: 0.445785 | N8: 0.001807
A9: ЄВРО | B9: 3.569133905 | C9: 1.0926 | D9: 26.223129 | E9: 3.89963574 | F9: 93.59385881 | G9: 0.059531 | H9: 3.761945415 | I9: 1.0453 | J9: 28.422604 | K9: 3.932361561 | L9: 106.9242848 | M9: 0.055408 | N9: -0.004123
A10: Канадський долар | B10: 0.4 | C10: 0.72019 | D10: 17.285036 | E10: 0.2880759272 | F10: 6.9140144 | G10: 0.004398 | H10: 0.4 | I10: 0.738519 | J10: 20.080969 | K10: 0.295407655 | L10: 8.0323876 | M10: 0.004162 | N10: -0.000235
A11: СПЗ | B11: 9.010213407 | C11: 1.385731 | D11: 33.258458 | E11: 12.48572817 | F11: 299.6658042 | G11: 0.190605 | H11: 9.726323407 | I11: 1.344332 | J11: 36.553534 | K11: 13.07540547 | L11: 355.5314934 | M11: 0.184236 | N11: -0.006369
A12: Українська гривня | B12: 468.3847367 | C12: 0.041666 | D12: 1 | E12: 19.51548833 | F12: 468.3847367 | G12: 0.297921 | H12: 584.0614428 | I12: 0.036777 | J12: 1 | K12: 21.48006667 | L12: 584.0614428 | M12: 0.30266 | N12: 0.00474
A13: Японська єна | B13: 28.160662 | C13: 0.008299 | D13: 0.199173 | E13: 0.2336954364 | F13: 5.608846349 | G13: 0.003568 | H13: 64.198346 | I13: 0.008565 | J13: 0.232896 | K13: 0.5498732387 | L13: 14.95152515 | M13: 0.007748 | N13: 0.00418

Sheet CUR_CMP_EXT (hidden)
A2: Валютна структура боргу на кінець попереднього року та на звітну дату (розширений)
N4: =VALVAL -> млрд. одиниць
B5: 2015-12-31 | H5: 2016-12-31
B6: оріг. | C6: курс до USD | D6: курс до UAH | E6: дол.США | F6: грн. | G6: % | H6: оріг. | I6: курс до USD | J6: курс до UAH | K6: дол.США | L6: грн. | M6: % | N6: Зміна структури
A7: Загальна сума державного та гарантованого державою боргу | E7: =SUM(E8:E24) -> 65.50568611 | F7: 1572.180159 | G7: 1.000001 | K7: =SUM(K8:K24) -> 70.97086461 | L7: 1929.758702 | M7: 0.999999 | N7: 0
A8: Долар США | B8: 29.08306251 | C8: 1 | D8: 24.000667 | E8: 29.08306251 | F8: 698.0128986 | G8: 0.443978 | H8: 31.63775002 | I8: 1 | J8: 27.190858 | K8: 31.63775002 | L8: 860.2575682 | M8: 0.445785 | N8: 0.001807
A9: ЄВРО | B9: 3.569133905 | C9: 1.0926 | D9: 26.223129 | E9: 3.89963574 | F9: 93.59385881 | G9: 0.059531 | H9: 3.761945415 | I9: 1.0453 | J9: 28.422604 | K9: 3.932361561 | L9: 106.9242848 | M9: 0.055408 | N9: -0.004123
A10: Канадський долар | B10: 0.4 | C10: 0.72019 | D10: 17.285036 | E10: 0.2880759272 | F10: 6.9140144 | G10: 0.004398 | H10: 0.4 | I10: 0.738519 | J10: 20.080969 | K10: 0.295407655 | L10: 8.0323876 | M10: 0.004162 | N10: -0.000235
A11: СПЗ | B11: 9.010213407 | C11: 1.385731 | D11: 33.258458 | E11: 12.48572817 | F11: 299.6658042 | G11: 0.190605 | H11: 9.726323407 | I11: 1.344332 | J11: 36.553534 | K11: 13.07540547 | L11: 355.5314934 | M11: 0.184236 | N11: -0.006369
A12: Українська гривня | B12: 468.3847367 | C12: 0.041666 | D12: 1 | E12: 19.51548833 | F12: 468.3847367 | G12: 0.297921 | H12: 584.0614428 | I12: 0.036777 | J12: 1 | K12: 21.48006667 | L12: 584.0614428 | M12: 0.30266 | N12: 0.00474
A13: Японська єна | B13: 28.160662 | C13: 0.008299 | D13: 0.199173 | E13: 0.2336954364 | F13: 5.608846349 | G13: 0.003568 | H13: 64.198346 | I13: 0.008565 | J13: 0.232896 | K13: 0.5498732387 | L13: 14.95152515 | M13: 0.007748 | N13: 0.00418
N23: =VALVAL -> млрд. одиниць
B24: 2015-12-31 | H24: 2016-12-31
B25: оріг. | C25: курс до USD | D25: курс до UAH | E25: дол.США | F25: грн. | G25: % | H25: оріг. | I25: курс до USD | J25: курс до UAH | K25: дол.США | L25: грн. | M25: % | N25: Зміна структури
A26: Загальна сума державного та гарантованого державою боргу | B26: =B$34+B$27 -> 538.6078085 | C26: 7.768483 | D26: 186.448717 | E26: 65.50568611 | F26: 1572.180159 | G26: 0.999999 | H26: 693.7858076 | I26: 7.599902 | J26: 206.647857 | K26: 70.97086461 | L26: 1929.758702 | M26: 1 | N26: 0
A27: Державний борг | B27: =SUM(B$28:B$33) -> 509.6541079 | C27: 4.248486 | D27: 101.966463 | E27: 55.59310503 | F27: 1334.271601 | G27: 0.848676 | H27: 666.7495411 | I27: 4.173493 | J27: 113.480861 | K27: 60.71271582 | L27: 1650.830835 | M27: 0.85546 | N27: 0.006784
A28: Долар США | B28: 25.61686983 | C28: 1 | D28: 24.000667 | E28: 25.61686983 | F28: 614.8219623 | G28: 0.391063 | H28: 28.45312039 | I28: 1 | J28: 27.190858 | K28: 28.45312039 | L28: 773.6647561 | M28: 0.400913 | N28: 0.009849
A29: ЄВРО | B29: 3.468404282 | C29: 1.0926 | D29: 26.223129 | E29: 3.789578552 | F29: 90.95241291 | G29: 0.057851 | H29: 3.638217169 | I29: 1.0453 | J29: 28.422604 | K29: 3.803028424 | L29: 103.4076059 | M29: 0.053586 | N29: -0.004265
A30: Канадський долар | B30: 0.4 | C30: 0.72019 | D30: 17.285036 | E30: 0.2880759272 | F30: 6.9140144 | G30: 0.004398 | H30: 0.4 | I30: 0.738519 | J30: 20.080969 | K30: 0.295407655 | L30: 8.0323876 | M30: 0.004162 | N30: -0.000235
A31: СПЗ | B31: 5.08289 | C31: 1.385731 | D31: 33.258458 | E31: 7.043516065 | F31: 169.0490836 | G31: 0.107525 | H31: 5.08289 | I31: 1.344332 | J31: 36.553534 | K31: 6.833090461 | L31: 185.7975924 | M31: 0.09628 | N31: -0.011245
A32: Українська гривня | B32: 446.9252818 | C32: 0.041666 | D32: 1 | E32: 18.62136922 | F32: 446.9252818 | G32: 0.284271 | H32: 564.9769675 | I32: 0.036777 | J32: 1 | K32: 20.77819565 | L32: 564.9769675 | M32: 0.292771 | N32: 0.0085
A33: Японська єна | B33: 28.160662 | C33: 0.008299 | D33: 0.199173 | E33: 0.2336954364 | F33: 5.608846349 | G33: 0.003568 | H33: 64.198346 | I33: 0.008565 | J33: 0.232896 | K33: 0.5498732387 | L33: 14.95152515 | M33: 0.007748 | N33: 0.00418
A34: Гарантований державою борг | B34: =SUM(B$35:B$38) -> 28.95370062 | C34: 3.519997 | D34: 84.482254 | E34: 9.912581084 | F34: 237.9085577 | G34: 0.151323 | H34: 27.03626653 | I34: 3.426409 | J34: 93.166996 | K34: 10.25814879 | L34: 278.9278672 | M34: 0.14454 | N34: -0.006784
A35: Долар США | B35: 3.466192681 | C35: 1 | D35: 24.000667 | E35: 3.466192681 | F35: 83.1909363 | G35: 0.052914 | H35: 3.184629632 | I35: 1 | J35: 27.190858 | K35: 3.184629632 | L35: 86.5928121 | M35: 0.044872 | N35: -0.008042
A36: ЄВРО | B36: 0.1007296233 | C36: 1.0926 | D36: 26.223129 | E36: 0.1100571874 | F36: 2.641445906 | G36: 0.00168 | H36: 0.1237282464 | I36: 1.0453 | J36: 28.422604 | K36: 0.1293331366 | L36: 3.516678951 | M36: 0.001822 | N36: 0.000142
A37: СПЗ | B37: 3.927323407 | C37: 1.385731 | D37: 33.258458 | E37: 5.44221211 | F37: 130.6167206 | G37: 0.08308 | H37: 4.643433407 | I37: 1.344332 | J37: 36.553534 | K37: 6.242315006 | L37: 169.7339009 | M37: 0.087956 | N37: 0.004876
A38: Українська гривня | B38: 21.45945491 | C38: 0.041666 | D38: 1 | E38: 0.8941191053 | F38: 21.45945491 | G38: 0.013649 | H38: 19.08447525 | I38: 0.036777 | J38: 1 | K38: 0.7018710203 | L38: 19.08447525 | M38: 0.00989 | N38: -0.00376

Sheet DKT1 (hidden)
A2: ="Державний та гарантований державою борг України за станом на " & TEXT(DREPORTDATE,"dd.MM.yyyy") -> Державний та гарантований державою борг України за станом на 31.12.2016
A3: (за типом кредитора)
D5: =VALVAL -> млрд. одиниць
B6: дол.США | C6: грн. | D6: % | E6: FORMAT
A7: Загальна сума державного та гарантованого державою боргу | B7: =B$18+B$8 -> 70.97086461 | C7: 1929.758702 | D7: 0.999999 | E7: 3
A8: Державний борг | B8: =B$9+B$12 -> 60.71271582 | C8: 1650.830835 | D8: 0.85546 | E8: 3
A9: Внутрішній борг | B9: =SUM(B$10:B$11) -> 24.66437545 | C9: 670.6455305 | D9: 0.347528 | E9: 2
A10: 1. Заборгованість за випущеними цінними паперами на внутрішньому ринку | B10: 24.57196211 | C10: 668.1327326 | D10: 0.346226 | E10: 1
A11: 2. Заборгованість перед банківськими та іншими фінансовими установами | B11: 0.09241333715 | C11: 2.512797928 | D11: 0.001302
A12: Зовнішній борг | B12: =SUM(B$13:B$17) -> 36.04834037 | C12: 980.1853041 | D12: 0.507932
A13: 1. Заборгованість за позиками, одержаними від міжнародних фінансових організацій | B13: 13.67533621 | C13: 371.8441251 | D13: 0.192689
A14: 2. Заборгованість за позиками, одержаними від органів управління іноземних держав | B14: 1.678781308 | C14: 45.64750416 | D14: 0.023655
A15: 3. Заборгованість за позиками, одержаними від іноземних комерційних банків, інших іноземних фінансових установ | B15: 5.344535e-05 | C15: 0.001453225 | D15: 1e-06
A16: 4. Заборгованість за випущеними цінними паперами на зовнішньому ринку | B16: 19.04333 | C16: 517.8044819 | D16: 0.268326
A17: 5. Заборгованість, не віднесена до інших категорій | B17: 1.650839402 | C17: 44.88773975 | D17: 0.023261
A18: Гарантований державою борг | B18: =B$19+B$23 -> 10.25814879 | C18: 278.9278672 | D18: 0.144539
A19: Внутрішній борг | B19: =SUM(B$20:B$22) -> 0.7018710203 | C19: 19.08447525 | D19: 0.009889
A20: 1. Заборгованість за випущеними цінними паперами на внутрішньому ринку | B20: 0.5865946415 | C20: 15.9500116 | D20: 0.008265
A21: 2. Заборгованість перед банківськими та іншими фінансовими установами | B21: 0.1152412696 | C21: 3.133508998 | D21: 0.001624
A22: 3. Заборгованість, не віднесена до інших категорій | B22: 3.510923e-05 | C22: 0.00095465 | D22: 0
A23: Зовнішній борг | B23: =SUM(B$24:B$27) -> 9.556277774 | C23: 259.843392 | D23: 0.13465
A24: 1. Заборгованість за позиками, одержаними від міжнародних фінансових організацій | B24: 7.022031708 | C24: 190.935067 | D24: 0.098942
A25: 2. Заборгованість за позиками, одержаними від органів управління іноземних держав | B25: 0.14621678 | C25: 3.975759701 | D25: 0.00206
A26: 3. Заборгованість за позиками, одержаними від іноземних комерційних банків, інших іноземних фінансових установ | B26: 2.278542328 | C26: 61.95552088 | D26: 0.032105
A27: 5. Заборгованість, не віднесена до інших категорій | B27: 0.1094869587 | C27: 2.977044347 | D27: 0.001543

Sheet DKR (hidden)
A2: ="Державний та гарантований державою борг України за станом на " & TEXT(DREPORTDATE,"dd.MM.yyyy") -> Державний та гарантований державою борг України за станом на 31.12.2016
A3: (за типом кредитора)
D5: =VALVAL -> млрд. одиниць
B6: дол.США | C6: грн. | D6: %
A7: Загальна сума державного та гарантованого державою боргу | B7: =SUM(B8:B46) -> 70.97086461 | C7: 1929.758702 | D7: 1
A8: Внутрішній борг за випущеними цінними паперами | B8: 25.15855676 | C8: 684.0827442 | D8: 0.354491
A9: Внутрішній борг перед банківськими та іншими фінансовими установами | B9: 0.2076546068 | C9: 5.646306926 | D9: 0.002926
A10: Внутрішня заборгованість, не віднесена до інших категорій | B10: 3.510923e-05 | C10: 0.00095465 | D10: 0
A11: Зовнішній борг за випущеними цінними паперами | B11: 19.04333 | C11: 517.8044819 | D11: 0.268326
A12: Зовнішній борг за позиками, одержаними від іноземних комерційних банків, інших іноземних фінансових установ | B12: 2.278595773 | C12: 61.9569741 | D12: 0.032106
A13: Зовнішній борг за позиками, одержаними від міжнародних фінансових організацій | B13: 20.69736792 | C13: 562.7791921 | D13: 0.291632
A14: Зовнішній борг за позиками, одержаними від органів управління іноземних держав | B14: 1.824998088 | C14: 49.62326386 | D14: 0.025715
A15: Зовнішній борг, не віднесений до інших категорій | B15: 1.76032636 | C15: 47.8647841 | D15: 0.024804

Sheet DKR2 (hidden)
A1: ="Державний борг України за станом на " & TEXT(DREPORTDATE,"dd.MM.yyyy") -> Державний борг України за станом на 31.12.2016
A2: ="Гарантований державою борг України за станом на " & TEXT(DREPORTDATE,"dd.MM.yyyy") -> Гарантований державою борг України за станом на 31.12.2016
A3: ="Державний та гарантований державою борг України за станом на " & TEXT(DREPORTDATE,"dd.MM.yyyy") -> Державний та гарантований державою борг України за станом на 31.12.2016
A4: (за типом кредитора)
D6: =VALVAL -> млрд. одиниць
B7: дол.США | C7: грн. | D7: %
A8: Загальна сума державного та гарантованого державою боргу | B8: =B$17+B$9 -> 70.97086461 | C8: 1929.758702 | D8: 2.092451
A9: Державний борг | B9: =SUM(B$10:B$16) -> 60.71271582 | C9: 1650.830835 | D9: 1.25546
A10: Внутрішній борг за випущеними цінними паперами | B10: 24.57196211 | C10: 668.1327326 | D10: 0.346226
A11: Внутрішній борг перед банківськими та іншими фінансовими установами | B11: 0.09241333715 | C11: 2.512797928 | D11: 0.001302
A12: Зовнішній борг за випущеними цінними паперами | B12: 19.04333 | C12: 517.8044819 | D12: 0.268326
A13: Зовнішній борг за позиками, одержаними від іноземних комерційних банків, інших іноземних фінансових установ | B13: 5.344535e-05 | C13: 0.001453225 | D13: 1e-06
A14: Зовнішній борг за позиками, одержаними від міжнародних фінансових організацій | B14: 13.67533621 | C14: 371.8441251 | D14: 0.192689
A15: Зовнішній борг за позиками, одержаними від органів управління іноземних держав | B15: 1.678781308 | C15: 45.64750416 | D15: 0.023655
A16: Зовнішній борг, не віднесений до інших категорій | B16: 1.650839402 | C16: 44.88773975 | D16: 0.023261
A17: Гарантований державою борг | B17: =SUM(B$18:B$24) -> 10.25814879 | C17: 278.9278672 | D17: 0.144539
A18: Внутрішній борг за випущеними цінними паперами | B18: 0.5865946415 | C18: 15.9500116 | D18: 0.008265
A19: Внутрішній борг перед банківськими та іншими фінансовими установами | B19: 0.1152412696 | C19: 3.133508998 | D19: 0.001624
A20: Внутрішня заборгованість, не віднесена до інших категорій | B20: 3.510923e-05 | C20: 0.00095465 | D20: 0
A21: Зовнішній борг за позиками, одержаними від іноземних комерційних банків, інших іноземних фінансових установ | B21: 2.278542328 | C21: 61.95552088 | D21: 0.032105
A22: Зовнішній борг за позиками, одержаними від міжнародних фінансових організацій | B22: 7.022031708 | C22: 190.935067 | D22: 0.098942
A23: Зовнішній борг за позиками, одержаними від органів управління іноземних держав | B23: 0.14621678 | C23: 3.975759701 | D23: 0.00206
A24: Зовнішній борг, не віднесений до інших категорій | B24: 0.1094869587 | C24: 2.977044347 | D24: 0.001543

Sheet YT_ALL (hidden)
A2: Державний та гарантований державою борг України за останні 5 років
A4: =$A$2 & " (" &G4 & ")" -> Державний та гарантований державою борг України за останні 5 років (млрд. грн) | G4: =VALUAH -> млрд. грн
B5: 2011-12-31 | C5: 2012-12-31 | D5: 2013-12-31 | E5: 2014-12-31 | F5: 2015-12-31 | G5: 2016-12-31
A6: Загальна сума державного та гарантованого державою боргу | B6: =SUM(B$7+ B$8) -> 473.1851846 | C6: 515.5108331 | D6: 584.7865709 | E6: 1100.833217 | F6: 1572.180159 | G6: 1929.758702
A7: Внутрішній борг | B7: 173.7701995 | C7: 206.5107136 | D7: 284.0887255 | E7: 488.8669074 | F7: 529.460578 | G7: 689.7300058
A8: Зовнішній борг | B8: 299.4149851 | C8: 309.0001195 | D8: 300.6978455 | E8: 611.9663093 | F8: 1042.719581 | G8: 1240.028696
A10: =$A$2 & " (" &G10 & ")" -> Державний та гарантований державою борг України за останні 5 років (млрд. дол. США) | G10: =VALUSD -> млрд. дол. США
B11: 2011-12-31 | C11: 2012-12-31 | D11: 2013-12-31 | E11: 2014-12-31 | F11: 2015-12-31 | G11: 2016-12-31
A12: Загальна сума державного та гарантованого державою боргу | B12: =SUM(B$13+ B$14) -> 59.22365823 | C12: 64.49528751 | D12: 73.16233841 | E12: 69.81192296 | F12: 65.50568611 | G12: 70.97086461
A13: Внутрішній борг | B13: 21.74900492 | C13: 25.83644609 | D13: 35.5421901 | E13: 31.00264269 | F13: 22.06024433 | G13: 25.36624647
A14: Зовнішній борг | B14: 37.47465332 | C14: 38.65884142 | D14: 37.62014831 | E14: 38.80928028 | F14: 43.44544179 | G14: 45.60461814
G16: %
B17: 2011-12-31 | C17: 2012-12-31 | D17: 2013-12-31 | E17: 2014-12-31 | F17: 2015-12-31 | G17: 2016-12-31
A18: Загальна сума державного та гарантованого державою боргу | B18: =SUM(B$19+ B$20) -> 1 | C18: 1 | D18: 1 | E18: 1 | F18: 1 | G18: 1
A19: Внутрішній борг | B19: 0.367235 | C19: 0.400594 | D19: 0.485799 | E19: 0.444088 | F19: 0.336768 | G19: 0.357418
A20: Зовнішній борг | B20: 0.632765 | C20: 0.599406 | D20: 0.514201 | E20: 0.555912 | F20: 0.663232 | G20: 0.642582

Sheet YTM_ALL (hidden)
A2: Державний та гарантований державою борг України за останні 5 років
G4: млрд. грн.
B5: =YT_ALL!B5 -> 2011-12-31 | C5: =YT_ALL!C5 -> 2012-12-31 | D5: =YT_ALL!D5 -> 2013-12-31 | E5: =YT_ALL!E5 -> 2014-12-31 | F5: =YT_ALL!F5 -> 2015-12-31 | G5: =YT_ALL!G5 -> 2016-12-31
A6: Загальна сума державного та гарантованого державою боргу | B6: =SUM(B$7+ B$8) -> 473.1851846 | C6: 515.5108331 | D6: 584.7865709 | E6: 1100.833217 | F6: 1572.180159 | G6: 1929.758702
A7: =YT_ALL!A7 -> Внутрішній борг | B7: =YT_ALL!B7/DMLMLR -> 173.7701995 | C7: =YT_ALL!C7/DMLMLR -> 206.5107136 | D7: =YT_ALL!D7/DMLMLR -> 284.0887255 | E7: =YT_ALL!E7/DMLMLR -> 488.8669074 | F7: =YT_ALL!F7/DMLMLR -> 529.460578 | G7: =YT_ALL!G7/DMLMLR -> 689.7300058
A8: =YT_ALL!A8 -> Зовнішній борг | B8: =YT_ALL!B8/DMLMLR -> 299.4149851 | C8: =YT_ALL!C8/DMLMLR -> 309.0001195 | D8: =YT_ALL!D8/DMLMLR -> 300.6978455 | E8: =YT_ALL!E8/DMLMLR -> 611.9663093 | F8: =YT_ALL!F8/DMLMLR -> 1042.719581 | G8: =YT_ALL!G8/DMLMLR -> 1240.028696
G10: млрд. дол.США
B11: =YT_ALL!B11 -> 2011-12-31 | C11: =YT_ALL!C11 -> 2012-12-31 | D11: =YT_ALL!D11 -> 2013-12-31 | E11: =YT_ALL!E11 -> 2014-12-31 | F11: =YT_ALL!F11 -> 2015-12-31 | G11: =YT_ALL!G11 -> 2016-12-31
A12: Загальна сума державного та гарантованого державою боргу | B12: =SUM(B$13+ B$14) -> 59.22365823 | C12: 64.49528751 | D12: 73.16233841 | E12: 69.81192296 | F12: 65.50568611 | G12: 70.97086461
A13: =YT_ALL!A13 -> Внутрішній борг | B13: =YT_ALL!B13/DMLMLR -> 21.74900492 | C13: =YT_ALL!C13/DMLMLR -> 25.83644609 | D13: =YT_ALL!D13/DMLMLR -> 35.5421901 | E13: =YT_ALL!E13/DMLMLR -> 31.00264269 | F13: =YT_ALL!F13/DMLMLR -> 22.06024433 | G13: =YT_ALL!G13/DMLMLR -> 25.36624647
A14: =YT_ALL!A14 -> Зовнішній борг | B14: =YT_ALL!B14/DMLMLR -> 37.47465332 | C14: =YT_ALL!C14/DMLMLR -> 38.65884142 | D14: =YT_ALL!D14/DMLMLR -> 37.62014831 | E14: =YT_ALL!E14/DMLMLR -> 38.80928028 | F14: =YT_ALL!F14/DMLMLR -> 43.44544179 | G14: =YT_ALL!G14/DMLMLR -> 45.60461814
G16: %
B17: =YT_ALL!B17 -> 2011-12-31 | C17: =YT_ALL!C17 -> 2012-12-31 | D17: =YT_ALL!D17 -> 2013-12-31 | E17: =YT_ALL!E17 -> 2014-12-31 | F17: =YT_ALL!F17 -> 2015-12-31 | G17: =YT_ALL!G17 -> 2016-12-31
A18: Загальна сума державного та гарантованого державою боргу | B18: =SUM(B$19+ B$20) -> 1 | C18: 1 | D18: 1 | E18: 1 | F18: 1 | G18: 1
A19: =YT_ALL!A19 -> Внутрішній борг | B19: =YT_ALL!B19 -> 0.367235 | C19: =YT_ALL!C19 -> 0.400594 | D19: =YT_ALL!D19 -> 0.485799 | E19: =YT_ALL!E19 -> 0.444088 | F19: =YT_ALL!F19 -> 0.336768 | G19: =YT_ALL!G19 -> 0.357418
A20: =YT_ALL!A20 -> Зовнішній борг | B20: =YT_ALL!B20 -> 0.632765 | C20: =YT_ALL!C20 -> 0.599406 | D20: =YT_ALL!D20 -> 0.514201 | E20: =YT_ALL!E20 -> 0.555912 | F20: =YT_ALL!F20 -> 0.663232 | G20: =YT_ALL!G20 -> 0.642582

Sheet YKM_ALL (hidden)
A2: Державний та гарантований державою борг України за останні 5 років
G4: млрд. грн.
B5: =YT_ALL!B5 -> 2011-12-31 | C5: =YT_ALL!C5 -> 2012-12-31 | D5: =YT_ALL!D5 -> 2013-12-31 | E5: =YT_ALL!E5 -> 2014-12-31 | F5: =YT_ALL!F5 -> 2015-12-31 | G5: =YT_ALL!G5 -> 2016-12-31
A6: Загальна сума державного та гарантованого державою боргу | B6: =SUM(B$7+ B$8) -> 473.1851846 | C6: 515.5108331 | D6: 584.7865709 | E6: 1100.833217 | F6: 1572.180159 | G6: 1929.758702
A7: =YK_ALL!A7 -> Державний борг | B7: =YK_ALL!B7/DMLMLR -> 357.2738672 | C7: =YK_ALL!C7/DMLMLR -> 399.2182341 | D7: =YK_ALL!D7/DMLMLR -> 480.2186294 | E7: =YK_ALL!E7/DMLMLR -> 947.0304691 | F7: =YK_ALL!F7/DMLMLR -> 1334.271601 | G7: =YK_ALL!G7/DMLMLR -> 1650.830835
A8: =YK_ALL!A8 -> Гарантований державою борг | B8: =YK_ALL!B8/DMLMLR -> 115.9113174 | C8: =YK_ALL!C8/DMLMLR -> 116.292599 | D8: =YK_ALL!D8/DMLMLR -> 104.5679415 | E8: =YK_ALL!E8/DMLMLR -> 153.8027476 | F8: =YK_ALL!F8/DMLMLR -> 237.9085577 | G8: =YK_ALL!G8/DMLMLR -> 278.9278672
G10: млрд. дол.США
B11: =YT_ALL!B11 -> 2011-12-31 | C11: =YT_ALL!C11 -> 2012-12-31 | D11: =YT_ALL!D11 -> 2013-12-31 | E11: =YT_ALL!E11 -> 2014-12-31 | F11: =YT_ALL!F11 -> 2015-12-31 | G11: =YT_ALL!G11 -> 2016-12-31
A12: Загальна сума державного та гарантованого державою боргу | B12: =SUM(B$13+ B$14) -> 59.22365823 | C12: 64.49528751 | D12: 73.16233841 | E12: 69.81192296 | F12: 65.50568611 | G12: 70.97086461
A13: =YK_ALL!A13 -> Державний борг | B13: =YK_ALL!B13/DMLMLR -> 44.71624661 | C13: =YK_ALL!C13/DMLMLR -> 49.945982 | D13: =YK_ALL!D13/DMLMLR -> 60.07989859 | E13: =YK_ALL!E13/DMLMLR -> 60.05816063 | F13: =YK_ALL!F13/DMLMLR -> 55.59310503 | G13: =YK_ALL!G13/DMLMLR -> 60.71271582
A14: =YK_ALL!A14 -> Гарантований державою борг | B14: =YK_ALL!B14/DMLMLR -> 14.50741162 | C14: =YK_ALL!C14/DMLMLR -> 14.54930551 | D14: =YK_ALL!D14/DMLMLR -> 13.08243982 | E14: =YK_ALL!E14/DMLMLR -> 9.753762333 | F14: =YK_ALL!F14/DMLMLR -> 9.912581084 | G14: =YK_ALL!G14/DMLMLR -> 10.25814879
G16: %
B17: =YT_ALL!B17 -> 2011-12-31 | C17: =YT_ALL!C17 -> 2012-12-31 | D17: =YT_ALL!D17 -> 2013-12-31 | E17: =YT_ALL!E17 -> 2014-12-31 | F17: =YT_ALL!F17 -> 2015-12-31 | G17: =YT_ALL!G17 -> 2016-12-31
A18: Загальна сума державного та гарантованого державою боргу | B18: =SUM(B$19+ B$20) -> 1 | C18: 1 | D18: 1 | E18: 1 | F18: 1 | G18: 1
A19: =YK_ALL!A19 -> Державний борг | B19: =YK_ALL!B19 -> 0.75504 | C19: =YK_ALL!C19 -> 0.774413 | D19: =YK_ALL!D19 -> 0.821186 | E19: =YK_ALL!E19 -> 0.860285 | F19: =YK_ALL!F19 -> 0.848676 | G19: =YK_ALL!G19 -> 0.85546
A20: =YK_ALL!A20 -> Гарантований державою борг | B20: =YK_ALL!B20 -> 0.24496 | C20: =YK_ALL!C20 -> 0.225587 | D20: =YK_ALL!D20 -> 0.178814 | E20: =YK_ALL!E20 -> 0.139715 | F20: =YK_ALL!F20 -> 0.151324 | G20: =YK_ALL!G20 -> 0.14454

Sheet YK_ALL (hidden)
A2: Державний та гарантований державою борг України за останні 5 років
G4: =VALUAH -> млрд. грн
B5: 2011-12-31 | C5: 2012-12-31 | D5: 2013-12-31 | E5: 2014-12-31 | F5: 2015-12-31 | G5: 2016-12-31
A6: Загальна сума державного та гарантованого державою боргу | B6: =SUM(B$7+ B$8) -> 473.1851846 | C6: 515.5108331 | D6: 584.7865709 | E6: 1100.833217 | F6: 1572.180159 | G6: 1929.758702
A7: Державний борг | B7: 357.2738672 | C7: 399.2182341 | D7: 480.2186294 | E7: 947.0304691 | F7: 1334.271601 | G7: 1650.830835
A8: Гарантований державою борг | B8: 115.9113174 | C8: 116.292599 | D8: 104.5679415 | E8: 153.8027476 | F8: 237.9085577 | G8: 278.9278672
G10: =VALUSD -> млрд. дол. США
B11: 2011-12-31 | C11: 2012-12-31 | D11: 2013-12-31 | E11: 2014-12-31 | F11: 2015-12-31 | G11: 2016-12-31
A12: Загальна сума державного та гарантованого державою боргу | B12: =SUM(B$13+ B$14) -> 59.22365823 | C12: 64.49528751 | D12: 73.16233841 | E12: 69.81192296 | F12: 65.50568611 | G12: 70.97086461
A13: Державний борг | B13: 44.71624661 | C13: 49.945982 | D13: 60.07989859 | E13: 60.05816063 | F13: 55.59310503 | G13: 60.71271582
A14: Гарантований державою борг | B14: 14.50741162 | C14: 14.54930551 | D14: 13.08243982 | E14: 9.753762333 | F14: 9.912581084 | G14: 10.25814879
G16: %
B17: 2011-12-31 | C17: 2012-12-31 | D17: 2013-12-31 | E17: 2014-12-31 | F17: 2015-12-31 | G17: 2016-12-31
A18: Загальна сума державного та гарантованого державою боргу | B18: =SUM(B$19+ B$20) -> 1 | C18: 1 | D18: 1 | E18: 1 | F18: 1 | G18: 1
A19: Державний борг | B19: 0.75504 | C19: 0.774413 | D19: 0.821186 | E19: 0.860285 | F19: 0.848676 | G19: 0.85546
A20: Гарантований державою борг | B20: 0.24496 | C20: 0.225587 | D20: 0.178814 | E20: 0.139715 | F20: 0.151324 | G20: 0.14454

Sheet YKT2_UAH
A2: Державний та гарантований державою борг України за останні 5 років
G4: =VALUAH -> млрд. грн
B5: 2011-12-31 | C5: 2012-12-31 | D5: 2013-12-31 | E5: 2014-12-31 | F5: 2015-12-31 | G5: 2016-12-31
A6: Загальна сума державного та гарантованого державою боргу | B6: =B$7+B$66 -> 473.1851846 | C6: 515.5108331 | D6: 584.7865709 | E6: 1100.833217 | F6: 1572.180159 | G6: 1929.758702
A7: Державний борг | B7: =B$8+B$33 -> 357.2738672 | C7: 399.2182341 | D7: 480.2186294 | E7: 947.0304691 | F7: 1334.271601 | G7: 1650.830835
A8: Внутрішній борг | B8: =B$9+B$31 -> 161.4670063 | C8: 190.2992977 | D8: 256.9595757 | E8: 461.0036228 | F8: 508.0011231 | G8: 670.6455305
A9: 1. Заборгованість за випущеними цінними паперами на внутрішньому ринку | B9: =SUM(B$10:B$30) -> 158.2929457 | C9: 187.2574897 | D9: 254.0500202 | E9: 458.2263198 | F9: 505.3560727 | G9: 668.1327326
A10: Казначейські зобов'язання | B10: 0 | C10: 0.8262324135 | D10: 1.5986 | E10: 0.088426 | F10: 0.098638 | G10: 0
A11: ОВДП (1 - місячні) | B11: 0 | C11: 0 | D11: 2.360977795 | E11: 0 | F11: 0 | G11: 0
A12: ОВДП (10 - річні) | B12: 15.412189 | C12: 15.412189 | D12: 15.742189 | E12: 50.254465 | F12: 60.558463 | G12: 74.832983
A13: ОВДП (11 - річні) | B13: 3.849981 | C13: 3.849981 | D13: 3.849981 | E13: 3.849981 | F13: 17.382981 | G13: 17.382981
A14: ОВДП (12 - місячні) | B14: 4.628753095 | C14: 14.39281113 | D14: 2.9587168 | E14: 7.33788948 | F14: 8.283710212 | G14: 3.47757
A15: ОВДП (12 - річні) | B15: 1.5 | C15: 1.5 | D15: 1.5 | E15: 1.5 | F15: 12.5 | G15: 28.5
A16: ОВДП (13 - річні) | B16: 0 | C16: 0 | D16: 0 | E16: 2.61763 | F16: 13.11763 | G16: 37.11763
A17: ОВДП (14 - річні) | B17: 0 | C17: 0 | D17: 0 | E17: 3.25 | F17: 3.25 | G17: 51.25
A18: ОВДП (15 - річні) | B18: 0 | C18: 0 | D18: 0 | E18: 15.84884 | F18: 15.84884 | G18: 42.789838
A19: ОВДП (18 - місячні) | B19: 2.1 | C19: 5.709035823 | D19: 2.803424855 | E19: 0.76931632 | F19: 1.04892516 | G19: 29.25796141
A20: ОВДП (2 - річні) | B20: 6.544268 | C20: 11.0783616 | D20: 20.37080624 | E20: 40.90737357 | F20: 21.91034234 | G20: 64.35343953
A21: ОВДП (3 - місячні) | B21: 0.65 | C21: 0 | D21: 0 | E21: 0 | F21: 0 | G21: 0.01
A22: ОВДП (3 - річні) | B22: 28.905564 | C22: 28.45427742 | D22: 34.65649649 | E22: 46.58505481 | F22: 43.37723613 | G22: 18.462385
A23: ОВДП (4 - річні) | B23: 1.598269 | C23: 1.598269 | D23: 6.5181647 | E23: 2.92218286 | F23: 15.04510672 | G23: 15.58553728
A24: ОВДП (5 - річні) | B24: 27.4407484 | C24: 32.6656933 | D24: 75.31738528 | E24: 131.3797728 | F24: 149.0338121 | G24: 151.5696514
A25: ОВДП (6 - місячні) | B25: 2.065224626 | C25: 0 | D25: 0.55379 | E25: 0.17 | F25: 0 | G25: 0.215801
A26: ОВДП (6 - річні) | B26: 9.5 | C26: 9.5 | D26: 9.5 | E26: 27.1 | F26: 27.1 | G26: 24.1
A27: ОВДП (7 - річні) | B27: 24.539001 | C27: 33.095042 | D27: 47.143891 | E27: 54.624791 | F27: 48.624791 | G27: 44.739791
A28: ОВДП (8 - річні) | B28: 14.301198 | C28: 14.301198 | D28: 14.301198 | E28: 31.301198 | F28: 31.301198 | G28: 27.416198
A29: ОВДП (9 - місячні) | B29: 0.383350604 | C29: 0 | D29: 0 | E29: 0.845 | F29: 0 | G29: 0.196567
A30: ОВДП (9 - річні) | B30: 14.874399 | C30: 14.874399 | D30: 14.874399 | E30: 36.874399 | F30: 36.874399 | G30: 36.874399
A31: 2. Заборгованість перед банківськими та іншими фінансовими установами | B31: =SUM(B$32:B$32) -> 3.17406054 | C31: 3.041808018 | D31: 2.909555495 | E31: 2.777302973 | F31: 2.64505045 | G31: 2.512797928
A32: Національний банк України | B32: 3.17406054 | C32: 3.041808018 | D32: 2.909555495 | E32: 2.777302973 | F32: 2.64505045 | G32: 2.512797928
A33: Зовнішній борг | B33: =B$34+B$41+B$49+B$52+B$64 -> 195.8068609 | C33: 208.9189364 | D33: 223.2590538 | E33: 486.0268463 | F33: 826.2704782 | G33: 980.1853041
A34: 1. Заборгованість за позиками, одержаними від міжнародних фінансових організацій | B34: =SUM(B$35:B$40) -> 84.34483191 | C34: 80.09720305 | D34: 61.90365009 | E34: 169.0899033 | F34: 337.4492911 | G34: 371.8441251
A35: Європейське Співтовариство | B35: 0 | C35: 0 | D35: 0 | E35: 26.15675488 | F35: 57.95311509 | G35: 62.81395484
A36: Європейський банк реконструкції та розвитку | B36: 3.553416859 | C36: 4.266735656 | D36: 4.766645754 | E36: 9.368981111 | F36: 13.99069907 | G36: 16.06985828
A37: Європейський Інвестиційний Банк | B37: 2.0596106 | C37: 3.203300288 | D37: 4.283134554 | E37: 7.652991944 | F37: 12.53014512 | G37: 14.52237776
A38: Міжнародний банк реконструкції та розвитку | B38: 24.08469397 | C38: 24.23351704 | D38: 24.53954845 | E38: 68.31898228 | F38: 124.7471258 | G38: 137.4605065
A39: Міжнародний Валютний Фонд | B39: 54.64711048 | C39: 48.39365006 | D39: 28.31432133 | E39: 57.58509724 | F39: 128.2076972 | G39: 140.9098527
A40: Фонд чистих технологій (МБРР) | B40: 0 | C40: 0 | D40: 0 | E40: 0.0070958502 | F40: 0.02050886997 | G40: 0.06757499901
A41: 2. Заборгованість за позиками, одержаними від органів управління іноземних держав | B41: =SUM(B$42:B$48) -> 10.7209392 | C41: 9.099501375 | D41: 7.278928575 | E41: 16.37226171 | F41: 32.70852715 | G41: 45.64750416
A42: Італія | B42: 0.1668904997 | C42: 0.08464974598 | D42: 0 | E42: 0 | F42: 0 | G42: 0
A43: Канада | B43: 0 | C43: 0 | D43: 0 | E43: 2.7121072 | F43: 6.9140144 | G43: 8.0323876
A44: Німеччина | B44: 0.8220637595 | C44: 0.4819254518 | D44: 0.1064888486 | E44: 0.134630356 | F44: 5.428187703 | G44: 5.983279353
A45: Росія | B45: 7.183676 | C45: 6.405237389 | D45: 5.623921639 | E45: 9.553472056 | F45: 14.54094475 | G45: 16.47374066
A46: США | B46: 0.4346593199 | C46: 0.2648623985 | D46: 0.09489139132 | E46: 0.1647326001 | F46: 0.216533956 | G46: 0.2065714027
A47: Франція | B47: 0.04339348303 | C47: 0.02220053566 | D47: 0 | E47: 0 | F47: 0 | G47: 0
A48: Японія | B48: 2.070256138 | C48: 1.840625854 | D48: 1.453626696 | E48: 3.807319496 | F48: 5.608846349 | G48: 14.95152515
A49: 3. Заборгованість за позиками, одержаними від іноземних комерційних банків, інших іноземних фінансових установ | B49: =SUM(B$50:B$51) -> 15.98012653 | C49: 0.00053875717 | D49: 0.0005645446 | E49: 0.0009833632 | F49: 0.00134076761 | G49: 0.001453225
A50: Chase Manhattan Bank Luxembourg S.A. | B50: 0.00052653121 | C50: 0.00053875717 | D50: 0.0005645446 | E50: 0.0009833632 | F50: 0.00134076761 | G50: 0.001453225
A51: JSC VTB Bank | B51: 15.9796 | C51: 0 | D51: 0 | E51: 0 | F51: 0 | G51: 0
A52: 4. Заборгованість за випущеними цінними паперами на зовнішньому ринку | B52: =SUM(B$53:B$63) -> 69.6977418 | C52: 104.6362032 | D52: 138.909068 | E52: 272.5093466 | F52: 415.2699327 | G52: 517.8044819
A53: ОЗДП 2003 року | B53: 7.9898 | C53: 7.993 | D53: 0 | E53: 0 | F53: 0 | G53: 0
A54: ОЗДП 2005 року | B54: 6.1788318 | C54: 6.3223032 | D54: 6.624918 | E54: 11.5397448 | F54: 0 | G54: 0
A55: ОЗДП 2006 року | B55: 7.9898 | C55: 7.993 | D55: 7.993 | E55: 15.768556 | F55: 0 | G55: 0
A56: ОЗДП 2007 року | B56: 9.58776 | C56: 5.5951 | D56: 5.5951 | E56: 11.0379892 | F56: 0 | G56: 0
A57: ОЗДП 2010 року | B57: 15.9796 | C57: 15.986 | D57: 15.986 | E57: 31.537112 | F57: 0 | G57: 0
A58: ОЗДП 2011 року | B58: 21.97195 | C58: 21.98075 | D58: 21.98075 | E58: 43.363529 | F58: 0 | G58: 0
A59: ОЗДП 2012 року | B59: 0 | C59: 38.76605 | D59: 46.75905 | E59: 76.4774966 | F59: 0 | G59: 0
A60: ОЗДП 2013 року | B60: 0 | C60: 0 | D60: 33.97025 | E60: 67.016363 | F60: 72.002001 | G60: 81.572574
A61: ОЗДП 2014 року | B61: 0 | C61: 0 | D61: 0 | E61: 15.768556 | F61: 24.000667 | G61: 27.190858
A62: ОЗДП 2015 року | B62: 0 | C62: 0 | D62: 0 | E62: 0 | F62: 319.2672647 | G62: 381.8501919
A63: ОЗДП 2016 року | B63: 0 | C63: 0 | D63: 0 | E63: 0 | F63: 0 | G63: 27.190858
A64: 5. Заборгованість, не віднесена до інших категорій | B64: =SUM(B$65:B$65) -> 15.06322148 | C64: 15.08549003 | D64: 15.16684257 | E64: 28.05435136 | F64: 40.84138642 | G64: 44.88773975
A65: Міжнародний Валютний Фонд | B65: 15.06322148 | C65: 15.08549003 | D65: 15.16684257 | E65: 28.05435136 | F65: 40.84138642 | G65: 44.88773975
A66: Гарантований державою борг | B66: =B$67+B$87 -> 115.9113174 | C66: 116.292599 | D66: 104.5679415 | E66: 153.8027476 | F66: 237.9085577 | G66: 278.9278672
A67: Внутрішній борг | B67: =B$68+B$81+B$85 -> 12.30319323 | C67: 16.2114159 | D67: 27.12914981 | E67: 27.86328456 | F67: 21.45945491 | G67: 19.08447525
A68: 1. Заборгованість за випущеними цінними паперами на внутрішньому ринку | B68: =SUM(B$69:B$80) -> 5.812982051 | C68: 9.971204724 | D68: 21.13576798 | E68: 21.5670116 | F68: 16.4000116 | G68: 15.9500116
A69: Векселі Укравтодору | B69: 1.619564451 | C69: 1.567787124 | D69: 0.9998503833 | E69: 0 | F69: 0 | G69: 0
A70: Державні цінні папери | B70: 1.16e-05 | C70: 1.16e-05 | D70: 1.16e-05 | E70: 1.16e-05 | F70: 1.16e-05 | G70: 1.16e-05
A71: Облігації ДІУ (10 - річні) | B71: 0 | C71: 0 | D71: 0 | E71: 1 | F71: 1 | G71: 1
A72: Облігації ДІУ (5 - річні) | B72: 1.6075 | C72: 1.8175 | D72: 1.8 | E72: 3 | F72: 3 | G72: 3
A73: Облігації ДІУ (7 - річні) | B73: 0.4 | C73: 0.4 | D73: 1.4 | E73: 3.2 | F73: 3.2 | G73: 3
A74: Облігації ДП КАЗ "Авіант" (5 - річні) | B74: 0.578906 | C74: 0.578906 | D74: 0.578906 | E74: 0 | F74: 0 | G74: 0
A75: Облігації НАК "Нафтогаз України" (3 - річні) | B75: 0 | C75: 0 | D75: 4.8 | E75: 4.8 | F75: 4.8 | G75: 4.8
A76: Облігації Укравтодору (12 - місячні) | B76: 0 | C76: 0 | D76: 1.55 | E76: 0 | F76: 0 | G76: 0
A77: Облігації Укравтодору (3 - річні) | B77: 0 | C77: 4 | D77: 4.25 | E77: 4.25 | F77: 0.25 | G77: 0
A78: Облігації Укравтодору (5 - річні) | B78: 0 | C78: 0 | D78: 4.15 | E78: 4.15 | F78: 4.15 | G78: 4.15
A79: Облігації ХДАВП (5 - річні) | B79: 0.88 | C79: 0.88 | D79: 0.88 | E79: 0.44 | F79: 0 | G79: 0
A80: Облігації ХДАВП (6 - річні) | B80: 0.727 | C80: 0.727 | D80: 0.727 | E80: 0.727 | F80: 0 | G80: 0
A81: 2. Заборгованість перед банківськими та іншими фінансовими установами | B81: =SUM(B$82:B$84) -> 6.48925653 | C81: 6.23925653 | D81: 5.992427177 | E81: 6.295318313 | F81: 5.058488656 | G81: 3.133508998
A82: ВАТ "Державний експортно-імпортний банк України" | B82: 2.1 | C82: 2.1 | D82: 2.1 | E82: 2.1 | F82: 1.05 | G82: 0
A83: ВАТ "Державний ощадний банк України" | B83: 4.38925653 | C83: 4.13925653 | D83: 3.892427177 | E83: 4.009862318 | F83: 3.859862318 | G83: 3.021712318
A84: ПАТ АБ "Укргазбанк" | B84: 0 | C84: 0 | D84: 0 | E84: 0.1854559944 | F84: 0.1486263374 | G84: 0.1117966802
A85: 3. Заборгованість, не віднесена до інших категорій | B85: =SUM(B$86:B$86) -> 0.00095465 | C85: 0.00095465 | D85: 0.00095465 | E85: 0.00095465 | F85: 0.00095465 | G85: 0.00095465
A86: Інші кредитори | B86: 0.00095465 | C86: 0.00095465 | D86: 0.00095465 | E86: 0.00095465 | F86: 0.00095465 | G86: 0.00095465
A87: Зовнішній борг | B87: =B$88+B$94+B$96+B$109+B$113 -> 103.6081241 | C87: 100.0811831 | D87: 77.4387917 | E87: 125.939463 | F87: 216.4491028 | G87: 259.843392
A88: 1. Заборгованість за позиками, одержаними від міжнародних фінансових організацій | B88: =SUM(B$89:B$93) -> 61.53396681 | C88: 40.55783393 | D88: 16.22562155 | E88: 40.11055668 | F88: 140.8338031 | G88: 190.935067
A89: Європейське співтоватиство з атомної енергії | B89: 0.443254084 | C89: 0.3794576859 | D89: 0.3183781317 | E89: 0.4514504503 | F89: 0.4566383727 | G89: 0.2958517627
A90: Європейський банк реконструкції та розвитку | B90: 1.010012667 | C90: 0.9042426181 | D90: 0.7821906616 | E90: 1.392507257 | F90: 3.050143293 | G90: 10.51454858
A91: Європейський Інвестиційний Банк | B91: 0 | C91: 0 | D91: 0 | E91: 0 | F91: 0 | G91: 0.99479114
A92: Міжнародний банк реконструкції та розвитку | B92: 1.262990797 | C92: 1.483629802 | D92: 1.948240733 | E92: 5.807737291 | F92: 9.418982998 | G92: 12.37301899
A93: Міжнародний Валютний Фонд | B93: 58.81770926 | C93: 37.79050383 | D93: 13.17681203 | E93: 32.45886168 | F93: 127.9080385 | G93: 166.7568566
A94: 2. Заборгованість за позиками, одержаними від органів управління іноземних держав | B94: =SUM(B$95:B$95) -> 1.522804426 | C94: 1.980933645 | D94: 1.980933645 | E94: 3.842712472 | F94: 4.679066995 | G94: 3.975759701
A95: Канада | B95: 1.522804426 | C95: 1.980933645 | D95: 1.980933645 | E95: 3.842712472 | F95: 4.679066995 | G95: 3.975759701
A96: 3. Заборгованість за позиками, одержаними від іноземних комерційних банків, інших іноземних фінансових установ | B96: =SUM(B$97:B$108) -> 16.75729481 | C96: 29.34160084 | D96: 31.0260264 | E96: 51.61602411 | F96: 68.22755055 | G96: 61.95552088
A97: Aquasafety Invest plc | B97: 0.51490265 | C97: 0.3512390631 | D97: 0.1840254926 | E97: 0 | F97: 0 | G97: 0
A98: Citibank, N.A. London | B98: 1.921524934 | C98: 1.572913927 | D98: 1.236150671 | E98: 1.435475707 | F98: 0.9786004447 | G98: 0
A99: Credit Suisse First Boston International | B99: 1.19847 | C99: 1.19895 | D99: 1.19895 | E99: 0 | F99: 0 | G99: 0
A100: Credit Suisse International | B100: 2.41611552 | C100: 2.014236 | D100: 1.6113888 | E100: 2.384205667 | F100: 2.419267234 | G100: 0
A101: Deutsche Bank AG London | B101: 0.4565600068 | C101: 0.342557152 | D101: 0.22837144 | E101: 0.2252651127 | F101: 0 | G101: 0.3881279224
A102: UniCredit Bank Austria AG | B102: 0.7878010503 | C102: 0.7165276921 | D102: 0.6569710314 | E102: 0.9808783024 | F102: 1.114482976 | G102: 0.96636853
A103: VTB Capital PLC | B103: 3.52190384 | C103: 3.5233144 | D103: 2.348876277 | E103: 2.316926537 | F103: 0 | G103: 0
A104: ВАТ "Газпромбанк" | B104: 0 | C104: 0 | D104: 3.9965 | E104: 7.884278 | F104: 12.0003335 | G104: 13.595429
A105: Державний банк розвитку КНР | B105: 0 | C105: 0.4630412521 | D105: 0.679405 | E105: 1.34032726 | F105: 1.729968077 | G105: 1.608611159
A106: Експортно-імпортний банк Китаю | B106: 0 | C106: 11.9895 | D106: 12.40612629 | E106: 24.47475256 | F106: 37.25200875 | G106: 41.84925707
A107: Експортно-імпортний банк Кореї | B107: 0.85850401 | C107: 2.08577335 | D107: 1.825051681 | E107: 3.086103516 | F107: 3.914358784 | G107: 3.547727198
A108: Сбербанк Росії | B108: 5.0815128 | C108: 5.083548 | D108: 4.654209714 | E108: 7.487811449 | F108: 8.818530789 | G108: 0
A109: 4. Заборгованість за випущеними цінними паперами на зовнішньому ринку | B109: =SUM(B$110:B$112) -> 22.79503523 | C109: 27.20031488 | D109: 27.20031488 | E109: 28.50954925 | F109: 0 | G109: 0
A110: Облігації ДП "ФІНІНПРО" (5 - річні) | B110: 0 | C110: 4.39615 | D110: 4.39615 | E110: 8.6727058 | F110: 0 | G110: 0
A111: Облігації ДП "ФІНІНПРО" (7 - річні) | B111: 10.0511684 | C111: 10.055194 | D111: 10.055194 | E111: 19.83684345 | F111: 0 | G111: 0
A112: Облігації НАК "Нафтогаз" (5 - річні) | B112: 12.74386683 | C112: 12.74897088 | D112: 12.74897088 | E112: 0 | F112: 0 | G112: 0
A113: 5. Заборгованість, не віднесена до інших категорій | B113: =SUM(B$114:B$114) -> 0.9990228643 | C113: 1.000499759 | D113: 1.005895222 | E113: 1.860620486 | F113: 2.708682131 | G113: 2.977044347
A114: Міжнародний Валютний Фонд | B114: 0.9990228643 | C114: 1.000499759 | D114: 1.005895222 | E114: 1.860620486 | F114: 2.708682131 | G114: 2.977044347

Sheet YKT2_USD
A2: Державний та гарантований державою борг України за останні 5 років
G4: =VALUSD -> млрд. дол. США
B5: 2011-12-31 | C5: 2012-12-31 | D5: 2013-12-31 | E5: 2014-12-31 | F5: 2015-12-31 | G5: 2016-12-31
A6: Загальна сума державного та гарантованого державою боргу | B6: =B$7+B$66 -> 59.22365823 | C6: 64.49528751 | D6: 73.16233841 | E6: 69.81192296 | F6: 65.50568611 | G6: 70.97086461
A7: Державний борг | B7: =B$8+B$33 -> 44.71624661 | C7: 49.945982 | D7: 60.07989859 | E7: 60.05816063 | F7: 55.59310503 | G7: 60.71271582
A8: Внутрішній борг | B8: =B$9+B$31 -> 20.20914244 | C8: 23.80824443 | D8: 32.14807652 | E8: 29.23562708 | F8: 21.16612522 | G8: 24.66437545
A9: 1. Заборгованість за випущеними цінними паперами на внутрішньому ринку | B9: =SUM(B$10:B$30) -> 19.81187836 | C9: 23.42768544 | D9: 31.78406358 | E9: 29.05949789 | F9: 21.05591785 | G9: 24.57196211
A10: Казначейські зобов'язання | B10: 0 | C10: 0.1033695 | D10: 0.2 | E10: 0.0056077424 | F10: 0.00410980245 | G10: 0
A11: ОВДП (1 - місячні) | B11: 0 | C11: 0 | D11: 0.2953806825 | E11: 0 | F11: 0 | G11: 0
A12: ОВДП (10 - річні) | B12: 1.928983078 | C12: 1.928210809 | D12: 1.969496935 | E12: 3.187004885 | F12: 2.523199168 | G12: 2.752137612
A13: ОВДП (11 - річні) | B13: 0.481861999 | C13: 0.4816690854 | D13: 0.4816690854 | E13: 0.2441555841 | F13: 0.7242707463 | G13: 0.6392950528
A14: ОВДП (12 - місячні) | B14: 0.5793327862 | C14: 1.800676983 | D14: 0.3701634931 | E14: 0.4653494892 | F14: 0.345145 | G14: 0.1278948241
A15: ОВДП (12 - річні) | B15: 0.1877393677 | C15: 0.1876642062 | D15: 0.1876642062 | E15: 0.09512602169 | F15: 0.5208188589 | G15: 1.048146403
A16: ОВДП (13 - річні) | B16: 0 | C16: 0 | D16: 0 | E16: 0.1660031521 | F16: 0.5465527271 | G16: 1.365077557
A17: ОВДП (14 - річні) | B17: 0 | C17: 0 | D17: 0 | E17: 0.2061063803 | F17: 0.1354129033 | G17: 1.884824672
A18: ОВДП (15 - річні) | B18: 0 | C18: 0 | D18: 0 | E18: 1.005091398 | F18: 0.6603499811 | G18: 1.573684729
A19: ОВДП (18 - місячні) | B19: 0.2628351148 | C19: 0.7142544505 | D19: 0.350735 | E19: 0.04878800063 | F19: 0.04370400039 | G19: 1.076022
A20: ОВДП (2 - річні) | B20: 0.8190778242 | C20: 1.386007957 | D20: 2.548580788 | E20: 2.594237137 | F20: 0.9129055595 | G20: 2.366730742
A21: ОВДП (3 - місячні) | B21: 0.081353726 | C21: 0 | D21: 0 | E21: 0 | F21: 0 | G21: 0.00036777067
A22: ОВДП (3 - річні) | B22: 3.617808205 | C22: 3.55989959 | D22: 4.335855935 | E22: 2.954300622 | F22: 1.80733461 | G22: 0.6789923657
A23: ОВДП (4 - річні) | B23: 0.2000386743 | C23: 0.1999585888 | D23: 0.8154841361 | E23: 0.1853170867 | F23: 0.6268620251 | G23: 0.5731903451
A24: ОВДП (5 - річні) | B24: 3.434472502 | C24: 4.086787602 | D24: 9.422918214 | E24: 8.331756744 | F24: 6.209569597 | G24: 5.574287189
A25: ОВДП (6 - місячні) | B25: 0.2584826436 | C25: 0 | D25: 0.06928437383 | E25: 0.01078094912 | F25: 0 | G25: 0.00793652779
A26: ОВДП (6 - річні) | B26: 1.189015995 | C26: 1.188539972 | D26: 1.188539972 | E26: 1.718610125 | F26: 1.129135286 | G26: 0.886327309
A27: ОВДП (7 - річні) | B27: 3.071291021 | C27: 4.14050319 | D27: 5.898147254 | E27: 3.464159369 | F27: 2.025976653 | G27: 1.645398281
A28: ОВДП (8 - річні) | B28: 1.789931913 | C28: 1.789215313 | D28: 1.789215313 | E28: 1.98503896 | F28: 1.304180338 | G28: 1.008287344
A29: ОВДП (9 - місячні) | B29: 0.04798 | C29: 0 | D29: 0 | E29: 0.05358765889 | F29: 0 | G29: 0.00722915769
A30: ОВДП (9 - річні) | B30: 1.861673509 | C30: 1.860928187 | D30: 1.860928187 | E30: 2.338476586 | F30: 1.536390593 | G30: 1.356132234
A31: 2. Заборгованість перед банківськими та іншими фінансовими установами | B31: =SUM(B$32:B$32) -> 0.3972640792 | C31: 0.3805589913 | D31: 0.3640129482 | E31: 0.1761291885 | F31: 0.1102073726 | G31: 0.09241333715
A32: Національний банк України | B32: 0.3972640792 | C32: 0.3805589913 | D32: 0.3640129482 | E32: 0.1761291885 | F32: 0.1102073726 | G32: 0.09241333715
A33: Зовнішній борг | B33: =B$34+B$41+B$49+B$52+B$64 -> 24.50710417 | C33: 26.13773757 | D33: 27.93182207 | E33: 30.82253355 | F33: 34.42697981 | G33: 36.04834037
A34: 1. Заборгованість за позиками, одержаними від міжнародних фінансових організацій | B34: =SUM(B$35:B$40) -> 10.55656361 | C34: 10.02091869 | D34: 7.744732902 | E34: 10.72323321 | F34: 14.05999638 | G34: 13.67533621
A35: Європейське Співтовариство | B35: 0 | C35: 0 | D35: 0 | E35: 1.658792021 | F35: 2.414646022 | G35: 2.310113011
A36: Європейський банк реконструкції та розвитку | B36: 0.4447441562 | C36: 0.53380904 | D36: 0.5963525277 | E36: 0.5941559335 | F36: 0.582929594 | G36: 0.591002251
A37: Європейський Інвестиційний Банк | B37: 0.2577799945 | C37: 0.4007632038 | D37: 0.5358606974 | E37: 0.4853324518 | F37: 0.5220748706 | G37: 0.5340904563
A38: Міжнародний банк реконструкції та розвитку | B38: 3.014430145 | C38: 3.031842493 | D38: 3.070129919 | E38: 4.33260866 | F38: 5.197652457 | G38: 5.055394225
A39: Міжнародний Валютний Фонд | B39: 6.839609313 | C39: 6.054503949 | D39: 3.542389758 | E39: 3.651894139 | F39: 5.341838923 | G39: 5.18225106
A40: Фонд чистих технологій (МБРР) | B40: 0 | C40: 0 | D40: 0 | E40: 0.00045 | F40: 0.0008545125 | G40: 0.00248521025
A41: 2. Заборгованість за позиками, одержаними від органів управління іноземних держав | B41: =SUM(B$42:B$48) -> 1.341828231 | C41: 1.138433801 | D41: 0.9106629019 | E41: 1.038285415 | F41: 1.362817423 | G41: 1.678781308
A42: Італія | B42: 0.02088794459 | C42: 0.01059048492 | D42: 0 | E42: 0 | F42: 0 | G42: 0
A43: Канада | B43: 0 | C43: 0 | D43: 0 | E43: 0.1719946455 | F43: 0.2880759272 | G43: 0.295407655
A44: Німеччина | B44: 0.1028891536 | C44: 0.06029343823 | D44: 0.01332276348 | E44: 0.00853790011 | F44: 0.226168202 | G44: 0.2200474642
A45: Росія | B45: 0.89910586 | C45: 0.80135586 | D45: 0.70360586 | E45: 0.60585586 | F45: 0.60585586 | G45: 0.60585586
A46: США | B46: 0.05440177725 | C46: 0.03313679451 | D46: 0.01187181175 | E46: 0.01044690459 | F46: 0.00902199743 | G46: 0.00759709027
A47: Франція | B47: 0.00543111004 | C47: 0.00277749727 | D47: 0 | E47: 0 | F47: 0 | G47: 0
A48: Японія | B48: 0.2591123855 | C48: 0.2302797265 | D48: 0.1818624667 | E48: 0.2414501046 | F48: 0.2336954364 | G48: 0.5498732387
A49: 3. Заборгованість за позиками, одержаними від іноземних комерційних банків, інших іноземних фінансових установ | B49: =SUM(B$50:B$51) -> 2.0000659 | C49: 6.740362e-05 | D49: 7.062988e-05 | E49: 6.236229e-05 | F49: 5.586376e-05 | G49: 5.344535e-05
A50: Chase Manhattan Bank Luxembourg S.A. | B50: 6.590042e-05 | C50: 6.740362e-05 | D50: 7.062988e-05 | E50: 6.236229e-05 | F50: 5.586376e-05 | G50: 5.344535e-05
A51: JSC VTB Bank | B51: 2 | C51: 0 | D51: 0 | E51: 0 | F51: 0 | G51: 0
A52: 4. Заборгованість за випущеними цінними паперами на зовнішньому ринку | B52: =SUM(B$53:B$63) -> 8.723339983 | C52: 13.09098001 | D52: 17.37883998 | E52: 17.28182001 | F52: 17.302433 | G52: 19.04333
A53: ОЗДП 2003 року | B53: 1 | C53: 1 | D53: 0 | E53: 0 | F53: 0 | G53: 0
A54: ОЗДП 2005 року | B54: 0.7733399835 | C54: 0.7909800075 | D54: 0.828839985 | E54: 0.7318200094 | F54: 0 | G54: 0
A55: ОЗДП 2006 року | B55: 1 | C55: 1 | D55: 1 | E55: 1 | F55: 0 | G55: 0
A56: ОЗДП 2007 року | B56: 1.2 | C56: 0.7 | D56: 0.7 | E56: 0.7 | F56: 0 | G56: 0
A57: ОЗДП 2010 року | B57: 2 | C57: 2 | D57: 2 | E57: 2 | F57: 0 | G57: 0
A58: ОЗДП 2011 року | B58: 2.75 | C58: 2.75 | D58: 2.75 | E58: 2.75 | F58: 0 | G58: 0
A59: ОЗДП 2012 року | B59: 0 | C59: 4.85 | D59: 5.85 | E59: 4.85 | F59: 0 | G59: 0
A60: ОЗДП 2013 року | B60: 0 | C60: 0 | D60: 4.25 | E60: 4.25 | F60: 3 | G60: 3
A61: ОЗДП 2014 року | B61: 0 | C61: 0 | D61: 0 | E61: 1 | F61: 1 | G61: 1
A62: ОЗДП 2015 року | B62: 0 | C62: 0 | D62: 0 | E62: 0 | F62: 13.302433 | G62: 14.04333
A63: ОЗДП 2016 року | B63: 0 | C63: 0 | D63: 0 | E63: 0 | F63: 0 | G63: 1
A64: 5. Заборгованість, не віднесена до інших категорій | B64: =SUM(B$65:B$65) -> 1.88530645 | C64: 1.887337674 | D64: 1.897515648 | E64: 1.779132557 | F64: 1.701677142 | G64: 1.650839402
A65: Міжнародний Валютний Фонд | B65: 1.88530645 | C65: 1.887337674 | D65: 1.897515648 | E65: 1.779132557 | F65: 1.701677142 | G65: 1.650839402
A66: Гарантований державою борг | B66: =B$67+B$87 -> 14.50741162 | C66: 14.54930551 | D66: 13.08243982 | E66: 9.753762333 | F66: 9.912581084 | G66: 10.25814879
A67: Внутрішній борг | B67: =B$68+B$81+B$85 -> 1.539862479 | C67: 2.028201665 | D67: 3.394113576 | E67: 1.767015608 | F67: 0.8941191053 | G67: 0.7018710203
A68: 1. Заборгованість за випущеними цінними паперами на внутрішньому ринку | B68: =SUM(B$69:B$80) -> 0.7275503832 | C68: 1.247492146 | D68: 2.644284747 | E68: 1.367722675 | F68: 0.6833148262 | G68: 0.5865946415
A69: Векселі Укравтодору | B69: 0.202704004 | C69: 0.1961450174 | D69: 0.1250907523 | E69: 0 | F69: 0 | G69: 0
A70: Державні цінні папери | B70: 1.45185e-06 | C70: 1.45127e-06 | D70: 1.45127e-06 | E70: 7.3564e-07 | F70: 4.8332e-07 | G70: 4.2661e-07
A71: Облігації ДІУ (10 - річні) | B71: 0 | C71: 0 | D71: 0 | E71: 0.06341734779 | F71: 0.04166550871 | G71: 0.03677706676
A72: Облігації ДІУ (5 - річні) | B72: 0.2011940224 | C72: 0.2273864633 | D72: 0.2251970476 | E72: 0.1902520434 | F72: 0.1249965261 | G72: 0.1103312003
A73: Облігації ДІУ (7 - річні) | B73: 0.05006383138 | C73: 0.05004378836 | D73: 0.1751532591 | E73: 0.202935513 | F73: 0.1333296278 | G73: 0.1103312003
A74: Облігації ДП КАЗ "Авіант" (5 - річні) | B74: 0.07245563093 | C74: 0.0724266233 | D74: 0.0724266233 | E74: 0 | F74: 0 | G74: 0
A75: Облігації НАК "Нафтогаз України" (3 - річні) | B75: 0 | C75: 0 | D75: 0.6005254598 | E75: 0.3044032694 | F75: 0.1999944418 | G75: 0.1765299205
A76: Облігації Укравтодору (12 - місячні) | B76: 0 | C76: 0 | D76: 0.1939196797 | E76: 0 | F76: 0 | G76: 0
A77: Облігації Укравтодору (3 - річні) | B77: 0 | C77: 0.5004378831 | D77: 0.5317152508 | E77: 0.2695237281 | F77: 0.01041637718 | G77: 0
A78: Облігації Укравтодору (5 - річні) | B78: 0 | C78: 0 | D78: 0.5192043038 | E78: 0.2631819933 | F78: 0.1729118612 | G78: 0.1526248271
A79: Облігації ХДАВП (5 - річні) | B79: 0.110140429 | C79: 0.1100963343 | D79: 0.1100963343 | E79: 0.02790363302 | F79: 0 | G79: 0
A80: Облігації ХДАВП (6 - річні) | B80: 0.09099101354 | C80: 0.09095458526 | D80: 0.09095458526 | E80: 0.04610441184 | F80: 0 | G80: 0
A81: 2. Заборгованість перед банківськими та іншими фінансовими установами | B81: =SUM(B$82:B$84) -> 0.8121926118 | C81: 0.7805900826 | D81: 0.7497093929 | E81: 0.3992323909 | F81: 0.2107645032 | G81: 0.1152412696
A82: ВАТ "Державний експортно-імпортний банк України" | B82: 0.2628351148 | C82: 0.2627298887 | D82: 0.2627298887 | E82: 0.1331764304 | F82: 0.04374878415 | G82: 0
A83: ВАТ "Державний ощадний банк України" | B83: 0.5493574971 | C83: 0.5178601939 | D83: 0.4869795042 | E83: 0.2542948332 | F83: 0.160823127 | G83: 0.1111297157
A84: ПАТ АБ "Укргазбанк" | B84: 0 | C84: 0 | D84: 0 | E84: 0.0117611273 | F84: 0.00619259196 | G84: 0.00411155398
A85: 3. Заборгованість, не віднесена до інших категорій | B85: =SUM(B$86:B$86) -> 0.00011948359 | C85: 0.00011943576 | D85: 0.00011943576 | E85: 6.054137e-05 | F85: 3.977598e-05 | G85: 3.510923e-05
A86: Інші кредитори | B86: 0.00011948359 | C86: 0.00011943576 | D86: 0.00011943576 | E86: 6.054137e-05 | F86: 3.977598e-05 | G86: 3.510923e-05
A87: Зовнішній борг | B87: =B$88+B$94+B$96+B$109+B$113 -> 12.96754914 | C87: 12.52110385 | D87: 9.688326248 | E87: 7.986746725 | F87: 9.018461978 | G87: 9.556277774
A88: 1. Заборгованість за позиками, одержаними від міжнародних фінансових організацій | B88: =SUM(B$89:B$93) -> 7.701565347 | C88: 5.07416914 | D88: 2.029978926 | E88: 2.543705123 | F88: 5.867912051 | G88: 7.022031708
A89: Європейське співтоватиство з атомної енергії | B89: 0.0554774943 | C89: 0.04747375027 | D89: 0.03983211956 | E89: 0.02862979021 | F89: 0.0190260701 | G89: 0.01088056003
A90: Європейський банк реконструкції та розвитку | B90: 0.1264127597 | C90: 0.1131293154 | D90: 0.09785945972 | E90: 0.08830911699 | F90: 0.127085772 | G90: 0.3866942552
A91: Європейський Інвестиційний Банк | B91: 0 | C91: 0 | D91: 0 | E91: 0 | F91: 0 | G91: 0.03658550017
A92: Міжнародний банк реконструкції та розвитку | B92: 0.1580753958 | C92: 0.1856161394 | D92: 0.2437433671 | E92: 0.3683112957 | F92: 0.3924467181 | G92: 0.4550433454
A93: Міжнародний Валютний Фонд | B93: 7.361599698 | C93: 4.727949934 | D93: 1.648543979 | E93: 2.05845492 | F93: 5.329353491 | G93: 6.132828047
A94: 2. Заборгованість за позиками, одержаними від органів управління іноземних держав | B94: =SUM(B$95:B$95) -> 0.19059356 | C94: 0.24783356 | D94: 0.24783356 | E94: 0.2436946333 | F94: 0.1949557066 | G94: 0.14621678
A95: Канада | B95: 0.19059356 | C95: 0.24783356 | D95: 0.24783356 | E95: 0.2436946333 | F95: 0.1949557066 | G95: 0.14621678
A96: 3. Заборгованість за позиками, одержаними від іноземних комерційних банків, інших іноземних фінансових установ | B96: =SUM(B$97:B$108) -> 2.097335955 | C96: 3.670912153 | D96: 3.881649744 | E96: 3.273351352 | F96: 2.842735602 | G96: 2.278542328
A97: Aquasafety Invest plc | B97: 0.06444499862 | C97: 0.04394333331 | D97: 0.023023332 | E97: 0 | F97: 0 | G97: 0
A98: Citibank, N.A. London | B98: 0.2404972508 | C98: 0.196786429 | D98: 0.1546541562 | E98: 0.09103406216 | F98: 0.04077388535 | G98: 0
A99: Credit Suisse First Boston International | B99: 0.15 | C99: 0.15 | D99: 0.15 | E99: 0 | F99: 0 | G99: 0
A100: Credit Suisse International | B100: 0.3024 | C100: 0.252 | D100: 0.2016 | E100: 0.1512 | F100: 0.1008 | G100: 0
A101: Deutsche Bank AG London | B101: 0.057142858 | C101: 0.042857144 | D101: 0.02857143 | E101: 0.014285716 | F101: 0 | G101: 0.01427420651
A102: UniCredit Bank Austria AG | B102: 0.09860084737 | C102: 0.08964440036 | D102: 0.08219329806 | E102: 0.06220470044 | F102: 0.04643550014 | G102: 0.03554019995
A103: VTB Capital PLC | B103: 0.4408 | C103: 0.4408 | D103: 0.293866668 | E103: 0.146933336 | F103: 0 | G103: 0
A104: ВАТ "Газпромбанк" | B104: 0 | C104: 0 | D104: 0.5 | E104: 0.5 | F104: 0.5 | G104: 0.5
A105: Державний банк розвитку КНР | B105: 0 | C105: 0.057930846 | D105: 0.085 | E105: 0.085 | F105: 0.07208 | G105: 0.05916
A106: Експортно-імпортний банк Китаю | B106: 0 | C106: 1.5 | D106: 1.552123895 | E106: 1.552123895 | F106: 1.552123895 | G106: 1.539092921
A107: Експортно-імпортний банк Кореї | B107: 0.10745 | C107: 0.26095 | D107: 0.22833125 | E107: 0.1957125 | F107: 0.16309375 | G107: 0.130475
A108: Сбербанк Росії | B108: 0.636 | C108: 0.636 | D108: 0.5822857143 | E108: 0.4748571429 | F108: 0.3674285714 | G108: 0
A109: 4. Заборгованість за випущеними цінними паперами на зовнішньому ринку | B109: =SUM(B$110:B$112) -> 2.853017 | C109: 3.403017 | D109: 3.403017 | E109: 1.808 | F109: 0 | G109: 0
A110: Облігації ДП "ФІНІНПРО" (5 - річні) | B110: 0 | C110: 0.55 | D110: 0.55 | E110: 0.55 | F110: 0 | G110: 0
A111: Облігації ДП "ФІНІНПРО" (7 - річні) | B111: 1.258 | C111: 1.258 | D111: 1.258 | E111: 1.258 | F111: 0 | G111: 0
A112: Облігації НАК "Нафтогаз" (5 - річні) | B112: 1.595017 | C112: 1.595017 | D112: 1.595017 | E112: 0 | F112: 0 | G112: 0
A113: 5. Заборгованість, не віднесена до інших категорій | B113: =SUM(B$114:B$114) -> 0.1250372806 | C113: 0.1251719954 | D113: 0.1258470189 | E113: 0.1179956164 | F113: 0.1128586189 | G113: 0.1094869587
A114: Міжнародний Валютний Фонд | B114: 0.1250372806 | C114: 0.1251719954 | D114: 0.1258470189 | E114: 0.1179956164 | F114: 0.1128586189 | G114: 0.1094869587

Sheet KIND_CMP (hidden)
B1: ="Державний та гарантований державою борг України за станом на " & TEXT(DREPORTDATE,"dd.MM.yyyy") -> Державний та гарантований державою борг України за станом на 31.12.2016
A2: Структура боргу за ознакою умовності на кінець попереднього року та на звітну дату
H4: тис.одиниць | I4: =VALVAL -> млрд. одиниць
B5: 2015-12-31 | E5: 2016-12-31
B6: дол.США | C6: грн. | D6: % | E6: дол.США | F6: грн. | G6: % | H6: % | I6: Зміна структури
A7: Загальна сума державного та гарантованого державою боргу | B7: =SUM(B$8+ B$9) -> 65.50568611 | C7: 1572.180159 | D7: 1 | E7: 70.97086461 | F7: 1929.758702 | G7: 1 | I7: =SUM(I$8+ I$9) -> 0
A8: Державний борг | B8: 55.59310503 | C8: 1334.271601 | D8: 0.848676 | E8: 60.71271582 | F8: 1650.830835 | G8: 0.85546 | H8: 0.006784 | I8: -21.4
A9: Гарантований державою борг | B9: 9.912581084 | C9: 237.9085577 | D9: 0.151324 | E9: 10.25814879 | F9: 278.9278672 | G9: 0.14454 | H9: -0.006784 | I9: 21.4

Sheet DTR (hidden)
A2: Структура державного та гарантованого державою боргу в розрізі термінів погашення
D4: =VALVAL -> млрд. одиниць
B5: дол.США | C5: грн. | D5: % | E5: FORMAT
A6: Загальна сума державного та гарантованого державою боргу | B6: =SUM(B$7+ B$8+ B$9) -> 22200491.12 | C6: 177605290.9 | D6: 22.88655189 | E6: 3
A7: 2017-2021 | B7: 32.88974271 | C7: 894.3003237 | D7: 0.463426 | E7: 1
A8: 2021-31.12.2060 | B8: 38.0811219 | C8: 1035.458378 | D8: 0.536574 | E8: 1
A9: 2015-2060 | B9: 22200420.15 | C9: 177603361.2 | D9: 21.88655189 | E9: 1

Sheet DEBT_TERM (hidden)
A3: Державний та гарантований державою борг України
A4: =" за станом на " & TEXT(DREPORTDATE,"dd.MM.yyyy") -> за станом на 31.12.2016
A5: (в розрізі середнього терміну обігу та середньої ставки)
B8: Середня ставка, % | C8: Середній термін обігу, років | D8: Середній термін до погашення, років | E8: ="Сума боргу " & VALVAL -> Сума боргу млрд. одиниць | F8: IS_CHART_DATA | G8: IS_OVDP | H8: FORMAT
A9: Державний та гарантований державою борг України | B9: 24.284 | C9: 10.94 | D9: 8.19 | E9: 1929758702 | F9: 0 | G9: 0 | H9: 3 | I9: =IF(A9="","",A9 & "; " &B9 & "%; "&C9 &"р.") -> Державний та гарантований державою борг України; 24,284%; 10,94р. | J9: =E9 -> 1929758702
A10: Державний борг | B10: 24.474 | C10: 10.69 | D10: 7.97 | E10: 1650830835 | F10: 0 | G10: 0 | H10: 2 | I10: Державний борг; 24,474%; 10,69р. | J10: 1650830835
A11: Державний внутрішній борг | B11: 51.538 | C11: 7.78 | D11: 5.62 | E11: 670645530.5 | F11: 1 | G11: 0 | H11: 0 | I11: Державний внутрішній борг; 51,538%; 7,78р. | J11: 670645530.5
A12: в т.ч. ОВДП | B12: 51.713 | C12: 7.67 | D12: 5.57 | E12: 668132732.6 | F12: 0 | G12: 0 | H12: 0 | I12: в т.ч. ОВДП; 51,713%; 7,67р. | J12: 668132732.6
A13: ОВДП (1 - місячні) | B13: 0 | C13: 0 | D13: 0 | E13: 0 | F13: 0 | G13: 1 | H13: 0 | I13: ОВДП (1 - місячні); 0%; 0р. | J13: 0
A14: ОВДП (10 - річні) | B14: 17.321 | C14: 9.93 | D14: 7.1 | E14: 72402983 | F14: 0 | G14: 1 | H14: 0 | I14: ОВДП (10 - річні); 17,321%; 9,93р. | J14: 72402983
A15: ОВДП (11 - річні) | B15: 11.221 | C15: 10.99 | D15: 8.27 | E15: 17382981 | F15: 0 | G15: 1 | H15: 0 | I15: ОВДП (11 - річні); 11,221%; 10,99р. | J15: 17382981
A16: ОВДП (12 - місячні) | B16: 0 | C16: 0.91 | D16: 0.46 | E16: 3477570 | F16: 0 | G16: 1 | H16: 0 | I16: ОВДП (12 - місячні); 0%; 0,91р. | J16: 3477570
A17: ОВДП (12 - річні) | B17: 8.182 | C17: 12.14 | D17: 11.32 | E17: 28500000 | F17: 0 | G17: 1 | H17: 0 | I17: ОВДП (12 - річні); 8,182%; 12,14р. | J17: 28500000
A18: ОВДП (13 - річні) | B18: 8.726 | C18: 13.1 | D18: 12.64 | E18: 37117630 | F18: 0 | G18: 1 | H18: 0 | I18: ОВДП (13 - річні); 8,726%; 13,1р. | J18: 37117630
A19: ОВДП (14 - річні) | B19: 8.211 | C19: 14.03 | D19: 13.89 | E19: 51250000 | F19: 0 | G19: 1 | H19: 0 | I19: ОВДП (14 - річні); 8,211%; 14,03р. | J19: 51250000
A20: ОВДП (15 - річні) | B20: 8.346 | C20: 13.42 | D20: 12.64 | E20: 42789838 | F20: 0 | G20: 1 | H20: 0 | I20: ОВДП (15 - річні); 8,346%; 13,42р. | J20: 42789838
A21: ОВДП (18 - місячні) | B21: 77.87 | C21: 1.48 | D21: 0.88 | E21: 29257961.41 | F21: 0 | G21: 1 | H21: 0 | I21: ОВДП (18 - місячні); 77,87%; 1,48р. | J21: 29257961.41
A22: ОВДП (2 - річні) | B22: 110.056 | C22: 1.98 | D22: 1.42 | E22: 64353439.53 | F22: 0 | G22: 1 | H22: 0 | I22: ОВДП (2 - річні); 110,056%; 1,98р. | J22: 64353439.53
A23: ОВДП (3 - місячні) | B23: 0 | C23: 0.25 | D23: 0.18 | E23: 10000 | F23: 0 | G23: 1 | H23: 0 | I23: ОВДП (3 - місячні); 0%; 0,25р. | J23: 10000
A24: ОВДП (3 - річні) | B24: 369.031 | C24: 2.9 | D24: 1.37 | E24: 18462385 | F24: 0 | G24: 1 | H24: 0 | I24: ОВДП (3 - річні); 369,031%; 2,9р. | J24: 18462385
A25: ОВДП (4 - річні) | B25: 14.504 | C25: 4.32 | D25: 2.51 | E25: 11230000 | F25: 0 | G25: 1 | H25: 0 | I25: ОВДП (4 - річні); 14,504%; 4,32р. | J25: 11230000
A26: ОВДП (5 - річні) | B26: 28.15 | C26: 4.99 | D26: 2.93 | E26: 85420494.6 | F26: 0 | G26: 1 | H26: 0 | I26: ОВДП (5 - річні); 28,15%; 4,99р. | J26: 85420494.6
A27: ОВДП (6 - місячні) | B27: 0 | C27: 0.5 | D27: 0.09 | E27: 215801 | F27: 0 | G27: 1 | H27: 0 | I27: ОВДП (6 - місячні); 0%; 0,5р. | J27: 215801
A28: ОВДП (6 - річні) | B28: 14.3 | C28: 6.42 | D28: 3.9 | E28: 17600000 | F28: 0 | G28: 1 | H28: 0 | I28: ОВДП (6 - річні); 14,3%; 6,42р. | J28: 17600000
A29: ОВДП (7 - річні) | B29: 11.411 | C29: 6.98 | D29: 4.5 | E29: 13580900 | F29: 0 | G29: 1 | H29: 0 | I29: ОВДП (7 - річні); 11,411%; 6,98р. | J29: 13580900
A30: ОВДП (8 - річні) | B30: 12.244 | C30: 8.14 | D30: 3.99 | E30: 26316198 | F30: 0 | G30: 1 | H30: 0 | I30: ОВДП (8 - річні); 12,244%; 8,14р. | J30: 26316198
A31: ОВДП (9 - місячні) | B31: 0.052 | C31: 0.75 | D31: 0.16 | E31: 196567 | F31: 0 | G31: 1 | H31: 0 | I31: ОВДП (9 - місячні); 0,052%; 0,75р. | J31: 196567
A32: ОВДП (9 - річні) | B32: 11.669 | C32: 9.06 | D32: 4.83 | E32: 35774399 | F32: 0 | G32: 1 | H32: 0 | I32: ОВДП (9 - річні); 11,669%; 9,06р. | J32: 35774399
A33: Казначейські зобов'язання | B33: 0 | C33: 0 | D33: 0 | E33: 0 | F33: 0 | G33: 1 | H33: 0 | I33: Казначейські зобов'язання; 0%; 0р. | J33: 0
A34: ОВДП (1 - місячні) | B34: 0 | C34: 0 | D34: 0 | E34: 0 | F34: 0 | G34: 1 | H34: 0 | I34: ОВДП (1 - місячні); 0%; 0р. | J34: 0
A35: ОВДП (10 - річні) | B35: 9.465 | C35: 10.03 | D35: 4.93 | E35: 2430000 | F35: 0 | G35: 1 | H35: 0 | I35: ОВДП (10 - річні); 9,465%; 10,03р. | J35: 2430000
A36: ОВДП (12 - місячні) | B36: 0 | C36: 0 | D36: 0 | E36: 0 | F36: 0 | G36: 1 | H36: 0 | I36: ОВДП (12 - місячні); 0%; 0р. | J36: 0
A37: ОВДП (18 - місячні) | B37: 0 | C37: 0 | D37: 0 | E37: 0 | F37: 0 | G37: 1 | H37: 0 | I37: ОВДП (18 - місячні); 0%; 0р. | J37: 0
A38: ОВДП (2 - річні) | B38: 0 | C38: 0 | D38: 0 | E38: 0 | F38: 0 | G38: 1 | H38: 0 | I38: ОВДП (2 - річні); 0%; 0р. | J38: 0
A39: ОВДП (3 - місячні) | B39: 0 | C39: 0 | D39: 0 | E39: 0 | F39: 0 | G39: 1 | H39: 0 | I39: ОВДП (3 - місячні); 0%; 0р. | J39: 0
A40: ОВДП (3 - річні) | B40: 0 | C40: 0 | D40: 0 | E40: 0 | F40: 0 | G40: 1 | H40: 0 | I40: ОВДП (3 - річні); 0%; 0р. | J40: 0
A41: ОВДП (4 - річні) | B41: 744.284 | C41: 3.97 | D41: 0.38 | E41: 4355537.28 | F41: 0 | G41: 1 | H41: 0 | I41: ОВДП (4 - річні); 744,284%; 3,97р. | J41: 4355537.28
A42: ОВДП (5 - річні) | B42: 73.516 | C42: 4.9 | D42: 1.2 | E42: 66149156.8 | F42: 0 | G42: 1 | H42: 0 | I42: ОВДП (5 - річні); 73,516%; 4,9р. | J42: 66149156.8
A43: ОВДП (6 - місячні) | B43: 0 | C43: 0 | D43: 0 | E43: 0 | F43: 0 | G43: 1 | H43: 0 | I43: ОВДП (6 - місячні); 0%; 0р. | J43: 0
A44: ОВДП (6 - річні) | B44: 9.5 | C44: 6.18 | D44: 0.79 | E44: 6500000 | F44: 0 | G44: 1 | H44: 0 | I44: ОВДП (6 - річні); 9,5%; 6,18р. | J44: 6500000
A45: ОВДП (7 - річні) | B45: 117.744 | C45: 6.98 | D45: 2.72 | E45: 31158891 | F45: 0 | G45: 1 | H45: 0 | I45: ОВДП (7 - річні); 117,744%; 6,98р. | J45: 31158891
A46: ОВДП (8 - річні) | B46: 9.5 | C46: 7.92 | D46: 2.37 | E46: 1100000 | F46: 0 | G46: 1 | H46: 0 | I46: ОВДП (8 - річні); 9,5%; 7,92р. | J46: 1100000
A47: ОВДП (9 - місячні) | B47: 0 | C47: 0 | D47: 0 | E47: 0 | F47: 0 | G47: 1 | H47: 0 | I47: ОВДП (9 - місячні); 0%; 0р. | J47: 0
A48: ОВДП (9 - річні) | B48: 9.5 | C48: 8.93 | D48: 3.39 | E48: 1100000 | F48: 0 | G48: 1 | H48: 0 | I48: ОВДП (9 - річні); 9,5%; 8,93р. | J48: 1100000
A49: Державний зовнішній борг | B49: 5.956 | C49: 12.68 | D49: 9.58 | E49: 980185304.1 | F49: 1 | G49: 0 | H49: 0 | I49: Державний зовнішній борг; 5,956%; 12,68р. | J49: 980185304.1
A50: в т.ч. ОЗДП | B50: 6.367 | C50: 7.21 | D50: 5.71 | E50: 517804481.9 | F50: 0 | G50: 0 | H50: 0 | I50: в т.ч. ОЗДП; 6,367%; 7,21р. | J50: 517804481.9
A51: Гарантований борг | B51: 23.164 | C51: 12.44 | D51: 9.48 | E51: 278927867.2 | F51: 0 | G51: 0 | H51: 2 | I51: Гарантований борг; 23,164%; 12,44р. | J51: 278927867.2
A52: Гарантований внутрішній борг | B52: 141.383 | C52: 6.23 | D52: 2.44 | E52: 19084475.25 | F52: 1 | G52: 0 | H52: 0 | I52: Гарантований внутрішній борг; 141,383%; 6,23р. | J52: 19084475.25
A53: Гарантований зовнішній борг | B53: 14.481 | C53: 12.9 | D53: 10 | E53: 259843392 | F53: 1 | G53: 0 | H53: 0 | I53: Гарантований зовнішній борг; 14,481%; 12,9р. | J53: 259843392
A54: в т.ч. ОЗДП | J54: 0
J55: 0
J56: 0
J57: 0
J58: 0
J59: 0
J60: 0
J61: 0

Sheet K_ALL (hidden)
A2: Державний та гарантований державою борг України за станом на ReportDate (за ознакою умовності)

Sheet T_ALL (hidden)
A2: Державний та гарантований державою борг України за станом на ReportDate (за типом боргу)

Sheet YKT2_PRC (hidden)
A2: Державний та гарантований державою борг України за останні 5 років
G4: %

Sheet TBL1 (hidden)

Sheet DTK2
A2: ="Державний та гарантований державою борг України за станом на " & TEXT(DREPORTDATE,"dd.MM.yyyy") -> Державний та гарантований державою борг України за станом на 31.12.2016
A3: (за типом кредитора)
D5: =VALVAL -> млрд. одиниць
B6: дол.США | C6: грн. | D6: %
A7: Загальна сума державного та гарантованого державою боргу | B7: =B$8+B$45 -> 70.97086461 | C7: 1929.758702 | D7: 0.999999
A8: Внутрішній борг | B8: =B$9+B$32 -> 25.36624647 | C8: 689.7300058 | D8: 0.357417
A9: Державний борг | B9: =B$10+B$30 -> 24.66437545 | C9: 670.6455305 | D9: 0.347527
A10: 1. Заборгованість за випущеними цінними паперами на внутрішньому ринку | B10: =SUM(B$11:B$29) -> 24.57196211 | C10: 668.1327326 | D10: 0.346225
A11: ОВДП (10 - річні) | B11: 2.752137612 | C11: 74.832983 | D11: 0.038778
A12: ОВДП (11 - річні) | B12: 0.6392950528 | C12: 17.382981 | D12: 0.009008
A13: ОВДП (12 - місячні) | B13: 0.1278948241 | C13: 3.47757 | D13: 0.001802
A14: ОВДП (12 - річні) | B14: 1.048146403 | C14: 28.5 | D14: 0.014769
A15: ОВДП (13 - річні) | B15: 1.365077557 | C15: 37.11763 | D15: 0.019234
A16: ОВДП (14 - річні) | B16: 1.884824672 | C16: 51.25 | D16: 0.026558
A17: ОВДП (15 - річні) | B17: 1.573684729 | C17: 42.789838 | D17: 0.022174
A18: ОВДП (18 - місячні) | B18: 1.076022 | C18: 29.25796141 | D18: 0.015161
A19: ОВДП (2 - річні) | B19: 2.366730742 | C19: 64.35343953 | D19: 0.033348
A20: ОВДП (3 - місячні) | B20: 0.00036777067 | C20: 0.01 | D20: 5e-06
A21: ОВДП (3 - річні) | B21: 0.6789923657 | C21: 18.462385 | D21: 0.009567
A22: ОВДП (4 - річні) | B22: 0.5731903451 | C22: 15.58553728 | D22: 0.008076
A23: ОВДП (5 - річні) | B23: 5.574287189 | C23: 151.5696514 | D23: 0.078543
A24: ОВДП (6 - місячні) | B24: 0.00793652779 | C24: 0.215801 | D24: 0.000112
A25: ОВДП (6 - річні) | B25: 0.886327309 | C25: 24.1 | D25: 0.012489
A26: ОВДП (7 - річні) | B26: 1.645398281 | C26: 44.739791 | D26: 0.023184
A27: ОВДП (8 - річні) | B27: 1.008287344 | C27: 27.416198 | D27: 0.014207
A28: ОВДП (9 - місячні) | B28: 0.00722915769 | C28: 0.196567 | D28: 0.000102
A29: ОВДП (9 - річні) | B29: 1.356132234 | C29: 36.874399 | D29: 0.019108
A30: 2. Заборгованість перед банківськими та іншими фінансовими установами | B30: =SUM(B$31:B$31) -> 0.09241333715 | C30: 2.512797928 | D30: 0.001302
A31: Національний банк України | B31: 0.09241333715 | C31: 2.512797928 | D31: 0.001302
A32: Гарантований державою борг | B32: =B$33+B$40+B$43 -> 0.7018710203 | C32: 19.08447525 | D32: 0.00989
A33: 1. Заборгованість за випущеними цінними паперами на внутрішньому ринку | B33: =SUM(B$34:B$39) -> 0.5865946415 | C33: 15.9500116 | D33: 0.008266
A34: Державні цінні папери | B34: 4.2661e-07 | C34: 1.16e-05 | D34: 0
A35: Облігації ДІУ (10 - річні) | B35: 0.03677706676 | C35: 1 | D35: 0.000518
A36: Облігації ДІУ (5 - річні) | B36: 0.1103312003 | C36: 3 | D36: 0.001555
A37: Облігації ДІУ (7 - річні) | B37: 0.1103312003 | C37: 3 | D37: 0.001555
A38: Облігації НАК "Нафтогаз України" (3 - річні) | B38: 0.1765299205 | C38: 4.8 | D38: 0.002487
A39: Облігації Укравтодору (5 - річні) | B39: 0.1526248271 | C39: 4.15 | D39: 0.002151
A40: 2. Заборгованість перед банківськими та іншими фінансовими установами | B40: =SUM(B$41:B$42) -> 0.1152412696 | C40: 3.133508998 | D40: 0.001624
A41: ВАТ "Державний ощадний банк України" | B41: 0.1111297157 | C41: 3.021712318 | D41: 0.001566
A42: ПАТ АБ "Укргазбанк" | B42: 0.00411155398 | C42: 0.1117966802 | D42: 5.8e-05
A43: 3. Заборгованість, не віднесена до інших категорій | B43: =SUM(B$44:B$44) -> 3.510923e-05 | C43: 0.00095465 | D43: 0
A44: Інші кредитори | B44: 3.510923e-05 | C44: 0.00095465 | D44: 0
A45: Зовнішній борг | B45: =B$46+B$69 -> 45.60461814 | C45: 1240.028696 | D45: 0.642582
A46: Державний борг | B46: =B$47+B$54+B$60+B$62+B$67 -> 36.04834037 | C46: 980.1853041 | D46: 0.507931
A47: 1. Заборгованість за позиками, одержаними від міжнародних фінансових організацій | B47: =SUM(B$48:B$53) -> 13.67533621 | C47: 371.8441251 | D47: 0.192688
A48: Європейське Співтовариство | B48: 2.310113011 | C48: 62.81395484 | D48: 0.03255
A49: Європейський банк реконструкції та розвитку | B49: 0.591002251 | C49: 16.06985828 | D49: 0.008327
A50: Європейський Інвестиційний Банк | B50: 0.5340904563 | C50: 14.52237776 | D50: 0.007525
A51: Міжнародний банк реконструкції та розвитку | B51: 5.055394225 | C51: 137.4605065 | D51: 0.071232
A52: Міжнародний Валютний Фонд | B52: 5.18225106 | C52: 140.9098527 | D52: 0.073019
A53: Фонд чистих технологій (МБРР) | B53: 0.00248521025 | C53: 0.06757499901 | D53: 3.5e-05
A54: 2. Заборгованість за позиками, одержаними від органів управління іноземних держав | B54: =SUM(B$55:B$59) -> 1.678781308 | C54: 45.64750416 | D54: 0.023655
A55: Канада | B55: 0.295407655 | C55: 8.0323876 | D55: 0.004162
A56: Німеччина | B56: 0.2200474642 | C56: 5.983279353 | D56: 0.003101
A57: Росія | B57: 0.60585586 | C57: 16.47374066 | D57: 0.008537
A58: США | B58: 0.00759709027 | C58: 0.2065714027 | D58: 0.000107
A59: Японія | B59: 0.5498732387 | C59: 14.95152515 | D59: 0.007748
A60: 3. Заборгованість за позиками, одержаними від іноземних комерційних банків, інших іноземних фінансових установ | B60: =SUM(B$61:B$61) -> 5.344535e-05 | C60: 0.001453225 | D60: 1e-06
A61: Chase Manhattan Bank Luxembourg S.A. | B61: 5.344535e-05 | C61: 0.001453225 | D61: 1e-06
A62: 4. Заборгованість за випущеними цінними паперами на зовнішньому ринку | B62: =SUM(B$63:B$66) -> 19.04333 | C62: 517.8044819 | D62: 0.268326
A63: ОЗДП 2013 року | B63: 3 | C63: 81.572574 | D63: 0.042271
A64: ОЗДП 2014 року | B64: 1 | C64: 27.190858 | D64: 0.01409
A65: ОЗДП 2015 року | B65: 14.04333 | C65: 381.8501919 | D65: 0.197875
A66: ОЗДП 2016 року | B66: 1 | C66: 27.190858 | D66: 0.01409
A67: 5. Заборгованість, не віднесена до інших категорій | B67: =SUM(B$68:B$68) -> 1.650839402 | C67: 44.88773975 | D67: 0.023261
A68: Міжнародний Валютний Фонд | B68: 1.650839402 | C68: 44.88773975 | D68: 0.023261
A69: Гарантований державою борг | B69: =B$70+B$76+B$78+B$85+B$86 -> 9.556277774 | C69: 259.843392 | D69: 0.134651
A70: 1. Заборгованість за позиками, одержаними від міжнародних фінансових організацій | B70: =SUM(B$71:B$75) -> 7.022031708 | C70: 190.935067 | D70: 0.098943
A71: Європейське співтоватиство з атомної енергії | B71: 0.01088056003 | C71: 0.2958517627 | D71: 0.000153
A72: Європейський банк реконструкції та розвитку | B72: 0.3866942552 | C72: 10.51454858 | D72: 0.005449
A73: Європейський Інвестиційний Банк | B73: 0.03658550017 | C73: 0.99479114 | D73: 0.000516
A74: Міжнародний банк реконструкції та розвитку | B74: 0.4550433454 | C74: 12.37301899 | D74: 0.006412
A75: Міжнародний Валютний Фонд | B75: 6.132828047 | C75: 166.7568566 | D75: 0.086413
A76: 2. Заборгованість за позиками, одержаними від органів управління іноземних держав | B76: =SUM(B$77:B$77) -> 0.14621678 | C76: 3.975759701 | D76: 0.00206
A77: Канада | B77: 0.14621678 | C77: 3.975759701 | D77: 0.00206
A78: 3. Заборгованість за позиками, одержаними від іноземних комерційних банків, інших іноземних фінансових установ | B78: =SUM(B$79:B$84) -> 2.278542328 | C78: 61.95552088 | D78: 0.032105
A79: Deutsche Bank AG London | B79: 0.01427420651 | C79: 0.3881279224 | D79: 0.000201
A80: UniCredit Bank Austria AG | B80: 0.03554019995 | C80: 0.96636853 | D80: 0.000501
A81: ВАТ "Газпромбанк" | B81: 0.5 | C81: 13.595429 | D81: 0.007045
A82: Державний банк розвитку КНР | B82: 0.05916 | C82: 1.608611159 | D82: 0.000834
A83: Експортно-імпортний банк Китаю | B83: 1.539092921 | C83: 41.84925707 | D83: 0.021686
A84: Експортно-імпортний банк Кореї | B84: 0.130475 | C84: 3.547727198 | D84: 0.001838
A85: 4. Заборгованість за випущеними цінними паперами на зовнішньому ринку
A86: 5. Заборгованість, не віднесена до інших категорій | B86: =SUM(B$87:B$87) -> 0.1094869587 | C86: 2.977044347 | D86: 0.001543
A87: Міжнародний Валютний Фонд | B87: 0.1094869587 | C87: 2.977044347 | D87: 0.001543

Sheet DATA
A1: STOP
A3: Дата отчета | B3: 2016-12-31 | C3: =DREPORTDATE -> 2016-12-31
A4: Единицы измерения | B4: 1000000000 | C4: =IF($B$4=1,"дол. США",IF($B$4=1000,"тис. дол. США",IF($B$4=1000000,"млн. дол. США",IF($B$4=1000000000,"млрд. дол. США")))) -> млрд. дол. США | D4: =IF($B$4=1,"грн",IF($B$4=1000,"тис. грн",IF($B$4=1000000,"млн. грн",IF($B$4=1000000000,"млрд. грн")))) -> млрд. грн | E4: =IF($B$4=1,"одиниць",IF($B$4=1000,"тис. одиниць",IF($B$4=1000000,"млн. одиниць",IF($B$4=1000000000,"млрд. одиниць")))) -> млрд. одиниць | F4: =1000000000/DDELIMER -> 1 | G4: =IF($B$4=1,1000000000,IF($B$4=1000,1000000,IF($B$4=1000000,1000,IF($B$4=1000000000,1)))) -> 1
A5: Сессия | B5: e667b26d-4764-49f5-b2a1-cc00405e3dc4
A8: SHORT
A12: 1000000000

Sheet AVGRATE_DETAIL (hidden)
